Workbook

Sheet 填表
A1: =COUNTA(A7:A406)-COUNTIF(A7:A406,"非志工") -> 0 | B1: 為將資料電腦化"行政表格"請務必依此「表格樣式式/檔案格式」作業，並請mail至eqallhappy@gmail.com 謝謝
B2: 學校縣市 | D2: 學校代號： | E2: =IF(ISNA(VLOOKUP(P4,國小名冊!$D$1:$E$2658,2,0)),"學校錯誤請確認",VLOOKUP(P4,國小名冊!$D$1:$E$2658,2,0)) -> 學校錯誤請確認 | K2: hv38483272 | L2: 此檔請勿使用google試算表操作，會影響運作之正常性。
B3: 學校名稱 | D3: 👆 此欄為「被入班的學校」，請先填寫上面「縣市」欄後，再輸入學校關鍵字，按「F9」鍵進行搜尋，操作詳見「說明」工作表。
A4: 志工編號 | B4: 姓名 | C4: 任務類型 | D4: 服務日期 | E4: 年級 | F4: 班級 | G4: 教案內容 | H4: 單元 | I4: 請輸入數字 | J4: 服務節/時數 | K4: e-mail或手機 | L4: 資料檢查，勿填 | O4: 勿動 | P4: =IF(C3="","",C2&"-"&C3) -> 
A5: 沒編號請輸入「非志工」 | B5: 請輸入全名 ★未上過志工培訓課者，請勿輸入，因無法認列時數。 | C5: 請依下列名稱填入任務(請勿自行變更名稱) 主講(各班申報必填) 電腦操作 課程協助 道具製作 (每班最多4人含主講) | D5: 114上學期服務日期設定區間為2025/8/31~2026/1/23 區間外無法輸入 西元年/月/日 | E5: 阿拉伯 數字 ex1、2、3、4….. | F5: 阿拉伯數字 或文字 ex.忠、孝、仁… | G5: 一種課程填一格, 請勿2種課程填在同一格 一上/一下 二上/二下 三上/三下 四上/四下 EQ學園(舊版114學年度即不認列) RET SC PAC PS | H5: 各單元請逐欄填入,請勿2單元填在同一欄 (阿拉伯數字) 一上/一下 各6單元 二上/二下 各6單元 三上/三下 各6單元 四上/四下 各6單元 (舊)EQ學園共8單元 高年級每套各4單元 | I5: 1.阿拉伯數字表示:晨光0，第一堂課1.. 以此類推 2.連續2節課上一單元，時段填同一欄即可 ex.0,1或7,8 …請以半形","號區隔) | J5: 1.入班主講及課程協助1節課計1小時 2.道具製作每人每學期最多2小時 3.最小單位為0.5(阿拉伯數字) 4.舊版EQ學員、高年級各班每學期每種課程總時數申報最多為8H 5.三、四年級各班每學期每種課程總時數申報最多為6H 6.低年級各班每學期每種課程總時數申報最多為6H | K5: 服務志工的e-mail或手機(為辨視同名同姓) ex.0912345678 | L5: 簡單資料檢查，您可參考此欄所示，看您的資料是否有誤，來進行修正。 ★輸入完請按『按鍵F9』檢查資料正確性 ★按「ESC」鍵可停止檢查資料
A6: 志工編號 | B6: 姓名 | C6: 負責事項 | D6: 服務日期 | E6: 年級 | F6: 班級 | G6: 課程名稱 | H6: 單元 | I6: 入班時段 | J6: 時數 | K6: e-mail或手機 | L6: 人數/檢查 | M6: 重覆/道具時限2小時 | N6: 時段/前 | O6: 時段/後 | P6: 項目1 | Q6: 項目2 | R6: 時段/前重覆 | S6: 時段/後重覆 | T6: 重覆
L7: =IF(P7=""," ",IF(OR(COUNTIF($P:$P,P7)>4,COUNTIF($Q:$Q,Q7)>4),"超過4人","OK"))&IF(OR(C7="道具製作",C7="")," ",IF(IF(B7="","",SUMPRODUCT(($P$6:$P$406=P7)*($C$6:$C$406="主講")+($Q$6:$Q$406=Q7)*($C$6:$C$406="主講")))=0,",缺主講"," "))&IF(AND(B7="",C7="",D7="",E7="",F7="",G7="",H7="",I7="",J7=""),"",IF(OR(B7="",C7="",D7="",E7="",F7="",G7="",H7="",I7="",J7=""),",資料不齊",""))&IF(SUMPRODUCT(($P$6:$P$406=P7)*($C$6:$C$406="主講")+($Q$6:$Q$406=Q7)*($C$6:$C$406="主講"))>2,",主講太多","") ->  | M7: =IF(C7="","",IF(OR(R7>1,S7>1,T7>1),"重覆","正常"))&IF(C7="道具製作",IF(SUMPRODUCT(($C$7:$C$406="道具製作")*1,($B$7:$B$406=B7)*1,$J$7:$J$406)>2,",道具超時",""),"") ->  | N7: =IF(ISERROR(MID(I7,FIND(",",I7)-1,1)),I7,MID(I7,FIND(",",I7)-1,1)) -> 0 | O7: =IF(ISERROR(MID(I7,FIND(",",I7)+1,1)),I7,MID(I7,FIND(",",I7)+1,1)) -> 0 | P7: =IF(OR(C7="",C7="道具製作"),"",CONCATENATE(E7,"年",F7,"班",D7,"-",G7,"-",H7,"-",N7)) ->  | Q7: =IF(OR(C7="",C7="道具製作"),"",CONCATENATE(E7,"年",F7,"班",D7,"-",G7,"-",H7,"-",O7)) ->  | R7: =IF(B7="","",SUMPRODUCT((B:B=B7)*(D:D=D7)*(N:N=N7))) ->  | S7: =IF(B7="","",SUMPRODUCT((B:B=B7)*(D:D=D7)*(O:O=O7))) ->  | T7: =IF(B7="","",SUMPRODUCT((B:B=B7)*(D:D=D7)*(I:I=I7))) -> 
L8: =IF(P8=""," ",IF(OR(COUNTIF($P:$P,P8)>4,COUNTIF($Q:$Q,Q8)>4),"超過4人","OK"))&IF(OR(C8="道具製作",C8="")," ",IF(IF(B8="","",SUMPRODUCT(($P$6:$P$406=P8)*($C$6:$C$406="主講")+($Q$6:$Q$406=Q8)*($C$6:$C$406="主講")))=0,",缺主講"," "))&IF(AND(B8="",C8="",D8="",E8="",F8="",G8="",H8="",I8="",J8=""),"",IF(OR(B8="",C8="",D8="",E8="",F8="",G8="",H8="",I8="",J8=""),",資料不齊",""))&IF(SUMPRODUCT(($P$6:$P$406=P8)*($C$6:$C$406="主講")+($Q$6:$Q$406=Q8)*($C$6:$C$406="主講"))>2,",主講太多","") ->  | N8: =IF(ISERROR(MID(I8,FIND(",",I8)-1,1)),I8,MID(I8,FIND(",",I8)-1,1)) -> 0 | O8: =IF(ISERROR(MID(I8,FIND(",",I8)+1,1)),I8,MID(I8,FIND(",",I8)+1,1)) -> 0 | P8: =IF(OR(C8="",C8="道具製作"),"",CONCATENATE(E8,"年",F8,"班",D8,"-",G8,"-",H8,"-",N8)) ->  | Q8: =IF(OR(C8="",C8="道具製作"),"",CONCATENATE(E8,"年",F8,"班",D8,"-",G8,"-",H8,"-",O8)) -> 
N9: 0 | O9: 0
N10: 0 | O10: 0
N11: =IF(ISERROR(MID(I11,FIND(",",I11)-1,1)),I11,MID(I11,FIND(",",I11)-1,1)) -> 0 | O11: =IF(ISERROR(MID(I11,FIND(",",I11)+1,1)),I11,MID(I11,FIND(",",I11)+1,1)) -> 0
N12: 0 | O12: 0
N13: 0 | O13: 0
N14: 0 | O14: 0
N15: 0 | O15: 0
L16: =IF(P16=""," ",IF(OR(COUNTIF($P:$P,P16)>4,COUNTIF($Q:$Q,Q16)>4),"超過4人","OK"))&IF(OR(C16="道具製作",C16="")," ",IF(IF(B16="","",SUMPRODUCT(($P$6:$P$406=P16)*($C$6:$C$406="主講")+($Q$6:$Q$406=Q16)*($C$6:$C$406="主講")))=0,",缺主講"," "))&IF(AND(B16="",C16="",D16="",E16="",F16="",G16="",H16="",I16="",J16=""),"",IF(OR(B16="",C16="",D16="",E16="",F16="",G16="",H16="",I16="",J16=""),",資料不齊",""))&IF(SUMPRODUCT(($P$6:$P$406=P16)*($C$6:$C$406="主講")+($Q$6:$Q$406=Q16)*($C$6:$C$406="主講"))>2,",主講太多","") ->  | N16: 0 | O16: 0 | P16: =IF(OR(C16="",C16="道具製作"),"",CONCATENATE(E16,"年",F16,"班",D16,"-",G16,"-",H16,"-",N16)) ->  | Q16: =IF(OR(C16="",C16="道具製作"),"",CONCATENATE(E16,"年",F16,"班",D16,"-",G16,"-",H16,"-",O16)) -> 
N17: 0 | O17: 0
N18: 0 | O18: 0
N19: 0 | O19: 0 | P19: =IF(OR(C19="",C19="道具製作"),"",CONCATENATE(E19,"年",F19,"班",D19,"-",G19,"-",H19,"-",N19)) ->  | Q19: =IF(OR(C19="",C19="道具製作"),"",CONCATENATE(E19,"年",F19,"班",D19,"-",G19,"-",H19,"-",O19)) -> 
N20: 0 | O20: 0
N21: 0 | O21: 0
N22: 0 | O22: 0
N23: 0 | O23: 0
N24: 0 | O24: 0
N25: 0 | O25: 0
N26: 0 | O26: 0
N27: 0 | O27: 0
N28: 0 | O28: 0
N29: 0 | O29: 0
N30: 0 | O30: 0
N31: 0 | O31: 0
N32: 0 | O32: 0
N33: 0 | O33: 0
N34: 0 | O34: 0
N35: 0 | O35: 0
N36: 0 | O36: 0
N37: 0 | O37: 0
N38: 0 | O38: 0
N39: 0 | O39: 0
N40: 0 | O40: 0
N41: 0 | O41: 0
N42: 0 | O42: 0
N43: 0 | O43: 0
N44: 0 | O44: 0
N45: 0 | O45: 0
N46: 0 | O46: 0
N47: 0 | O47: 0
N48: 0 | O48: 0
N49: 0 | O49: 0
N50: 0 | O50: 0
N51: 0 | O51: 0
N52: 0 | O52: 0
N53: 0 | O53: 0
N54: 0 | O54: 0
N55: 0 | O55: 0
N56: 0 | O56: 0
N57: 0 | O57: 0
N58: 0 | O58: 0
N59: 0 | O59: 0
N60: 0 | O60: 0
N61: 0 | O61: 0
N62: 0 | O62: 0
N63: 0 | O63: 0
N64: 0 | O64: 0
N65: 0 | O65: 0
N66: 0 | O66: 0
N67: 0 | O67: 0
N68: 0 | O68: 0
N69: 0 | O69: 0
N70: 0 | O70: 0
M71: =IF(C71="","",IF(OR(R71>1,S71>1,T71>1),"重覆","正常"))&IF(C71="道具製作",IF(SUMPRODUCT(($C$7:$C$406="道具製作")*1,($B$7:$B$406=B71)*1,$J$7:$J$406)>2,",道具超時",""),"") ->  | N71: 0 | O71: 0 | R71: =IF(B71="","",SUMPRODUCT((B:B=B71)*(D:D=D71)*(N:N=N71))) ->  | S71: =IF(B71="","",SUMPRODUCT((B:B=B71)*(D:D=D71)*(O:O=O71))) ->  | T71: =IF(B71="","",SUMPRODUCT((B:B=B71)*(D:D=D71)*(I:I=I71))) -> 
L72: =IF(P72=""," ",IF(OR(COUNTIF($P:$P,P72)>4,COUNTIF($Q:$Q,Q72)>4),"超過4人","OK"))&IF(OR(C72="道具製作",C72="")," ",IF(IF(B72="","",SUMPRODUCT(($P$6:$P$406=P72)*($C$6:$C$406="主講")+($Q$6:$Q$406=Q72)*($C$6:$C$406="主講")))=0,",缺主講"," "))&IF(AND(B72="",C72="",D72="",E72="",F72="",G72="",H72="",I72="",J72=""),"",IF(OR(B72="",C72="",D72="",E72="",F72="",G72="",H72="",I72="",J72=""),",資料不齊",""))&IF(SUMPRODUCT(($P$6:$P$406=P72)*($C$6:$C$406="主講")+($Q$6:$Q$406=Q72)*($C$6:$C$406="主講"))>2,",主講太多","") ->  | N72: =IF(ISERROR(MID(I72,FIND(",",I72)-1,1)),I72,MID(I72,FIND(",",I72)-1,1)) -> 0 | O72: =IF(ISERROR(MID(I72,FIND(",",I72)+1,1)),I72,MID(I72,FIND(",",I72)+1,1)) -> 0 | P72: =IF(OR(C72="",C72="道具製作"),"",CONCATENATE(E72,"年",F72,"班",D72,"-",G72,"-",H72,"-",N72)) ->  | Q72: =IF(OR(C72="",C72="道具製作"),"",CONCATENATE(E72,"年",F72,"班",D72,"-",G72,"-",H72,"-",O72)) -> 
N73: 0 | O73: 0
N74: 0 | O74: 0
N75: 0 | O75: 0
N76: 0 | O76: 0
N77: 0 | O77: 0
N78: 0 | O78: 0
N79: 0 | O79: 0
N80: 0 | O80: 0
N81: 0 | O81: 0
N82: 0 | O82: 0
N83: 0 | O83: 0
N84: 0 | O84: 0
N85: 0 | O85: 0
N86: 0 | O86: 0
N87: 0 | O87: 0
N88: 0 | O88: 0
N89: 0 | O89: 0
N90: 0 | O90: 0
N91: 0 | O91: 0
N92: 0 | O92: 0
N93: 0 | O93: 0
N94: 0 | O94: 0
N95: 0 | O95: 0
N96: 0 | O96: 0
N97: 0 | O97: 0
N98: 0 | O98: 0
N99: 0 | O99: 0
N100: 0 | O100: 0
N101: 0 | O101: 0
N102: 0 | O102: 0
N103: 0 | O103: 0
N104: 0 | O104: 0
N105: 0 | O105: 0
N106: 0 | O106: 0
N107: 0 | O107: 0
N108: 0 | O108: 0
N109: 0 | O109: 0
N110: 0 | O110: 0
N111: 0 | O111: 0
N112: 0 | O112: 0
N113: 0 | O113: 0
N114: 0 | O114: 0
N115: 0 | O115: 0
N116: 0 | O116: 0
N117: 0 | O117: 0
N118: 0 | O118: 0
N119: 0 | O119: 0
N120: 0 | O120: 0
N121: 0 | O121: 0
N122: 0 | O122: 0
N123: 0 | O123: 0
N124: 0 | O124: 0
N125: 0 | O125: 0
N126: 0 | O126: 0
N127: 0 | O127: 0
N128: 0 | O128: 0
N129: 0 | O129: 0
N130: 0 | O130: 0
N131: 0 | O131: 0
N132: 0 | O132: 0
N133: 0 | O133: 0
N134: 0 | O134: 0
M135: =IF(C135="","",IF(OR(R135>1,S135>1,T135>1),"重覆","正常"))&IF(C135="道具製作",IF(SUMPRODUCT(($C$7:$C$406="道具製作")*1,($B$7:$B$406=B135)*1,$J$7:$J$406)>2,",道具超時",""),"") ->  | N135: 0 | O135: 0 | R135: =IF(B135="","",SUMPRODUCT((B:B=B135)*(D:D=D135)*(N:N=N135))) ->  | S135: =IF(B135="","",SUMPRODUCT((B:B=B135)*(D:D=D135)*(O:O=O135))) ->  | T135: =IF(B135="","",SUMPRODUCT((B:B=B135)*(D:D=D135)*(I:I=I135))) -> 
L136: =IF(P136=""," ",IF(OR(COUNTIF($P:$P,P136)>4,COUNTIF($Q:$Q,Q136)>4),"超過4人","OK"))&IF(OR(C136="道具製作",C136="")," ",IF(IF(B136="","",SUMPRODUCT(($P$6:$P$406=P136)*($C$6:$C$406="主講")+($Q$6:$Q$406=Q136)*($C$6:$C$406="主講")))=0,",缺主講"," "))&IF(AND(B136="",C136="",D136="",E136="",F136="",G136="",H136="",I136="",J136=""),"",IF(OR(B136="",C136="",D136="",E136="",F136="",G136="",H136="",I136="",J136=""),",資料不齊",""))&IF(SUMPRODUCT(($P$6:$P$406=P136)*($C$6:$C$406="主講")+($Q$6:$Q$406=Q136)*($C$6:$C$406="主講"))>2,",主講太多","") ->  | N136: =IF(ISERROR(MID(I136,FIND(",",I136)-1,1)),I136,MID(I136,FIND(",",I136)-1,1)) -> 0 | O136: =IF(ISERROR(MID(I136,FIND(",",I136)+1,1)),I136,MID(I136,FIND(",",I136)+1,1)) -> 0 | P136: =IF(OR(C136="",C136="道具製作"),"",CONCATENATE(E136,"年",F136,"班",D136,"-",G136,"-",H136,"-",N136)) ->  | Q136: =IF(OR(C136="",C136="道具製作"),"",CONCATENATE(E136,"年",F136,"班",D136,"-",G136,"-",H136,"-",O136)) -> 
N137: 0 | O137: 0
N138: 0 | O138: 0
N139: 0 | O139: 0
N140: 0 | O140: 0
N141: 0 | O141: 0
N142: 0 | O142: 0
N143: 0 | O143: 0
N144: 0 | O144: 0
N145: 0 | O145: 0
N146: 0 | O146: 0
N147: 0 | O147: 0
N148: 0 | O148: 0
N149: 0 | O149: 0
N150: 0 | O150: 0
N151: 0 | O151: 0
N152: 0 | O152: 0
N153: 0 | O153: 0
N154: 0 | O154: 0
N155: 0 | O155: 0
N156: 0 | O156: 0
N157: 0 | O157: 0
N158: 0 | O158: 0
N159: 0 | O159: 0
N160: 0 | O160: 0
N161: 0 | O161: 0
N162: 0 | O162: 0
N163: 0 | O163: 0
N164: 0 | O164: 0
N165: 0 | O165: 0
N166: 0 | O166: 0
N167: 0 | O167: 0
N168: 0 | O168: 0
N169: 0 | O169: 0
N170: 0 | O170: 0
N171: 0 | O171: 0
N172: 0 | O172: 0
N173: 0 | O173: 0
N174: 0 | O174: 0
N175: 0 | O175: 0
N176: 0 | O176: 0
N177: 0 | O177: 0
N178: 0 | O178: 0
N179: 0 | O179: 0
N180: 0 | O180: 0
N181: 0 | O181: 0
N182: 0 | O182: 0
N183: 0 | O183: 0
N184: 0 | O184: 0
N185: 0 | O185: 0
N186: 0 | O186: 0
N187: 0 | O187: 0
N188: 0 | O188: 0
N189: 0 | O189: 0
N190: 0 | O190: 0
N191: 0 | O191: 0
N192: 0 | O192: 0
N193: 0 | O193: 0
N194: 0 | O194: 0
N195: 0 | O195: 0
N196: 0 | O196: 0
N197: 0 | O197: 0
N198: 0 | O198: 0
M199: =IF(C199="","",IF(OR(R199>1,S199>1,T199>1),"重覆","正常"))&IF(C199="道具製作",IF(SUMPRODUCT(($C$7:$C$406="道具製作")*1,($B$7:$B$406=B199)*1,$J$7:$J$406)>2,",道具超時",""),"") ->  | N199: 0 | O199: 0 | R199: =IF(B199="","",SUMPRODUCT((B:B=B199)*(D:D=D199)*(N:N=N199))) ->  | S199: =IF(B199="","",SUMPRODUCT((B:B=B199)*(D:D=D199)*(O:O=O199))) ->  | T199: =IF(B199="","",SUMPRODUCT((B:B=B199)*(D:D=D199)*(I:I=I199))) -> 
L200: =IF(P200=""," ",IF(OR(COUNTIF($P:$P,P200)>4,COUNTIF($Q:$Q,Q200)>4),"超過4人","OK"))&IF(OR(C200="道具製作",C200="")," ",IF(IF(B200="","",SUMPRODUCT(($P$6:$P$406=P200)*($C$6:$C$406="主講")+($Q$6:$Q$406=Q200)*($C$6:$C$406="主講")))=0,",缺主講"," "))&IF(AND(B200="",C200="",D200="",E200="",F200="",G200="",H200="",I200="",J200=""),"",IF(OR(B200="",C200="",D200="",E200="",F200="",G200="",H200="",I200="",J200=""),",資料不齊",""))&IF(SUMPRODUCT(($P$6:$P$406=P200)*($C$6:$C$406="主講")+($Q$6:$Q$406=Q200)*($C$6:$C$406="主講"))>2,",主講太多","") ->  | N200: =IF(ISERROR(MID(I200,FIND(",",I200)-1,1)),I200,MID(I200,FIND(",",I200)-1,1)) -> 0 | O200: =IF(ISERROR(MID(I200,FIND(",",I200)+1,1)),I200,MID(I200,FIND(",",I200)+1,1)) -> 0 | P200: =IF(OR(C200="",C200="道具製作"),"",CONCATENATE(E200,"年",F200,"班",D200,"-",G200,"-",H200,"-",N200)) ->  | Q200: =IF(OR(C200="",C200="道具製作"),"",CONCATENATE(E200,"年",F200,"班",D200,"-",G200,"-",H200,"-",O200)) -> 
... 206 more rows

Sheet 學校名稱 (hidden)
A1: 縣市名稱 | B1: 學校名稱
A2: 新北市 | B2: 私立淡江高中附設國小部
A3: 新北市 | B3: 私立康橋實驗高中附設國小部
A4: 新北市 | B4: 私立育才國小
A5: 新北市 | B5: 私立聖心國小
A6: 新北市 | B6: 私立及人國小
A7: 新北市 | B7: 私立竹林國小
A8: 新北市 | B8: 信賢種籽親子實小
A9: 新北市 | B9: 私立裕德國(中)小
A10: 新北市 | B10: 市立板橋國小
A11: 新北市 | B11: 市立國光國小
A12: 新北市 | B12: 市立新埔國小
A13: 新北市 | B13: 市立埔墘國小
A14: 新北市 | B14: 市立莒光國小
A15: 新北市 | B15: 市立後埔國小
A16: 新北市 | B16: 市立海山國小
A17: 新北市 | B17: 市立江翠國小
A18: 新北市 | B18: 市立文聖國小
A19: 新北市 | B19: 市立沙崙國小
A20: 新北市 | B20: 市立文德國小
A21: 新北市 | B21: 市立樹林國小
A22: 新北市 | B22: 市立文林國小
A23: 新北市 | B23: 市立大同國小
A24: 新北市 | B24: 市立武林國小
A25: 新北市 | B25: 市立山佳國小
A26: 新北市 | B26: 市立育德國小
A27: 新北市 | B27: 市立柑園國小
A28: 新北市 | B28: 市立鶯歌國小
A29: 新北市 | B29: 市立二橋國小
A30: 新北市 | B30: 市立中湖國小
A31: 新北市 | B31: 市立鳳鳴國小
A32: 新北市 | B32: 市立三峽國小
A33: 新北市 | B33: 市立大埔國小
A34: 新北市 | B34: 市立民義國小
A35: 新北市 | B35: 市立成福國小
A36: 新北市 | B36: 市立大成國小
A37: 新北市 | B37: 市立建安國小
A38: 新北市 | B38: 市立插角國小
A39: 新北市 | B39: 市立有木國小
A40: 新北市 | B40: 市立五寮國小
A41: 新北市 | B41: 市立中和國小
A42: 新北市 | B42: 市立復興國小
A43: 新北市 | B43: 市立興南國小
A44: 新北市 | B44: 市立秀山國小
A45: 新北市 | B45: 市立積穗國小
A46: 新北市 | B46: 市立自強國小
A47: 新北市 | B47: 市立錦和國小
A48: 新北市 | B48: 市立景新國小
A49: 新北市 | B49: 市立永和國小
A50: 新北市 | B50: 市立秀朗國小
A51: 新北市 | B51: 市立頂溪國小
A52: 新北市 | B52: 市立網溪國小
A53: 新北市 | B53: 市立永平國小
A54: 新北市 | B54: 市立土城國小
A55: 新北市 | B55: 市立清水國小
A56: 新北市 | B56: 市立頂埔國小
A57: 新北市 | B57: 市立廣福國小
A58: 新北市 | B58: 市立汐止國小
A59: 新北市 | B59: 市立長安國小
A60: 新北市 | B60: 市立保長國小
A61: 新北市 | B61: 市立崇德國小
A62: 新北市 | B62: 市立北港國小
A63: 新北市 | B63: 市立北峰國小
A64: 新北市 | B64: 市立東山國小
A65: 新北市 | B65: 市立白雲國小
A66: 新北市 | B66: 市立萬里國小
A67: 新北市 | B67: 市立野柳國小
A68: 新北市 | B68: 市立大鵬國小
A69: 新北市 | B69: 市立大坪國小
A70: 新北市 | B70: 市立崁腳國小
A71: 新北市 | B71: 市立金山國小
A72: 新北市 | B72: 市立中角國小
A73: 新北市 | B73: 市立三和國小
A74: 新北市 | B74: 市立新店國小
A75: 新北市 | B75: 市立直潭國小
A76: 新北市 | B76: 市立青潭國小
A77: 新北市 | B77: 市立雙峰國小
A78: 新北市 | B78: 市立大豐國小
A79: 新北市 | B79: 市立中正國小
A80: 新北市 | B80: 市立安坑國小
A81: 新北市 | B81: 市立雙城國小
A82: 新北市 | B82: 市立屈尺國小
A83: 新北市 | B83: 市立龜山國小
A84: 新北市 | B84: 市立深坑國小
A85: 新北市 | B85: 市立石碇國小
A86: 新北市 | B86: 市立和平國小
A87: 新北市 | B87: 市立永定國小
A88: 新北市 | B88: 市立雲海國小
A89: 新北市 | B89: 市立坪林國小
A90: 新北市 | B90: 市立烏來國(中)小
A91: 新北市 | B91: 市立福山國小
A92: 新北市 | B92: 市立瑞芳國小
A93: 新北市 | B93: 市立義方國小
A94: 新北市 | B94: 市立瑞柑國小
A95: 新北市 | B95: 市立瑞濱國小
A96: 新北市 | B96: 市立九份國小
A97: 新北市 | B97: 市立瓜山國小
A98: 新北市 | B98: 市立濂洞國小
A99: 新北市 | B99: 市立猴硐國小
A100: 新北市 | B100: 市立瑞亭國小
A101: 新北市 | B101: 市立吉慶國小
A102: 新北市 | B102: 市立鼻頭國小
A103: 新北市 | B103: 市立雙溪國小
A104: 新北市 | B104: 市立柑林國小
A105: 新北市 | B105: 市立上林國小
A106: 新北市 | B106: 市立牡丹國小
A107: 新北市 | B107: 市立貢寮國小
A108: 新北市 | B108: 市立福隆國小
A109: 新北市 | B109: 市立澳底國小
A110: 新北市 | B110: 市立和美國小
A111: 新北市 | B111: 市立福連國小
A112: 新北市 | B112: 市立平溪國小
A113: 新北市 | B113: 市立菁桐國小
A114: 新北市 | B114: 市立十分國小
A115: 新北市 | B115: 市立淡水國小
A116: 新北市 | B116: 市立育英國小
A117: 新北市 | B117: 市立文化國小
A118: 新北市 | B118: 市立天生國小
A119: 新北市 | B119: 市立水源國小
A120: 新北市 | B120: 市立興仁國小
A121: 新北市 | B121: 市立忠山國小
A122: 新北市 | B122: 市立屯山國小
A123: 新北市 | B123: 市立中泰國小
A124: 新北市 | B124: 市立坪頂國小
A125: 新北市 | B125: 市立竹圍國小
A126: 新北市 | B126: 市立石門國小
A127: 新北市 | B127: 市立乾華國小
A128: 新北市 | B128: 市立老梅國小
A129: 新北市 | B129: 市立三芝國小
A130: 新北市 | B130: 市立橫山國小
A131: 新北市 | B131: 市立興華國小
A132: 新北市 | B132: 市立新莊國小
A133: 新北市 | B133: 市立中港國小
A134: 新北市 | B134: 市立思賢國小
A135: 新北市 | B135: 市立頭前國小
A136: 新北市 | B136: 市立國泰國小
A137: 新北市 | B137: 市立豐年國小
A138: 新北市 | B138: 市立丹鳳國小
A139: 新北市 | B139: 市立光華國小
A140: 新北市 | B140: 市立民安國小
A141: 新北市 | B141: 市立昌隆國小
A142: 新北市 | B142: 市立泰山國小
A143: 新北市 | B143: 市立明志國小
A144: 新北市 | B144: 市立成州國小
A145: 新北市 | B145: 市立更寮國小
A146: 新北市 | B146: 市立五股國小
A147: 新北市 | B147: 市立蘆洲國小
A148: 新北市 | B148: 市立鷺江國小
A149: 新北市 | B149: 市立八里國小
A150: 新北市 | B150: 市立長坑國小
A151: 新北市 | B151: 市立米倉國小
A152: 新北市 | B152: 市立林口國小
A153: 新北市 | B153: 市立南勢國小
A154: 新北市 | B154: 市立嘉寶國小
A155: 新北市 | B155: 市立瑞平國小
A156: 新北市 | B156: 市立興福國小
A157: 新北市 | B157: 市立三重國小
A158: 新北市 | B158: 市立永福國小
A159: 新北市 | B159: 市立光榮國小
A160: 新北市 | B160: 市立厚德國小
A161: 新北市 | B161: 市立碧華國小
A162: 新北市 | B162: 市立三光國小
A163: 新北市 | B163: 市立光興國小
A164: 新北市 | B164: 市立正義國小
A165: 新北市 | B165: 市立修德國小
A166: 新北市 | B166: 市立二重國小
A167: 新北市 | B167: 市立興穀國小
A168: 新北市 | B168: 市立興化國小
A169: 新北市 | B169: 市立中山國小
A170: 新北市 | B170: 市立三多國小
A171: 新北市 | B171: 市立實踐國小
A172: 新北市 | B172: 市立大觀國小
A173: 新北市 | B173: 市立溪洲國小
A174: 新北市 | B174: 市立信義國小
A175: 新北市 | B175: 市立重慶國小
A176: 新北市 | B176: 市立樂利國小
A177: 新北市 | B177: 市立安和國小
A178: 新北市 | B178: 市立彭福國小
A179: 新北市 | B179: 市立育林國小
A180: 新北市 | B180: 市立建國國小
A181: 新北市 | B181: 市立安溪國小
A182: 新北市 | B182: 市立樟樹國小
A183: 新北市 | B183: 市立金美國小
A184: 新北市 | B184: 市立新和國小
A185: 新北市 | B185: 市立鄧公國小
A186: 新北市 | B186: 市立新興國小
A187: 新北市 | B187: 市立重陽國小
A188: 新北市 | B188: 市立五華國小
A189: 新北市 | B189: 市立成功國小
A190: 新北市 | B190: 市立仁愛國小
A191: 新北市 | B191: 市立榮富國小
A192: 新北市 | B192: 市立裕民國小
A193: 新北市 | B193: 市立新泰國小
A194: 新北市 | B194: 市立中信國小
A195: 新北市 | B195: 市立德音國小
A196: 新北市 | B196: 市立麗園國小
A197: 新北市 | B197: 市立北新國小
A198: 新北市 | B198: 市立同榮國小
A199: 新北市 | B199: 市立光復國小
A200: 新北市 | B200: 市立秀峰國小
... 2479 more rows

Sheet 國小名冊
A1: 序號 | B1: 縣市名稱 | C1: 學校 | D1: 併 | E1: 代碼 | F1: 公/私立 | G1: 地址 | H1: 電話 | I1: 網址 | J1: 清單 | L1: 學校名稱-關鍵字搜尋說明
A2: =IF(ISERROR(AND(SEARCH(填表!$C$3,C2),SEARCH(填表!$C$2,B2))),"",MAX($A$1:A1)+1) -> 1 | B2: 新北市 | C2: 私立育才國小 | D2: 新北市-私立育才國小 | E2: 011601 | F2: 私立 | G2: [234]新北市永和區福和路125巷20號 | H2: (02)29214630 | I2: http://www.ytes.ntpc.edu.tw | J2: =IFERROR(VLOOKUP(ROW(A1),A:C,3,0),"") -> 私立育才國小 | L2: 如果您excel的版本無法使用「關鍵字搜尋」亦可用 「篩選」或按CTRL+F「搜尋」功能尋找學校
A3: =IF(ISERROR(AND(SEARCH(填表!$C$3,C3),SEARCH(填表!$C$2,B3))),"",MAX($A$1:A2)+1) -> 2 | B3: 新北市 | C3: 私立聖心國小 | D3: 新北市-私立聖心國小 | E3: 011602 | F3: 私立 | G3: [249]新北市八里區龍米路一段261號 | H3: (02)26182330 | I3: http://lshes.com/school/ | J3: =IFERROR(VLOOKUP(ROW(A2),A:C,3,0),"") -> 私立聖心國小
A4: =IF(ISERROR(AND(SEARCH(填表!$C$3,C4),SEARCH(填表!$C$2,B4))),"",MAX($A$1:A3)+1) -> 3 | B4: 新北市 | C4: 私立及人國小 | D4: 新北市-私立及人國小 | E4: 011603 | F4: 私立 | G4: [234]新北市永和區文化路172號 | H4: (02)29212145 | I4: http://www.cjps.ntpc.edu.tw | J4: 私立及人國小
A5: =IF(ISERROR(AND(SEARCH(填表!$C$3,C5),SEARCH(填表!$C$2,B5))),"",MAX($A$1:A4)+1) -> 4 | B5: 新北市 | C5: 私立竹林國小 | D5: 新北市-私立竹林國小 | E5: 011604 | F5: 私立 | G5: [234]新北市永和區竹林路34號 | H5: (02)29243919 | I5: http://www.clse.ntpc.edu.tw | J5: 私立竹林國小 | L5: ①請在工作表「填表」中，先選擇「學校縣市」 →再於「學校名稱」框中， 輸入學校關鍵字後，按F9更新。
A6: =IF(ISERROR(AND(SEARCH(填表!$C$3,C6),SEARCH(填表!$C$2,B6))),"",MAX($A$1:A5)+1) -> 5 | B6: 新北市 | C6: 私立信賢種籽親子實小 | D6: 新北市-私立信賢種籽親子實小 | E6: 011606 | F6: 私立 | G6: [233]新北市烏來區信賢里娃娃谷41號 | H6: (02)26616648#266 | I6: http://www.seedling.tw | J6: 私立信賢種籽親子實小
A7: =IF(ISERROR(AND(SEARCH(填表!$C$3,C7),SEARCH(填表!$C$2,B7))),"",MAX($A$1:A6)+1) -> 6 | B7: 新北市 | C7: 市立北大國小 | D7: 新北市-市立北大國小 | E7: 013601 | F7: 公立 | G7: [237]新北市三峽區國光街100號 | H7: (02)86716836 | I7: http://www.bdes.ntpc.edu.tw/ | J7: 市立北大國小
A8: =IF(ISERROR(AND(SEARCH(填表!$C$3,C8),SEARCH(填表!$C$2,B8))),"",MAX($A$1:A7)+1) -> 7 | B8: 新北市 | C8: 市立板橋國小 | D8: 新北市-市立板橋國小 | E8: 014601 | F8: 公立 | G8: [220]新北市板橋區黃石里文化路一段23號 | H8: (02)29686834 | I8: http://www.pcps.ntpc.edu.tw | J8: 市立板橋國小
A9: =IF(ISERROR(AND(SEARCH(填表!$C$3,C9),SEARCH(填表!$C$2,B9))),"",MAX($A$1:A8)+1) -> 8 | B9: 新北市 | C9: 市立國光國小 | D9: 新北市-市立國光國小 | E9: 014602 | F9: 公立 | G9: [220]新北市板橋區中正路325巷30號 | H9: (02)29680611 | I9: http://www.kkes.ntpc.edu.tw | J9: 市立國光國小
A10: =IF(ISERROR(AND(SEARCH(填表!$C$3,C10),SEARCH(填表!$C$2,B10))),"",MAX($A$1:A9)+1) -> 9 | B10: 新北市 | C10: 市立新埔國小 | D10: 新北市-市立新埔國小 | E10: 014603 | F10: 公立 | G10: [220]新北市板橋區新翠里陽明街206號 | H10: (02)22571830 | I10: http://www.spes.ntpc.edu.tw | J10: 市立新埔國小
A11: =IF(ISERROR(AND(SEARCH(填表!$C$3,C11),SEARCH(填表!$C$2,B11))),"",MAX($A$1:A10)+1) -> 10 | B11: 新北市 | C11: 市立埔墘國小 | D11: 新北市-市立埔墘國小 | E11: 014604 | F11: 公立 | G11: [220]新北市板橋區永豐街42之8號 | H11: (02)29616690 | I11: http://www.pces.ntpc.edu.tw | J11: 市立埔墘國小
A12: =IF(ISERROR(AND(SEARCH(填表!$C$3,C12),SEARCH(填表!$C$2,B12))),"",MAX($A$1:A11)+1) -> 11 | B12: 新北市 | C12: 市立莒光國小 | D12: 新北市-市立莒光國小 | E12: 014605 | F12: 公立 | G12: [220]新北市板橋區華翠里莒光路163號 | H12: (02)22517272 | I12: http://www.jges.ntpc.edu.tw | J12: 市立莒光國小
A13: =IF(ISERROR(AND(SEARCH(填表!$C$3,C13),SEARCH(填表!$C$2,B13))),"",MAX($A$1:A12)+1) -> 12 | B13: 新北市 | C13: 市立後埔國小 | D13: 新北市-市立後埔國小 | E13: 014606 | F13: 公立 | G13: [220]新北市板橋區重慶路157號 | H13: (02)29614142 | I13: http://www.hpes.ntpc.edu.tw | J13: 市立後埔國小
A14: =IF(ISERROR(AND(SEARCH(填表!$C$3,C14),SEARCH(填表!$C$2,B14))),"",MAX($A$1:A13)+1) -> 13 | B14: 新北市 | C14: 市立海山國小 | D14: 新北市-市立海山國小 | E14: 014607 | F14: 公立 | G14: [220]新北市板橋區漢生東路280號 | H14: (02)29545725 | I14: http://www.hsps.ntpc.edu.tw | J14: 市立海山國小
A15: =IF(ISERROR(AND(SEARCH(填表!$C$3,C15),SEARCH(填表!$C$2,B15))),"",MAX($A$1:A14)+1) -> 14 | B15: 新北市 | C15: 市立江翠國小 | D15: 新北市-市立江翠國小 | E15: 014608 | F15: 公立 | G15: [220]新北市板橋區松翠里文化路二段413號 | H15: (02)22526880 | I15: http://www.ctes.ntpc.edu.tw | J15: 市立江翠國小 | L15: ②滑鼠點選黃色框右側下拉▼(三角形)， 選擇您欲填寫的學校
A16: =IF(ISERROR(AND(SEARCH(填表!$C$3,C16),SEARCH(填表!$C$2,B16))),"",MAX($A$1:A15)+1) -> 15 | B16: 新北市 | C16: 市立文聖國小 | D16: 新北市-市立文聖國小 | E16: 014610 | F16: 公立 | G16: [220]新北市板橋區文聖街86號 | H16: (02)22530782 | I16: http://www.wses.ntpc.edu.tw | J16: 市立文聖國小
A17: =IF(ISERROR(AND(SEARCH(填表!$C$3,C17),SEARCH(填表!$C$2,B17))),"",MAX($A$1:A16)+1) -> 16 | B17: 新北市 | C17: 市立沙崙國小 | D17: 新北市-市立沙崙國小 | E17: 014611 | F17: 公立 | G17: [220]新北市板橋區篤行路二段132號 | H17: (02)26812764 | I17: http://www.sles.ntpc.edu.tw | J17: 市立沙崙國小
A18: =IF(ISERROR(AND(SEARCH(填表!$C$3,C18),SEARCH(填表!$C$2,B18))),"",MAX($A$1:A17)+1) -> 17 | B18: 新北市 | C18: 市立文德國小 | D18: 新北市-市立文德國小 | E18: 014612 | F18: 公立 | G18: [220]新北市板橋區新翠里英士路179號 | H18: (02)22577193 | I18: http://www.wdps.ntpc.edu.tw | J18: 市立文德國小
A19: =IF(ISERROR(AND(SEARCH(填表!$C$3,C19),SEARCH(填表!$C$2,B19))),"",MAX($A$1:A18)+1) -> 18 | B19: 新北市 | C19: 市立樹林國小 | D19: 新北市-市立樹林國小 | E19: 014613 | F19: 公立 | G19: [238]新北市樹林區樹西里育英街176號 | H19: (02)26812014 | I19: http://www.slps.ntpc.edu.tw | J19: 市立樹林國小
A20: =IF(ISERROR(AND(SEARCH(填表!$C$3,C20),SEARCH(填表!$C$2,B20))),"",MAX($A$1:A19)+1) -> 19 | B20: 新北市 | C20: 市立文林國小 | D20: 新北市-市立文林國小 | E20: 014614 | F20: 公立 | G20: [238]新北市樹林區潭底里千歲街59號 | H20: (02)26812625 | I20: http://www.twles.ntpc.edu.tw | J20: 市立文林國小
A21: =IF(ISERROR(AND(SEARCH(填表!$C$3,C21),SEARCH(填表!$C$2,B21))),"",MAX($A$1:A20)+1) -> 20 | B21: 新北市 | C21: 市立大同國小 | D21: 新北市-市立大同國小 | E21: 014615 | F21: 公立 | G21: [238]新北市樹林區大同里大同街43號 | H21: (02)86865486 | I21: http://www.ttps.ntpc.edu.tw | J21: 市立大同國小
A22: =IF(ISERROR(AND(SEARCH(填表!$C$3,C22),SEARCH(填表!$C$2,B22))),"",MAX($A$1:A21)+1) -> 21 | B22: 新北市 | C22: 市立武林國小 | D22: 新北市-市立武林國小 | E22: 014616 | F22: 公立 | G22: [238]新北市樹林區保安街二段151號 | H22: (02)26812475 | I22: http://www.wles.ntpc.edu.tw | J22: 市立武林國小
A23: =IF(ISERROR(AND(SEARCH(填表!$C$3,C23),SEARCH(填表!$C$2,B23))),"",MAX($A$1:A22)+1) -> 22 | B23: 新北市 | C23: 市立山佳國小 | D23: 新北市-市立山佳國小 | E23: 014617 | F23: 公立 | G23: [238]新北市樹林區中山路三段5號 | H23: (02)26806673 | I23: http://www.sjes.ntpc.edu.tw | J23: 市立山佳國小 | L23: ③顯示如下圖，即完成
A24: =IF(ISERROR(AND(SEARCH(填表!$C$3,C24),SEARCH(填表!$C$2,B24))),"",MAX($A$1:A23)+1) -> 23 | B24: 新北市 | C24: 市立育德國小 | D24: 新北市-市立育德國小 | E24: 014618 | F24: 公立 | G24: [238]新北市樹林區中山里佳園路一段34號 | H24: (02)26805557 | I24: http://www.ytps.ntpc.edu.tw | J24: 市立育德國小
A25: =IF(ISERROR(AND(SEARCH(填表!$C$3,C25),SEARCH(填表!$C$2,B25))),"",MAX($A$1:A24)+1) -> 24 | B25: 新北市 | C25: 市立柑園國小 | D25: 新北市-市立柑園國小 | E25: 014619 | F25: 公立 | G25: [238]新北市樹林區柑園街一段353號 | H25: (02)26802507 | I25: http://www.gyes.ntpc.edu.tw | J25: 市立柑園國小
A26: =IF(ISERROR(AND(SEARCH(填表!$C$3,C26),SEARCH(填表!$C$2,B26))),"",MAX($A$1:A25)+1) -> 25 | B26: 新北市 | C26: 市立鶯歌國小 | D26: 新北市-市立鶯歌國小 | E26: 014620 | F26: 公立 | G26: [239]新北市鶯歌區同慶里尖山埔路106號 | H26: (02)26792038 | I26: http://www.ykes.ntpc.edu.tw | J26: 市立鶯歌國小
A27: =IF(ISERROR(AND(SEARCH(填表!$C$3,C27),SEARCH(填表!$C$2,B27))),"",MAX($A$1:A26)+1) -> 26 | B27: 新北市 | C27: 市立二橋國小 | D27: 新北市-市立二橋國小 | E27: 014621 | F27: 公立 | G27: [239]新北市鶯歌區二橋里中正三路106號 | H27: (02)26792364 | I27: http://www.eqes.ntpc.edu.tw | J27: 市立二橋國小
A28: =IF(ISERROR(AND(SEARCH(填表!$C$3,C28),SEARCH(填表!$C$2,B28))),"",MAX($A$1:A27)+1) -> 27 | B28: 新北市 | C28: 市立中湖國小 | D28: 新北市-市立中湖國小 | E28: 014622 | F28: 公立 | G28: [239]新北市鶯歌區中湖里中湖街25號 | H28: (02)86775640 | I28: http://www.chues.ntpc.edu.tw | J28: 市立中湖國小
A29: =IF(ISERROR(AND(SEARCH(填表!$C$3,C29),SEARCH(填表!$C$2,B29))),"",MAX($A$1:A28)+1) -> 28 | B29: 新北市 | C29: 市立鳳鳴國小 | D29: 新北市-市立鳳鳴國小 | E29: 014623 | F29: 公立 | G29: [239]新北市鶯歌區鳳鳴里永和街120號 | H29: (02)26797554 | I29: http://www.fmes.ntpc.edu.tw | J29: 市立鳳鳴國小
A30: =IF(ISERROR(AND(SEARCH(填表!$C$3,C30),SEARCH(填表!$C$2,B30))),"",MAX($A$1:A29)+1) -> 29 | B30: 新北市 | C30: 市立三峽國小 | D30: 新北市-市立三峽國小 | E30: 014624 | F30: 公立 | G30: [237]新北市三峽區中山路16號 | H30: (02)26711018 | I30: http://www.shps.ntpc.edu.tw | J30: 市立三峽國小
A31: =IF(ISERROR(AND(SEARCH(填表!$C$3,C31),SEARCH(填表!$C$2,B31))),"",MAX($A$1:A30)+1) -> 30 | B31: 新北市 | C31: 市立大埔國小 | D31: 新北市-市立大埔國小 | E31: 014625 | F31: 公立 | G31: [237]新北市三峽區大埔路130號 | H31: (02)26712523 | I31: http://www.tpps.ntpc.edu.tw | J31: 市立大埔國小
A32: =IF(ISERROR(AND(SEARCH(填表!$C$3,C32),SEARCH(填表!$C$2,B32))),"",MAX($A$1:A31)+1) -> 31 | B32: 新北市 | C32: 市立民義國小 | D32: 新北市-市立民義國小 | E32: 014626 | F32: 公立 | G32: [237]新北市三峽區嘉添里白雞路40號 | H32: (02)26711895 | I32: http://www.myes.ntpc.edu.tw/default.asp | J32: 市立民義國小
A33: =IF(ISERROR(AND(SEARCH(填表!$C$3,C33),SEARCH(填表!$C$2,B33))),"",MAX($A$1:A32)+1) -> 32 | B33: 新北市 | C33: 市立成福國小 | D33: 新北市-市立成福國小 | E33: 014627 | F33: 公立 | G33: [237]新北市三峽區溪東里溪東路213號 | H33: (02)86764945 | I33: http://www.chenfu.ntpc.edu.tw | J33: 市立成福國小
A34: =IF(ISERROR(AND(SEARCH(填表!$C$3,C34),SEARCH(填表!$C$2,B34))),"",MAX($A$1:A33)+1) -> 33 | B34: 新北市 | C34: 市立大成國小 | D34: 新北市-市立大成國小 | E34: 014628 | F34: 公立 | G34: [237]新北市三峽區成福路251巷二號 | H34: (02)26726521 | I34: http://www.dces.ntpc.edu.tw | J34: 市立大成國小
A35: =IF(ISERROR(AND(SEARCH(填表!$C$3,C35),SEARCH(填表!$C$2,B35))),"",MAX($A$1:A34)+1) -> 34 | B35: 新北市 | C35: 市立建安國小 | D35: 新北市-市立建安國小 | E35: 014629 | F35: 公立 | G35: [237]新北市三峽區安坑里建安路67號 | H35: (02)26726783 | I35: http://www.caes.ntpc.edu.tw | J35: 市立建安國小
A36: =IF(ISERROR(AND(SEARCH(填表!$C$3,C36),SEARCH(填表!$C$2,B36))),"",MAX($A$1:A35)+1) -> 35 | B36: 新北市 | C36: 市立插角國小 | D36: 新北市-市立插角國小 | E36: 014630 | F36: 公立 | G36: [237]新北市三峽區插角里插角路39號 | H36: (02)26720230 | I36: http://www.cgps.ntpc.edu.tw | J36: 市立插角國小
A37: =IF(ISERROR(AND(SEARCH(填表!$C$3,C37),SEARCH(填表!$C$2,B37))),"",MAX($A$1:A36)+1) -> 36 | B37: 新北市 | C37: 市立有木國小 | D37: 新北市-市立有木國小 | E37: 014631 | F37: 公立 | G37: [237]新北市三峽區有木里131號 | H37: (02)26720067 | I37: http://www.ymps.ntpc.edu.tw | J37: 市立有木國小
A38: =IF(ISERROR(AND(SEARCH(填表!$C$3,C38),SEARCH(填表!$C$2,B38))),"",MAX($A$1:A37)+1) -> 37 | B38: 新北市 | C38: 市立五寮國小 | D38: 新北市-市立五寮國小 | E38: 014632 | F38: 公立 | G38: [237]新北市三峽區五寮里69號 | H38: (02)26720298 | I38: http://www.wres.ntpc.edu.tw | J38: 市立五寮國小
A39: =IF(ISERROR(AND(SEARCH(填表!$C$3,C39),SEARCH(填表!$C$2,B39))),"",MAX($A$1:A38)+1) -> 38 | B39: 新北市 | C39: 市立中和國小 | D39: 新北市-市立中和國小 | E39: 014633 | F39: 公立 | G39: [235]新北市中和區中和路100號 | H39: (02)22492550 | I39: http://www.jhes.ntpc.edu.tw | J39: 市立中和國小
A40: =IF(ISERROR(AND(SEARCH(填表!$C$3,C40),SEARCH(填表!$C$2,B40))),"",MAX($A$1:A39)+1) -> 39 | B40: 新北市 | C40: 市立復興國小 | D40: 新北市-市立復興國小 | E40: 014634 | F40: 公立 | G40: [235]新北市中和區復興路301巷6號 | H40: (02)22472993 | I40: http://www.fsps.ntpc.edu.tw | J40: 市立復興國小
A41: =IF(ISERROR(AND(SEARCH(填表!$C$3,C41),SEARCH(填表!$C$2,B41))),"",MAX($A$1:A40)+1) -> 40 | B41: 新北市 | C41: 市立興南國小 | D41: 新北市-市立興南國小 | E41: 014635 | F41: 公立 | G41: [235]新北市中和區興南路一段135巷24號 | H41: (02)29422349 | I41: http://www.hnps.ntpc.edu.tw | J41: 市立興南國小
A42: =IF(ISERROR(AND(SEARCH(填表!$C$3,C42),SEARCH(填表!$C$2,B42))),"",MAX($A$1:A41)+1) -> 41 | B42: 新北市 | C42: 市立秀山國小 | D42: 新北市-市立秀山國小 | E42: 014636 | F42: 公立 | G42: [235]新北市中和區立人街2號 | H42: (02)29434353 | I42: http://www.ssps.ntpc.edu.tw | J42: 市立秀山國小
A43: =IF(ISERROR(AND(SEARCH(填表!$C$3,C43),SEARCH(填表!$C$2,B43))),"",MAX($A$1:A42)+1) -> 42 | B43: 新北市 | C43: 市立積穗國小 | D43: 新北市-市立積穗國小 | E43: 014637 | F43: 公立 | G43: [235]新北市中和區員山路154號 | H43: (02)22225533 | I43: http://www.tjsps.ntpc.edu.tw | J43: 市立積穗國小
A44: =IF(ISERROR(AND(SEARCH(填表!$C$3,C44),SEARCH(填表!$C$2,B44))),"",MAX($A$1:A43)+1) -> 43 | B44: 新北市 | C44: 市立自強國小 | D44: 新北市-市立自強國小 | E44: 014638 | F44: 公立 | G44: [235]新北市中和區莒光路200號 | H44: (02)29557936 | I44: http://www.jcps.ntpc.edu.tw | J44: 市立自強國小
A45: =IF(ISERROR(AND(SEARCH(填表!$C$3,C45),SEARCH(填表!$C$2,B45))),"",MAX($A$1:A44)+1) -> 44 | B45: 新北市 | C45: 市立錦和國小 | D45: 新北市-市立錦和國小 | E45: 014639 | F45: 公立 | G45: [235]新北市中和區圓通路292號 | H45: (02)22479495 | I45: http://www.chps.ntpc.edu.tw | J45: 市立錦和國小
A46: =IF(ISERROR(AND(SEARCH(填表!$C$3,C46),SEARCH(填表!$C$2,B46))),"",MAX($A$1:A45)+1) -> 45 | B46: 新北市 | C46: 市立景新國小 | D46: 新北市-市立景新國小 | E46: 014640 | F46: 公立 | G46: [235]新北市中和區景新街467巷37號 | H46: (02)29448021 | I46: http://www.jsps.ntpc.edu.tw | J46: 市立景新國小
A47: =IF(ISERROR(AND(SEARCH(填表!$C$3,C47),SEARCH(填表!$C$2,B47))),"",MAX($A$1:A46)+1) -> 46 | B47: 新北市 | C47: 市立永和國小 | D47: 新北市-市立永和國小 | E47: 014641 | F47: 公立 | G47: [234]新北市永和區秀朗路一段120號 | H47: (02)29214615 | I47: http://www.yhes.ntpc.edu.tw | J47: 市立永和國小
A48: =IF(ISERROR(AND(SEARCH(填表!$C$3,C48),SEARCH(填表!$C$2,B48))),"",MAX($A$1:A47)+1) -> 47 | B48: 新北市 | C48: 市立秀朗國小 | D48: 新北市-市立秀朗國小 | E48: 014642 | F48: 公立 | G48: [234]新北市永和區得和路202號 | H48: (02)29420451 | I48: http://www.hles.ntpc.edu.tw | J48: 市立秀朗國小
A49: =IF(ISERROR(AND(SEARCH(填表!$C$3,C49),SEARCH(填表!$C$2,B49))),"",MAX($A$1:A48)+1) -> 48 | B49: 新北市 | C49: 市立頂溪國小 | D49: 新北市-市立頂溪國小 | E49: 014643 | F49: 公立 | G49: [234]新北市永和區文化路133號 | H49: (02)29212058 | I49: http://web2.thps.ntpc.edu.tw/ | J49: 市立頂溪國小
A50: =IF(ISERROR(AND(SEARCH(填表!$C$3,C50),SEARCH(填表!$C$2,B50))),"",MAX($A$1:A49)+1) -> 49 | B50: 新北市 | C50: 市立網溪國小 | D50: 新北市-市立網溪國小 | E50: 014644 | F50: 公立 | G50: [234]新北市永和區竹林路79號 | H50: (02)89264470 | I50: http://www.whps.ntpc.edu.tw | J50: 市立網溪國小
A51: =IF(ISERROR(AND(SEARCH(填表!$C$3,C51),SEARCH(填表!$C$2,B51))),"",MAX($A$1:A50)+1) -> 50 | B51: 新北市 | C51: 市立永平國小 | D51: 新北市-市立永平國小 | E51: 014645 | F51: 公立 | G51: [234]新北市永和區保生路25號 | H51: (02)29259879 | I51: http://www.ypes.ntpc.edu.tw | J51: 市立永平國小
A52: =IF(ISERROR(AND(SEARCH(填表!$C$3,C52),SEARCH(填表!$C$2,B52))),"",MAX($A$1:A51)+1) -> 51 | B52: 新北市 | C52: 市立土城國小 | D52: 新北市-市立土城國小 | E52: 014646 | F52: 公立 | G52: [236]新北市土城區興城路17號 | H52: (02)22700177 | I52: http://www.ttcps.ntpc.edu.tw | J52: 市立土城國小
A53: =IF(ISERROR(AND(SEARCH(填表!$C$3,C53),SEARCH(填表!$C$2,B53))),"",MAX($A$1:A52)+1) -> 52 | B53: 新北市 | C53: 市立清水國小 | D53: 新北市-市立清水國小 | E53: 014647 | F53: 公立 | G53: [236]新北市土城區金城路二段356號 | H53: (02)22618316 | I53: http://www.cses.ntpc.edu.tw | J53: 市立清水國小
A54: =IF(ISERROR(AND(SEARCH(填表!$C$3,C54),SEARCH(填表!$C$2,B54))),"",MAX($A$1:A53)+1) -> 53 | B54: 新北市 | C54: 市立頂埔國小 | D54: 新北市-市立頂埔國小 | E54: 014648 | F54: 公立 | G54: [236]新北市土城區頂福里中央路四段205號 | H54: (02)22686800 | I54: http://www.dpes.ntpc.edu.tw | J54: 市立頂埔國小
A55: =IF(ISERROR(AND(SEARCH(填表!$C$3,C55),SEARCH(填表!$C$2,B55))),"",MAX($A$1:A54)+1) -> 54 | B55: 新北市 | C55: 市立廣福國小 | D55: 新北市-市立廣福國小 | E55: 014649 | F55: 公立 | G55: [236]新北市土城區學府路一段127號 | H55: (02)22626782 | I55: http://www.gfes.ntpc.edu.tw | J55: 市立廣福國小
A56: =IF(ISERROR(AND(SEARCH(填表!$C$3,C56),SEARCH(填表!$C$2,B56))),"",MAX($A$1:A55)+1) -> 55 | B56: 新北市 | C56: 市立汐止國小 | D56: 新北市-市立汐止國小 | E56: 014650 | F56: 公立 | G56: [221]新北市汐止區大同路二段313號 | H56: (02)26477271 | I56: http://www.hjes.ntpc.edu.tw | J56: 市立汐止國小
A57: =IF(ISERROR(AND(SEARCH(填表!$C$3,C57),SEARCH(填表!$C$2,B57))),"",MAX($A$1:A56)+1) -> 56 | B57: 新北市 | C57: 市立長安國小 | D57: 新北市-市立長安國小 | E57: 014651 | F57: 公立 | G57: [221]新北市汐止區長興街一段80號 | H57: (02)86480944 | I57: http://www.chanes.ntpc.edu.tw | J57: 市立長安國小
A58: =IF(ISERROR(AND(SEARCH(填表!$C$3,C58),SEARCH(填表!$C$2,B58))),"",MAX($A$1:A57)+1) -> 57 | B58: 新北市 | C58: 市立保長國小 | D58: 新北市-市立保長國小 | E58: 014652 | F58: 公立 | G58: [221]新北市汐止區大同路三段553號 | H58: (02)86482502 | I58: http://www.bjes.ntpc.edu.tw | J58: 市立保長國小
A59: =IF(ISERROR(AND(SEARCH(填表!$C$3,C59),SEARCH(填表!$C$2,B59))),"",MAX($A$1:A58)+1) -> 58 | B59: 新北市 | C59: 市立崇德國小 | D59: 新北市-市立崇德國小 | E59: 014653 | F59: 公立 | G59: [221]新北市汐止區茄苳里茄苳路158號 | H59: (02)86482052 | I59: http://www.cdps.ntpc.edu.tw | J59: 市立崇德國小
A60: =IF(ISERROR(AND(SEARCH(填表!$C$3,C60),SEARCH(填表!$C$2,B60))),"",MAX($A$1:A59)+1) -> 59 | B60: 新北市 | C60: 市立北港國小 | D60: 新北市-市立北港國小 | E60: 014654 | F60: 公立 | G60: [221]新北市汐止區汐萬路二段279號 | H60: (02)26462832 | I60: http://www.bkes.ntpc.edu.tw | J60: 市立北港國小
A61: =IF(ISERROR(AND(SEARCH(填表!$C$3,C61),SEARCH(填表!$C$2,B61))),"",MAX($A$1:A60)+1) -> 60 | B61: 新北市 | C61: 市立北峰國小 | D61: 新北市-市立北峰國小 | E61: 014655 | F61: 公立 | G61: [221]新北市汐止區中興里環河街1號 | H61: (02)26941817 | I61: http://www.pfes.ntpc.edu.tw | J61: 市立北峰國小
A62: =IF(ISERROR(AND(SEARCH(填表!$C$3,C62),SEARCH(填表!$C$2,B62))),"",MAX($A$1:A61)+1) -> 61 | B62: 新北市 | C62: 市立東山國小 | D62: 新北市-市立東山國小 | E62: 014656 | F62: 公立 | G62: [221]新北市汐止區東山里汐平路二段76號 | H62: (02)26416170 | I62: http://www.dsps.ntpc.edu.tw | J62: 市立東山國小
A63: =IF(ISERROR(AND(SEARCH(填表!$C$3,C63),SEARCH(填表!$C$2,B63))),"",MAX($A$1:A62)+1) -> 62 | B63: 新北市 | C63: 市立白雲國小 | D63: 新北市-市立白雲國小 | E63: 014657 | F63: 公立 | G63: [221]新北市汐止區福山里民權街二段90號 | H63: (02)26403909 | I63: http://www.pyps.ntpc.edu.tw | J63: 市立白雲國小
A64: =IF(ISERROR(AND(SEARCH(填表!$C$3,C64),SEARCH(填表!$C$2,B64))),"",MAX($A$1:A63)+1) -> 63 | B64: 新北市 | C64: 市立萬里國小 | D64: 新北市-市立萬里國小 | E64: 014658 | F64: 公立 | G64: [207]新北市萬里區瑪鋉路18號 | H64: (02)24922034 | I64: http://www.wlps.ntpc.edu.tw | J64: 市立萬里國小
A65: =IF(ISERROR(AND(SEARCH(填表!$C$3,C65),SEARCH(填表!$C$2,B65))),"",MAX($A$1:A64)+1) -> 64 | B65: 新北市 | C65: 市立野柳國小 | D65: 新北市-市立野柳國小 | E65: 014659 | F65: 公立 | G65: [207]新北市萬里區野柳里港東路167號 | H65: (02)24922512 | I65: http://www.ylps.ntpc.edu.tw | J65: 市立野柳國小
A66: =IF(ISERROR(AND(SEARCH(填表!$C$3,C66),SEARCH(填表!$C$2,B66))),"",MAX($A$1:A65)+1) -> 65 | B66: 新北市 | C66: 市立大鵬國小 | D66: 新北市-市立大鵬國小 | E66: 014660 | F66: 公立 | G66: [207]新北市萬里區大鵬里加投路14號 | H66: (02)24988131 | I66: http://www.tpes.ntpc.edu.tw | J66: 市立大鵬國小
A67: =IF(ISERROR(AND(SEARCH(填表!$C$3,C67),SEARCH(填表!$C$2,B67))),"",MAX($A$1:A66)+1) -> 66 | B67: 新北市 | C67: 市立大坪國小 | D67: 新北市-市立大坪國小 | E67: 014661 | F67: 公立 | G67: [207]新北市萬里區雙興里大坪路1號 | H67: (02)24929461 | I67: http://www.dpps.ntpc.edu.tw | J67: =IFERROR(VLOOKUP(ROW(A66),A:C,3,0),"") -> 市立大坪國小
A68: =IF(ISERROR(AND(SEARCH(填表!$C$3,C68),SEARCH(填表!$C$2,B68))),"",MAX($A$1:A67)+1) -> 67 | B68: 新北市 | C68: 市立崁腳國小 | D68: 新北市-市立崁腳國小 | E68: 014662 | F68: 公立 | G68: [207]新北市萬里區崁脚里崁脚路59號 | H68: (02)24922037 | I68: http://www.kjps.ntpc.edu.tw | J68: 市立崁腳國小
A69: =IF(ISERROR(AND(SEARCH(填表!$C$3,C69),SEARCH(填表!$C$2,B69))),"",MAX($A$1:A68)+1) -> 68 | B69: 新北市 | C69: 市立金山國小 | D69: 新北市-市立金山國小 | E69: 014663 | F69: 公立 | G69: [208]新北市金山區中山路234號 | H69: (02)24981125 | I69: http://www.tpcses.ntpc.edu.tw | J69: 市立金山國小
A70: =IF(ISERROR(AND(SEARCH(填表!$C$3,C70),SEARCH(填表!$C$2,B70))),"",MAX($A$1:A69)+1) -> 69 | B70: 新北市 | C70: 市立中角國小 | D70: 新北市-市立中角國小 | E70: 014664 | F70: 公立 | G70: [208]新北市金山區萬壽里海興路49號 | H70: (02)24982413 | I70: http://www.jjps.ntpc.edu.tw | J70: 市立中角國小
A71: =IF(ISERROR(AND(SEARCH(填表!$C$3,C71),SEARCH(填表!$C$2,B71))),"",MAX($A$1:A70)+1) -> 70 | B71: 新北市 | C71: 市立三和國小 | D71: 新北市-市立三和國小 | E71: 014665 | F71: 公立 | G71: [208]新北市金山區重和里十一鄰六股林口38號 | H71: (02)24080417 | I71: http://www.sanho.ntpc.edu.tw | J71: 市立三和國小
A72: =IF(ISERROR(AND(SEARCH(填表!$C$3,C72),SEARCH(填表!$C$2,B72))),"",MAX($A$1:A71)+1) -> 71 | B72: 新北市 | C72: 市立新店國小 | D72: 新北市-市立新店國小 | E72: 014666 | F72: 公立 | G72: [231]新北市新店區新店路2號 | H72: (02)29103483 | I72: http://www.shdes.ntpc.edu.tw | J72: 市立新店國小
A73: =IF(ISERROR(AND(SEARCH(填表!$C$3,C73),SEARCH(填表!$C$2,B73))),"",MAX($A$1:A72)+1) -> 72 | B73: 新北市 | C73: 市立直潭國小 | D73: 新北市-市立直潭國小 | E73: 014667 | F73: 公立 | G73: [231]新北市新店區直潭路92號 | H73: (02)26667278 | I73: http://www.jtes.ntpc.edu.tw | J73: 市立直潭國小
A74: =IF(ISERROR(AND(SEARCH(填表!$C$3,C74),SEARCH(填表!$C$2,B74))),"",MAX($A$1:A73)+1) -> 73 | B74: 新北市 | C74: 市立青潭國小 | D74: 新北市-市立青潭國小 | E74: 014668 | F74: 公立 | G74: [231]新北市新店區北宜路二段80號 | H74: (02)22173146 | I74: http://www.chtes.ntpc.edu.tw | J74: 市立青潭國小
A75: =IF(ISERROR(AND(SEARCH(填表!$C$3,C75),SEARCH(填表!$C$2,B75))),"",MAX($A$1:A74)+1) -> 74 | B75: 新北市 | C75: 市立雙峰國小 | D75: 新北市-市立雙峰國小 | E75: 014669 | F75: 公立 | G75: [231]新北市新店區北宜路三段66號 | H75: (02)22174543 | I75: http://www.sfes.ntpc.edu.tw | J75: 市立雙峰國小
A76: =IF(ISERROR(AND(SEARCH(填表!$C$3,C76),SEARCH(填表!$C$2,B76))),"",MAX($A$1:A75)+1) -> 75 | B76: 新北市 | C76: 市立大豐國小 | D76: 新北市-市立大豐國小 | E76: 014670 | F76: 公立 | G76: [231]新北市新店區民族路108號 | H76: (02)22192619 | I76: http://www.dfes.ntpc.edu.tw | J76: 市立大豐國小
A77: =IF(ISERROR(AND(SEARCH(填表!$C$3,C77),SEARCH(填表!$C$2,B77))),"",MAX($A$1:A76)+1) -> 76 | B77: 新北市 | C77: 市立中正國小 | D77: 新北市-市立中正國小 | E77: 014671 | F77: 公立 | G77: [231]新北市新店區三民路36號 | H77: (02)29125432 | I77: http://www.ccps.ntpc.edu.tw | J77: 市立中正國小
A78: =IF(ISERROR(AND(SEARCH(填表!$C$3,C78),SEARCH(填表!$C$2,B78))),"",MAX($A$1:A77)+1) -> 77 | B78: 新北市 | C78: 市立安坑國小 | D78: 新北市-市立安坑國小 | E78: 014672 | F78: 公立 | G78: [231]新北市新店區安忠路36號 | H78: (02)22110560 | I78: http://www.takes.ntpc.edu.tw | J78: 市立安坑國小
A79: =IF(ISERROR(AND(SEARCH(填表!$C$3,C79),SEARCH(填表!$C$2,B79))),"",MAX($A$1:A78)+1) -> 78 | B79: 新北市 | C79: 市立雙城國小 | D79: 新北市-市立雙城國小 | E79: 014673 | F79: 公立 | G79: [231]新北市新店區安康路三段322號 | H79: (02)22156511 | I79: http://www.tcsps.ntpc.edu.tw | J79: 市立雙城國小
A80: =IF(ISERROR(AND(SEARCH(填表!$C$3,C80),SEARCH(填表!$C$2,B80))),"",MAX($A$1:A79)+1) -> 79 | B80: 新北市 | C80: 市立屈尺國小 | D80: 新北市-市立屈尺國小 | E80: 014674 | F80: 公立 | G80: [231]新北市新店區屈尺路55號 | H80: (02)26667490 | I80: http://www.ccyes.ntpc.edu.tw | J80: 市立屈尺國小
A81: =IF(ISERROR(AND(SEARCH(填表!$C$3,C81),SEARCH(填表!$C$2,B81))),"",MAX($A$1:A80)+1) -> 80 | B81: 新北市 | C81: 市立龜山國小 | D81: 新北市-市立龜山國小 | E81: 014675 | F81: 公立 | G81: [231]新北市新店區新烏路三段99巷10號 | H81: (02)26667317 | I81: http://www.gses.ntpc.edu.tw | J81: 市立龜山國小
A82: =IF(ISERROR(AND(SEARCH(填表!$C$3,C82),SEARCH(填表!$C$2,B82))),"",MAX($A$1:A81)+1) -> 81 | B82: 新北市 | C82: 市立深坑國小 | D82: 新北市-市立深坑國小 | E82: 014676 | F82: 公立 | G82: [222]新北市深坑區深坑里文化街45號 | H82: (02)26624675 | I82: http://www.tskes.ntpc.edu.tw | J82: 市立深坑國小
A83: =IF(ISERROR(AND(SEARCH(填表!$C$3,C83),SEARCH(填表!$C$2,B83))),"",MAX($A$1:A82)+1) -> 82 | B83: 新北市 | C83: 市立石碇國小 | D83: 新北市-市立石碇國小 | E83: 014677 | F83: 公立 | G83: [223]新北市石碇區石碇里石碇西街15號 | H83: (02)26631244 | I83: http://www.stes.ntpc.edu.tw | J83: 市立石碇國小
A84: =IF(ISERROR(AND(SEARCH(填表!$C$3,C84),SEARCH(填表!$C$2,B84))),"",MAX($A$1:A83)+1) -> 83 | B84: 新北市 | C84: 市立和平國小 | D84: 新北市-市立和平國小 | E84: 014678 | F84: 公立 | G84: [223]新北市石碇區隆盛里八分寮5號 | H84: (02)26631405 | I84: http://www.hpps.ntpc.edu.tw | J84: 市立和平國小
A85: =IF(ISERROR(AND(SEARCH(填表!$C$3,C85),SEARCH(填表!$C$2,B85))),"",MAX($A$1:A84)+1) -> 84 | B85: 新北市 | C85: 市立永定國小 | D85: 新北市-市立永定國小 | E85: 014679 | F85: 公立 | G85: [223]新北市石碇區永定里靜安路一段245號 | H85: (02)26631288 | I85: http://www.tydes.ntpc.edu.tw | J85: 市立永定國小
A86: =IF(ISERROR(AND(SEARCH(填表!$C$3,C86),SEARCH(填表!$C$2,B86))),"",MAX($A$1:A85)+1) -> 85 | B86: 新北市 | C86: 市立雲海國小 | D86: 新北市-市立雲海國小 | E86: 014680 | F86: 公立 | G86: [223]新北市石碇區北宜路五段坑內巷1號 | H86: (02)26651715 | I86: http://www.whies.ntpc.edu.tw | J86: 市立雲海國小
A87: =IF(ISERROR(AND(SEARCH(填表!$C$3,C87),SEARCH(填表!$C$2,B87))),"",MAX($A$1:A86)+1) -> 86 | B87: 新北市 | C87: 市立坪林國小 | D87: 新北市-市立坪林國小 | E87: 014682 | F87: 公立 | G87: [232]新北市坪林區坪林里坪林街114號 | H87: (02)26656213 | I87: http://www.plnes.ntpc.edu.tw | J87: 市立坪林國小
A88: =IF(ISERROR(AND(SEARCH(填表!$C$3,C88),SEARCH(填表!$C$2,B88))),"",MAX($A$1:A87)+1) -> 87 | B88: 新北市 | C88: 市立烏來國(中)小 | D88: 新北市-市立烏來國(中)小 | E88: 014684 | F88: 公立 | G88: [233]新北市烏來區啦卡路5號 | H88: (02)26616482 | I88: http://www.wups.ntpc.edu.tw | J88: 市立烏來國(中)小
A89: =IF(ISERROR(AND(SEARCH(填表!$C$3,C89),SEARCH(填表!$C$2,B89))),"",MAX($A$1:A88)+1) -> 88 | B89: 新北市 | C89: 市立福山國小 | D89: 新北市-市立福山國小 | E89: 014685 | F89: 公立 | G89: [233]新北市烏來區福山里李茂岸56號 | H89: (02)26616124 | I89: http://www.fses.ntpc.edu.tw | J89: 市立福山國小
A90: =IF(ISERROR(AND(SEARCH(填表!$C$3,C90),SEARCH(填表!$C$2,B90))),"",MAX($A$1:A89)+1) -> 89 | B90: 新北市 | C90: 市立瑞芳國小 | D90: 新北市-市立瑞芳國小 | E90: 014686 | F90: 公立 | G90: [224]新北市瑞芳區龍川里中山路2號 | H90: (02)24972058 | I90: http://www.rfes.ntpc.edu.tw | J90: 市立瑞芳國小
A91: =IF(ISERROR(AND(SEARCH(填表!$C$3,C91),SEARCH(填表!$C$2,B91))),"",MAX($A$1:A90)+1) -> 90 | B91: 新北市 | C91: 市立義方國小 | D91: 新北市-市立義方國小 | E91: 014687 | F91: 公立 | G91: [224]新北市瑞芳區龍山里逢甲路360號 | H91: (02)24970961 | I91: http://www.jfps.ntpc.edu.tw | J91: 市立義方國小
A92: =IF(ISERROR(AND(SEARCH(填表!$C$3,C92),SEARCH(填表!$C$2,B92))),"",MAX($A$1:A91)+1) -> 91 | B92: 新北市 | C92: 市立瑞柑國小 | D92: 新北市-市立瑞柑國小 | E92: 014688 | F92: 公立 | G92: [224]新北市瑞芳區明燈路一段18巷13號 | H92: (02)24971009 | I92: http://www.rges.ntpc.edu.tw | J92: 市立瑞柑國小
A93: =IF(ISERROR(AND(SEARCH(填表!$C$3,C93),SEARCH(填表!$C$2,B93))),"",MAX($A$1:A92)+1) -> 92 | B93: 新北市 | C93: 市立瑞濱國小 | D93: 新北市-市立瑞濱國小 | E93: 014689 | F93: 公立 | G93: [224]新北市瑞芳區瑞濱路34號 | H93: (02)24978184 | I93: http://www.jpes.ntpc.edu.tw | J93: 市立瑞濱國小
A94: =IF(ISERROR(AND(SEARCH(填表!$C$3,C94),SEARCH(填表!$C$2,B94))),"",MAX($A$1:A93)+1) -> 93 | B94: 新北市 | C94: 市立九份國小 | D94: 新北市-市立九份國小 | E94: 014690 | F94: 公立 | G94: [224]新北市瑞芳區永慶里崙頂路145號 | H94: (02)24972263 | I94: http://www.jfes.ntpc.edu.tw | J94: 市立九份國小
A95: =IF(ISERROR(AND(SEARCH(填表!$C$3,C95),SEARCH(填表!$C$2,B95))),"",MAX($A$1:A94)+1) -> 94 | B95: 新北市 | C95: 市立瓜山國小 | D95: 新北市-市立瓜山國小 | E95: 014691 | F95: 公立 | G95: [224]新北市瑞芳區石山里五號路306號 | H95: (02)24962036 | I95: http://www.gsps.ntpc.edu.tw | J95: 市立瓜山國小
A96: =IF(ISERROR(AND(SEARCH(填表!$C$3,C96),SEARCH(填表!$C$2,B96))),"",MAX($A$1:A95)+1) -> 95 | B96: 新北市 | C96: 市立濂洞國小 | D96: 新北市-市立濂洞國小 | E96: 014692 | F96: 公立 | G96: [224]新北市瑞芳區濓洞里洞頂路101巷80號 | H96: (02)24961330 | I96: http://163.20.89.1 | J96: 市立濂洞國小
A97: =IF(ISERROR(AND(SEARCH(填表!$C$3,C97),SEARCH(填表!$C$2,B97))),"",MAX($A$1:A96)+1) -> 96 | B97: 新北市 | C97: 市立猴硐國小 | D97: 新北市-市立猴硐國小 | E97: 014693 | F97: 公立 | G97: [224]新北市瑞芳區弓橋里九芎橋路69-1號 | H97: (02)24960450 | I97: http://www.htes.ntpc.edu.tw | J97: 市立猴硐國小
A98: =IF(ISERROR(AND(SEARCH(填表!$C$3,C98),SEARCH(填表!$C$2,B98))),"",MAX($A$1:A97)+1) -> 97 | B98: 新北市 | C98: 市立瑞亭國小 | D98: 新北市-市立瑞亭國小 | E98: 014694 | F98: 公立 | G98: [224]新北市瑞芳區四腳亭埔路23號 | H98: (02)24971726 | I98: http://www.rtes.ntpc.edu.tw | J98: 市立瑞亭國小
A99: =IF(ISERROR(AND(SEARCH(填表!$C$3,C99),SEARCH(填表!$C$2,B99))),"",MAX($A$1:A98)+1) -> 98 | B99: 新北市 | C99: 市立吉慶國小 | D99: 新北市-市立吉慶國小 | E99: 014695 | F99: 公立 | G99: [224]新北市瑞芳區吉安里大埔路95號 | H99: (02)24576405 | I99: http://cces.ntpc.edu.tw | J99: 市立吉慶國小
A100: =IF(ISERROR(AND(SEARCH(填表!$C$3,C100),SEARCH(填表!$C$2,B100))),"",MAX($A$1:A99)+1) -> 99 | B100: 新北市 | C100: 市立鼻頭國小 | D100: 新北市-市立鼻頭國小 | E100: 014696 | F100: 公立 | G100: [224]新北市瑞芳區鼻頭里鼻頭路99號 | H100: (02)24911571 | I100: http://www.pitoues.ntpc.edu.tw | J100: 市立鼻頭國小
A101: =IF(ISERROR(AND(SEARCH(填表!$C$3,C101),SEARCH(填表!$C$2,B101))),"",MAX($A$1:A100)+1) -> 100 | B101: 新北市 | C101: 市立雙溪國小 | D101: 新北市-市立雙溪國小 | E101: 014697 | F101: 公立 | G101: [227]新北市雙溪區共和里東榮街54號 | H101: (02)24931005 | I101: http://www.sses.ntpc.edu.tw | J101: 市立雙溪國小
A102: =IF(ISERROR(AND(SEARCH(填表!$C$3,C102),SEARCH(填表!$C$2,B102))),"",MAX($A$1:A101)+1) -> 101 | B102: 新北市 | C102: 市立柑林國小 | D102: 新北市-市立柑林國小 | E102: 014698 | F102: 公立 | G102: [227]新北市雙溪區長源里柑腳3號 | H102: (02)24931624 | I102: http://www.gles.ntpc.edu.tw | J102: 市立柑林國小
A103: =IF(ISERROR(AND(SEARCH(填表!$C$3,C103),SEARCH(填表!$C$2,B103))),"",MAX($A$1:A102)+1) -> 102 | B103: 新北市 | C103: 市立上林國小 | D103: 新北市-市立上林國小 | E103: 014699 | F103: 公立 | G103: [227]新北市雙溪區上林里內平林60號 | H103: (02)24931671 | I103: http://www.ulps.ntpc.edu.tw | J103: 市立上林國小
A104: =IF(ISERROR(AND(SEARCH(填表!$C$3,C104),SEARCH(填表!$C$2,B104))),"",MAX($A$1:A103)+1) -> 103 | B104: 新北市 | C104: 市立牡丹國小 | D104: 新北市-市立牡丹國小 | E104: 014700 | F104: 公立 | G104: [227]新北市雙溪區三貂里政光路3號 | H104: (02)24931240 | I104: http://www.mdps.ntpc.edu.tw | J104: 市立牡丹國小
A105: =IF(ISERROR(AND(SEARCH(填表!$C$3,C105),SEARCH(填表!$C$2,B105))),"",MAX($A$1:A104)+1) -> 104 | B105: 新北市 | C105: 市立貢寮國小 | D105: 新北市-市立貢寮國小 | E105: 014702 | F105: 公立 | G105: [228]新北市貢寮區雙玉里學苑街7號 | H105: (02)24941274 | I105: http://www.kles.ntpc.edu.tw | J105: 市立貢寮國小
A106: =IF(ISERROR(AND(SEARCH(填表!$C$3,C106),SEARCH(填表!$C$2,B106))),"",MAX($A$1:A105)+1) -> 105 | B106: 新北市 | C106: 市立福隆國小 | D106: 新北市-市立福隆國小 | E106: 014703 | F106: 公立 | G106: [228]新北市貢寮區福隆里東興街35號 | H106: (02)24991449 | I106: http://www.flps.ntpc.edu.tw | J106: 市立福隆國小
A107: =IF(ISERROR(AND(SEARCH(填表!$C$3,C107),SEARCH(填表!$C$2,B107))),"",MAX($A$1:A106)+1) -> 106 | B107: 新北市 | C107: 市立澳底國小 | D107: 新北市-市立澳底國小 | E107: 014704 | F107: 公立 | G107: [228]新北市貢寮區真理里延平街10號 | H107: (02)24901432 | I107: http://www.auti.ntpc.edu.tw | J107: 市立澳底國小
A108: =IF(ISERROR(AND(SEARCH(填表!$C$3,C108),SEARCH(填表!$C$2,B108))),"",MAX($A$1:A107)+1) -> 107 | B108: 新北市 | C108: 市立和美國小 | D108: 新北市-市立和美國小 | E108: 014706 | F108: 公立 | G108: [228]新北市貢寮區和美里龍洞街1之9號 | H108: (02)24909431 | I108: http://www.hmps.ntpc.edu.tw | J108: 市立和美國小
A109: =IF(ISERROR(AND(SEARCH(填表!$C$3,C109),SEARCH(填表!$C$2,B109))),"",MAX($A$1:A108)+1) -> 108 | B109: 新北市 | C109: 市立福連國小 | D109: 新北市-市立福連國小 | E109: 014708 | F109: 公立 | G109: [228]新北市貢寮區福連里福連街1號 | H109: (02)24991194 | I109: http://www.fulps.ntpc.edu.tw | J109: 市立福連國小
A110: =IF(ISERROR(AND(SEARCH(填表!$C$3,C110),SEARCH(填表!$C$2,B110))),"",MAX($A$1:A109)+1) -> 109 | B110: 新北市 | C110: 市立平溪國小 | D110: 新北市-市立平溪國小 | E110: 014709 | F110: 公立 | G110: [226]新北市平溪區平溪街56號 | H110: (02)24951038 | I110: http://www.pses.ntpc.edu.tw | J110: 市立平溪國小
A111: =IF(ISERROR(AND(SEARCH(填表!$C$3,C111),SEARCH(填表!$C$2,B111))),"",MAX($A$1:A110)+1) -> 110 | B111: 新北市 | C111: 市立菁桐國小 | D111: 新北市-市立菁桐國小 | E111: 014710 | F111: 公立 | G111: [226]新北市平溪區菁桐街45號 | H111: (02)24951009 | I111: http://www.tgtes.ntpc.edu.tw/ | J111: 市立菁桐國小
A112: =IF(ISERROR(AND(SEARCH(填表!$C$3,C112),SEARCH(填表!$C$2,B112))),"",MAX($A$1:A111)+1) -> 111 | B112: 新北市 | C112: 市立十分國小 | D112: 新北市-市立十分國小 | E112: 014711 | F112: 公立 | G112: [226]新北市平溪區十分里十分街157號 | H112: (02)24958305 | I112: http://www.tsfes.ntpc.edu.tw | J112: 市立十分國小
A113: =IF(ISERROR(AND(SEARCH(填表!$C$3,C113),SEARCH(填表!$C$2,B113))),"",MAX($A$1:A112)+1) -> 112 | B113: 新北市 | C113: 市立淡水國小 | D113: 新北市-市立淡水國小 | E113: 014712 | F113: 公立 | G113: [251]新北市淡水區協元里中山路160號 | H113: (02)26212755 | I113: http://www.tsps.ntpc.edu.tw | J113: 市立淡水國小
A114: =IF(ISERROR(AND(SEARCH(填表!$C$3,C114),SEARCH(填表!$C$2,B114))),"",MAX($A$1:A113)+1) -> 113 | B114: 新北市 | C114: 市立育英國小 | D114: 新北市-市立育英國小 | E114: 014713 | F114: 公立 | G114: [251]新北市淡水區埤島里14號 | H114: (02)26214390 | I114: http://www.yies.ntpc.edu.tw | J114: 市立育英國小
A115: =IF(ISERROR(AND(SEARCH(填表!$C$3,C115),SEARCH(填表!$C$2,B115))),"",MAX($A$1:A114)+1) -> 114 | B115: 新北市 | C115: 市立文化國小 | D115: 新北市-市立文化國小 | E115: 014714 | F115: 公立 | G115: [251]新北市淡水區文化里真理街6號 | H115: (02)26212031 | I115: http://www.twhps.ntpc.edu.tw | J115: 市立文化國小
A116: =IF(ISERROR(AND(SEARCH(填表!$C$3,C116),SEARCH(填表!$C$2,B116))),"",MAX($A$1:A115)+1) -> 115 | B116: 新北市 | C116: 市立天生國小 | D116: 新北市-市立天生國小 | E116: 014715 | F116: 公立 | G116: [251]新北市淡水區淡海路72巷26號 | H116: (02)28052695 | I116: http://www.tisnes.ntpc.edu.tw | J116: 市立天生國小
A117: =IF(ISERROR(AND(SEARCH(填表!$C$3,C117),SEARCH(填表!$C$2,B117))),"",MAX($A$1:A116)+1) -> 116 | B117: 新北市 | C117: 市立水源國小 | D117: 新北市-市立水源國小 | E117: 014716 | F117: 公立 | G117: [251]新北市淡水區水源里北新路二段15號 | H117: (02)26211347 | I117: http://www.hyes.ntpc.edu.tw | J117: 市立水源國小
A118: =IF(ISERROR(AND(SEARCH(填表!$C$3,C118),SEARCH(填表!$C$2,B118))),"",MAX($A$1:A117)+1) -> 117 | B118: 新北市 | C118: 市立興仁國小 | D118: 新北市-市立興仁國小 | E118: 014717 | F118: 公立 | G118: [251]新北市淡水區興仁路101巷10號 | H118: (02)26213783 | I118: http://www.shrens.ntpc.edu.tw | J118: 市立興仁國小
A119: =IF(ISERROR(AND(SEARCH(填表!$C$3,C119),SEARCH(填表!$C$2,B119))),"",MAX($A$1:A118)+1) -> 118 | B119: 新北市 | C119: 市立忠山國小 | D119: 新北市-市立忠山國小 | E119: 014718 | F119: 公立 | G119: [251]新北市淡水區忠山里行忠路899號 | H119: (02)26216139 | I119: http://www.tcses.ntpc.edu.tw | J119: 市立忠山國小
A120: =IF(ISERROR(AND(SEARCH(填表!$C$3,C120),SEARCH(填表!$C$2,B120))),"",MAX($A$1:A119)+1) -> 119 | B120: 新北市 | C120: 市立屯山國小 | D120: 新北市-市立屯山國小 | E120: 014719 | F120: 公立 | G120: [251]新北市淡水區淡金路五段111號 | H120: (02)28012591 | I120: http://www.ttses.ntpc.edu.tw | J120: 市立屯山國小
A121: =IF(ISERROR(AND(SEARCH(填表!$C$3,C121),SEARCH(填表!$C$2,B121))),"",MAX($A$1:A120)+1) -> 120 | B121: 新北市 | C121: 市立中泰國小 | D121: 新北市-市立中泰國小 | E121: 014720 | F121: 公立 | G121: [251]新北市淡水區中和里北勢子5號 | H121: (02)28012033 | I121: http://www.ctps.ntpc.edu.tw | J121: 市立中泰國小
A122: =IF(ISERROR(AND(SEARCH(填表!$C$3,C122),SEARCH(填表!$C$2,B122))),"",MAX($A$1:A121)+1) -> 121 | B122: 新北市 | C122: 市立坪頂國小 | D122: 新北市-市立坪頂國小 | E122: 014721 | F122: 公立 | G122: [251]新北市淡水區坪頂路757號 | H122: (02)86263105 | I122: http://www.pdes.ntpc.edu.tw | J122: 市立坪頂國小
A123: =IF(ISERROR(AND(SEARCH(填表!$C$3,C123),SEARCH(填表!$C$2,B123))),"",MAX($A$1:A122)+1) -> 122 | B123: 新北市 | C123: 市立竹圍國小 | D123: 新北市-市立竹圍國小 | E123: 014722 | F123: 公立 | G123: [251]新北市淡水區中正東路二段145號 | H123: (02)28091475 | I123: http://www.cwps.ntpc.edu.tw | J123: 市立竹圍國小
A124: =IF(ISERROR(AND(SEARCH(填表!$C$3,C124),SEARCH(填表!$C$2,B124))),"",MAX($A$1:A123)+1) -> 123 | B124: 新北市 | C124: 市立石門國小 | D124: 新北市-市立石門國小 | E124: 014723 | F124: 公立 | G124: [253]新北市石門區尖鹿里中央路9號 | H124: (02)26381263 | I124: http://www.smes.ntpc.edu.tw | J124: 市立石門國小
A125: =IF(ISERROR(AND(SEARCH(填表!$C$3,C125),SEARCH(填表!$C$2,B125))),"",MAX($A$1:A124)+1) -> 124 | B125: 新北市 | C125: 市立乾華國小 | D125: 新北市-市立乾華國小 | E125: 014724 | F125: 公立 | G125: [253]新北市石門區茂林里茂林社區74號 | H125: (02)26381269 | I125: http://www.cwes.ntpc.edu.tw/ | J125: 市立乾華國小
A126: =IF(ISERROR(AND(SEARCH(填表!$C$3,C126),SEARCH(填表!$C$2,B126))),"",MAX($A$1:A125)+1) -> 125 | B126: 新北市 | C126: 市立老梅國小 | D126: 新北市-市立老梅國小 | E126: 014725 | F126: 公立 | G126: [253]新北市石門區老梅里老梅路10號 | H126: (02)26381258 | I126: http://www.lmes.ntpc.edu.tw | J126: 市立老梅國小
A127: =IF(ISERROR(AND(SEARCH(填表!$C$3,C127),SEARCH(填表!$C$2,B127))),"",MAX($A$1:A126)+1) -> 126 | B127: 新北市 | C127: 市立三芝國小 | D127: 新北市-市立三芝國小 | E127: 014726 | F127: 公立 | G127: [252]新北市三芝區埔頭里育英街22號 | H127: (02)26362005 | I127: http://www.sces.ntpc.edu.tw | J127: 市立三芝國小
A128: =IF(ISERROR(AND(SEARCH(填表!$C$3,C128),SEARCH(填表!$C$2,B128))),"",MAX($A$1:A127)+1) -> 127 | B128: 新北市 | C128: 市立橫山國小 | D128: 新北市-市立橫山國小 | E128: 014727 | F128: 公立 | G128: [252]新北市三芝區橫山里86號 | H128: (02)26362473 | I128: http://www.hses.ntpc.edu.tw | J128: 市立橫山國小
A129: =IF(ISERROR(AND(SEARCH(填表!$C$3,C129),SEARCH(填表!$C$2,B129))),"",MAX($A$1:A128)+1) -> 128 | B129: 新北市 | C129: 市立興華國小 | D129: 新北市-市立興華國小 | E129: 014728 | F129: 公立 | G129: [252]新北市三芝區興華里5號 | H129: (02)26371366 | I129: http://www.hhes.ntpc.edu.tw | J129: 市立興華國小
A130: =IF(ISERROR(AND(SEARCH(填表!$C$3,C130),SEARCH(填表!$C$2,B130))),"",MAX($A$1:A129)+1) -> 129 | B130: 新北市 | C130: 市立新莊國小 | D130: 新北市-市立新莊國小 | E130: 014729 | F130: 公立 | G130: [242]新北市新莊區立人里中正路86號 | H130: (02)29931201 | I130: http://www.scps.ntpc.edu.tw | J130: 市立新莊國小
A131: =IF(ISERROR(AND(SEARCH(填表!$C$3,C131),SEARCH(填表!$C$2,B131))),"",MAX($A$1:A130)+1) -> 130 | B131: 新北市 | C131: 市立中港國小 | D131: 新北市-市立中港國小 | E131: 014730 | F131: 公立 | G131: [242]新北市新莊區立志里中港一街142號 | H131: (02)29925550 | I131: http://www.jgps.ntpc.edu.tw | J131: =IFERROR(VLOOKUP(ROW(A130),A:C,3,0),"") -> 市立中港國小
A132: =IF(ISERROR(AND(SEARCH(填表!$C$3,C132),SEARCH(填表!$C$2,B132))),"",MAX($A$1:A131)+1) -> 131 | B132: 新北市 | C132: 市立思賢國小 | D132: 新北市-市立思賢國小 | E132: 014731 | F132: 公立 | G132: [242]新北市新莊區自立街229號 | H132: (02)29980443 | I132: http://www.sies.ntpc.edu.tw | J132: 市立思賢國小
A133: =IF(ISERROR(AND(SEARCH(填表!$C$3,C133),SEARCH(填表!$C$2,B133))),"",MAX($A$1:A132)+1) -> 132 | B133: 新北市 | C133: 市立頭前國小 | D133: 新北市-市立頭前國小 | E133: 014732 | F133: 公立 | G133: [242]新北市新莊區頭前里化成路231號 | H133: (02)29920238 | I133: http://www.tcps.ntpc.edu.tw | J133: 市立頭前國小
A134: =IF(ISERROR(AND(SEARCH(填表!$C$3,C134),SEARCH(填表!$C$2,B134))),"",MAX($A$1:A133)+1) -> 133 | B134: 新北市 | C134: 市立國泰國小 | D134: 新北市-市立國泰國小 | E134: 014733 | F134: 公立 | G134: [242]新北市新莊區中正路386號 | H134: (02)29043693 | I134: http://www.gtps.ntpc.edu.tw | J134: 市立國泰國小
A135: =IF(ISERROR(AND(SEARCH(填表!$C$3,C135),SEARCH(填表!$C$2,B135))),"",MAX($A$1:A134)+1) -> 134 | B135: 新北市 | C135: 市立豐年國小 | D135: 新北市-市立豐年國小 | E135: 014734 | F135: 公立 | G135: [242]新北市新莊區國泰里瓊泰路116號 | H135: (02)22017102 | I135: http://www.fnes.ntpc.edu.tw | J135: 市立豐年國小
A136: =IF(ISERROR(AND(SEARCH(填表!$C$3,C136),SEARCH(填表!$C$2,B136))),"",MAX($A$1:A135)+1) -> 135 | B136: 新北市 | C136: 市立丹鳳國小 | D136: 新北市-市立丹鳳國小 | E136: 014735 | F136: 公立 | G136: [242]新北市新莊區新北大道七段437號 | H136: (02)29035355 | I136: http://163.20.170.180/ | J136: 市立丹鳳國小
A137: =IF(ISERROR(AND(SEARCH(填表!$C$3,C137),SEARCH(填表!$C$2,B137))),"",MAX($A$1:A136)+1) -> 136 | B137: 新北市 | C137: 市立光華國小 | D137: 新北市-市立光華國小 | E137: 014736 | F137: 公立 | G137: [242]新北市新莊區龍安路452號 | H137: (02)22058866 | I137: http://www.ghes.ntpc.edu.tw | J137: 市立光華國小
A138: =IF(ISERROR(AND(SEARCH(填表!$C$3,C138),SEARCH(填表!$C$2,B138))),"",MAX($A$1:A137)+1) -> 137 | B138: 新北市 | C138: 市立民安國小 | D138: 新北市-市立民安國小 | E138: 014737 | F138: 公立 | G138: [242]新北市新莊區民全里民安路二六一號 | H138: (02)22056777 | I138: http://www.maes.ntpc.edu.tw | J138: 市立民安國小
A139: =IF(ISERROR(AND(SEARCH(填表!$C$3,C139),SEARCH(填表!$C$2,B139))),"",MAX($A$1:A138)+1) -> 138 | B139: 新北市 | C139: 市立昌隆國小 | D139: 新北市-市立昌隆國小 | E139: 014738 | F139: 公立 | G139: [242]新北市新莊區昌隆街63號 | H139: (02)29962351 | I139: http://www.clps.ntpc.edu.tw | J139: 市立昌隆國小
A140: =IF(ISERROR(AND(SEARCH(填表!$C$3,C140),SEARCH(填表!$C$2,B140))),"",MAX($A$1:A139)+1) -> 139 | B140: 新北市 | C140: 市立泰山國小 | D140: 新北市-市立泰山國小 | E140: 014739 | F140: 公立 | G140: [243]新北市泰山區泰林路二段255號 | H140: (02)29098842 | I140: http://www.tses.ntpc.edu.tw | J140: 市立泰山國小
A141: =IF(ISERROR(AND(SEARCH(填表!$C$3,C141),SEARCH(填表!$C$2,B141))),"",MAX($A$1:A140)+1) -> 140 | B141: 新北市 | C141: 市立明志國小 | D141: 新北市-市立明志國小 | E141: 014740 | F141: 公立 | G141: [243]新北市泰山區新生路2號 | H141: (02)29061133 | I141: http://www.mjes.ntpc.edu.tw | J141: 市立明志國小
A142: =IF(ISERROR(AND(SEARCH(填表!$C$3,C142),SEARCH(填表!$C$2,B142))),"",MAX($A$1:A141)+1) -> 141 | B142: 新北市 | C142: 市立成州國小 | D142: 新北市-市立成州國小 | E142: 014741 | F142: 公立 | G142: [248]新北市五股區成泰路三段493號 | H142: (02)22933613 | I142: http://www.cjoes.ntpc.edu.tw | J142: 市立成州國小
A143: =IF(ISERROR(AND(SEARCH(填表!$C$3,C143),SEARCH(填表!$C$2,B143))),"",MAX($A$1:A142)+1) -> 142 | B143: 新北市 | C143: 市立更寮國小 | D143: 新北市-市立更寮國小 | E143: 014742 | F143: 公立 | G143: [248]新北市五股區四維路2號 | H143: (02)29824591 | I143: http://www.glps.ntpc.edu.tw | J143: 市立更寮國小
A144: =IF(ISERROR(AND(SEARCH(填表!$C$3,C144),SEARCH(填表!$C$2,B144))),"",MAX($A$1:A143)+1) -> 143 | B144: 新北市 | C144: 市立五股國小 | D144: 新北市-市立五股國小 | E144: 014743 | F144: 公立 | G144: [248]新北市五股區五股里成泰路二段49號 | H144: (02)22917191 | I144: http://www.wkes.ntpc.edu.tw | J144: 市立五股國小
A145: =IF(ISERROR(AND(SEARCH(填表!$C$3,C145),SEARCH(填表!$C$2,B145))),"",MAX($A$1:A144)+1) -> 144 | B145: 新北市 | C145: 市立蘆洲國小 | D145: 新北市-市立蘆洲國小 | E145: 014744 | F145: 公立 | G145: [247]新北市蘆洲區中正路100號 | H145: (02)22816202 | I145: http://www.lces.ntpc.edu.tw | J145: 市立蘆洲國小
A146: =IF(ISERROR(AND(SEARCH(填表!$C$3,C146),SEARCH(填表!$C$2,B146))),"",MAX($A$1:A145)+1) -> 145 | B146: 新北市 | C146: 市立鷺江國小 | D146: 新北市-市立鷺江國小 | E146: 014745 | F146: 公立 | G146: [247]新北市蘆洲區民族路7號 | H146: (02)22819980 | I146: http://www.lcps.ntpc.edu.tw | J146: 市立鷺江國小
A147: =IF(ISERROR(AND(SEARCH(填表!$C$3,C147),SEARCH(填表!$C$2,B147))),"",MAX($A$1:A146)+1) -> 146 | B147: 新北市 | C147: 市立八里國小 | D147: 新北市-市立八里國小 | E147: 014746 | F147: 公立 | G147: [249]新北市八里區舊城里中山路二段338號 | H147: (02)26102217 | I147: http://www.ples.ntpc.edu.tw | J147: 市立八里國小
A148: =IF(ISERROR(AND(SEARCH(填表!$C$3,C148),SEARCH(填表!$C$2,B148))),"",MAX($A$1:A147)+1) -> 147 | B148: 新北市 | C148: 市立長坑國小 | D148: 新北市-市立長坑國小 | E148: 014747 | F148: 公立 | G148: [249]新北市八里區中華路三段236號 | H148: (02)26102037 | I148: http://www.ckes.ntpc.edu.tw | J148: 市立長坑國小
A149: =IF(ISERROR(AND(SEARCH(填表!$C$3,C149),SEARCH(填表!$C$2,B149))),"",MAX($A$1:A148)+1) -> 148 | B149: 新北市 | C149: 市立米倉國小 | D149: 新北市-市立米倉國小 | E149: 014748 | F149: 公立 | G149: [249]新北市八里區米倉里龍米路2段129巷1號 | H149: (02)26182202 | I149: http://www.mtes.ntpc.edu.tw | J149: 市立米倉國小
A150: =IF(ISERROR(AND(SEARCH(填表!$C$3,C150),SEARCH(填表!$C$2,B150))),"",MAX($A$1:A149)+1) -> 149 | B150: 新北市 | C150: 市立林口國小 | D150: 新北市-市立林口國小 | E150: 014749 | F150: 公立 | G150: [244]新北市林口區菁湖里林口路76號 | H150: (02)26011010 | I150: http://www.lkes.ntpc.edu.tw | J150: 市立林口國小
A151: =IF(ISERROR(AND(SEARCH(填表!$C$3,C151),SEARCH(填表!$C$2,B151))),"",MAX($A$1:A150)+1) -> 150 | B151: 新北市 | C151: 市立南勢國小 | D151: 新北市-市立南勢國小 | E151: 014750 | F151: 公立 | G151: [244]新北市林口區南勢五街2號 | H151: (02)26091020 | I151: http://www.nses.ntpc.edu.tw | J151: 市立南勢國小
A152: =IF(ISERROR(AND(SEARCH(填表!$C$3,C152),SEARCH(填表!$C$2,B152))),"",MAX($A$1:A151)+1) -> 151 | B152: 新北市 | C152: 市立嘉寶國小 | D152: 新北市-市立嘉寶國小 | E152: 014751 | F152: 公立 | G152: [244]新北市林口區嘉寶里22號 | H152: (02)26052716 | I152: http://www.jbes.ntpc.edu.tw | J152: 市立嘉寶國小
A153: =IF(ISERROR(AND(SEARCH(填表!$C$3,C153),SEARCH(填表!$C$2,B153))),"",MAX($A$1:A152)+1) -> 152 | B153: 新北市 | C153: 市立瑞平國小 | D153: 新北市-市立瑞平國小 | E153: 014752 | F153: 公立 | G153: [244]新北市林口區太平里後坑路34之1號 | H153: (02)26052779 | I153: http://www.rpes.ntpc.edu.tw | J153: 市立瑞平國小
A154: =IF(ISERROR(AND(SEARCH(填表!$C$3,C154),SEARCH(填表!$C$2,B154))),"",MAX($A$1:A153)+1) -> 153 | B154: 新北市 | C154: 市立興福國小 | D154: 新北市-市立興福國小 | E154: 014753 | F154: 公立 | G154: [244]新北市林口區下福里20鄰一○之一號 | H154: (02)26062895 | I154: http://www.hfps.ntpc.edu.tw | J154: 市立興福國小
A155: =IF(ISERROR(AND(SEARCH(填表!$C$3,C155),SEARCH(填表!$C$2,B155))),"",MAX($A$1:A154)+1) -> 154 | B155: 新北市 | C155: 市立三重國小 | D155: 新北市-市立三重國小 | E155: 014754 | F155: 公立 | G155: [241]新北市三重區三和路三段1號 | H155: (02)29722095 | I155: http://www.tsces.ntpc.edu.tw | J155: 市立三重國小
A156: =IF(ISERROR(AND(SEARCH(填表!$C$3,C156),SEARCH(填表!$C$2,B156))),"",MAX($A$1:A155)+1) -> 155 | B156: 新北市 | C156: 市立永福國小 | D156: 新北市-市立永福國小 | E156: 014755 | F156: 公立 | G156: [241]新北市三重區永福里永福街66號 | H156: (02)22876716 | I156: http://www.yfps.ntpc.edu.tw | J156: 市立永福國小
A157: =IF(ISERROR(AND(SEARCH(填表!$C$3,C157),SEARCH(填表!$C$2,B157))),"",MAX($A$1:A156)+1) -> 156 | B157: 新北市 | C157: 市立光榮國小 | D157: 新北市-市立光榮國小 | E157: 014756 | F157: 公立 | G157: [241]新北市三重區介壽路32號 | H157: (02)29730392 | I157: http://www.kjpps.ntpc.edu.tw | J157: 市立光榮國小
A158: =IF(ISERROR(AND(SEARCH(填表!$C$3,C158),SEARCH(填表!$C$2,B158))),"",MAX($A$1:A157)+1) -> 157 | B158: 新北市 | C158: 市立厚德國小 | D158: 新北市-市立厚德國小 | E158: 014757 | F158: 公立 | G158: [241]新北市三重區忠孝路一段70號 | H158: (02)29868825 | I158: http://www.hdes.ntpc.edu.tw | J158: 市立厚德國小
A159: =IF(ISERROR(AND(SEARCH(填表!$C$3,C159),SEARCH(填表!$C$2,B159))),"",MAX($A$1:A158)+1) -> 158 | B159: 新北市 | C159: 市立碧華國小 | D159: 新北市-市立碧華國小 | E159: 014758 | F159: 公立 | G159: [241]新北市三重區五華街160號 | H159: (02)28577792 | I159: http://www.bhes.ntpc.edu.tw | J159: 市立碧華國小
A160: =IF(ISERROR(AND(SEARCH(填表!$C$3,C160),SEARCH(填表!$C$2,B160))),"",MAX($A$1:A159)+1) -> 159 | B160: 新北市 | C160: 市立三光國小 | D160: 新北市-市立三光國小 | E160: 014759 | F160: 公立 | G160: [241]新北市三重區同安里大同南路157號 | H160: (02)29753308 | I160: http://www.skes.ntpc.edu.tw | J160: 市立三光國小
A161: =IF(ISERROR(AND(SEARCH(填表!$C$3,C161),SEARCH(填表!$C$2,B161))),"",MAX($A$1:A160)+1) -> 160 | B161: 新北市 | C161: 市立光興國小 | D161: 新北市-市立光興國小 | E161: 014760 | F161: 公立 | G161: [241]新北市三重區正義南路62號 | H161: (02)29755352 | I161: http://www.kses.ntpc.edu.tw | J161: 市立光興國小
A162: =IF(ISERROR(AND(SEARCH(填表!$C$3,C162),SEARCH(填表!$C$2,B162))),"",MAX($A$1:A161)+1) -> 161 | B162: 新北市 | C162: 市立正義國小 | D162: 新北市-市立正義國小 | E162: 014761 | F162: 公立 | G162: [241]新北市三重區信義西街31號 | H162: (02)29853138 | I162: http://www.jyes.ntpc.edu.tw | J162: 市立正義國小
A163: =IF(ISERROR(AND(SEARCH(填表!$C$3,C163),SEARCH(填表!$C$2,B163))),"",MAX($A$1:A162)+1) -> 162 | B163: 新北市 | C163: 市立修德國小 | D163: 新北市-市立修德國小 | E163: 014762 | F163: 公立 | G163: [241]新北市三重區重陽路三段3號 | H163: (02)29800495 | I163: http://www.sude.ntpc.edu.tw | J163: 市立修德國小
A164: =IF(ISERROR(AND(SEARCH(填表!$C$3,C164),SEARCH(填表!$C$2,B164))),"",MAX($A$1:A163)+1) -> 163 | B164: 新北市 | C164: 市立二重國小 | D164: 新北市-市立二重國小 | E164: 014763 | F164: 公立 | G164: [241]新北市三重區二重里大有街10號 | H164: (02)29846446 | I164: http://www.eces.ntpc.edu.tw | J164: 市立二重國小
A165: =IF(ISERROR(AND(SEARCH(填表!$C$3,C165),SEARCH(填表!$C$2,B165))),"",MAX($A$1:A164)+1) -> 164 | B165: 新北市 | C165: 市立興穀國小 | D165: 新北市-市立興穀國小 | E165: 014764 | F165: 公立 | G165: [241]新北市三重區五谷王北街46號 | H165: (02)29990725 | I165: http://www.skps.ntpc.edu.tw | J165: 市立興穀國小
A166: =IF(ISERROR(AND(SEARCH(填表!$C$3,C166),SEARCH(填表!$C$2,B166))),"",MAX($A$1:A165)+1) -> 165 | B166: 新北市 | C166: 市立興化國小 | D166: 新北市-市立興化國小 | E166: 014765 | F166: 公立 | G166: [248]新北市新莊區福興里五工二路50巷2號 | H166: (02)22991001 | I166: http://www.tshes.ntpc.edu.tw | J166: 市立興化國小
A167: =IF(ISERROR(AND(SEARCH(填表!$C$3,C167),SEARCH(填表!$C$2,B167))),"",MAX($A$1:A166)+1) -> 166 | B167: 新北市 | C167: 市立中山國小 | D167: 新北市-市立中山國小 | E167: 014766 | F167: 公立 | G167: [220]新北市板橋區大觀路二段59巷31號 | H167: (02)22755313 | I167: http://www.jshps.ntpc.edu.tw | J167: 市立中山國小
A168: =IF(ISERROR(AND(SEARCH(填表!$C$3,C168),SEARCH(填表!$C$2,B168))),"",MAX($A$1:A167)+1) -> 167 | B168: 新北市 | C168: 市立三多國小 | D168: 新北市-市立三多國小 | E168: 014767 | F168: 公立 | G168: [238]新北市樹林區三福街52號 | H168: (02)26880698 | I168: http://www.sdes.ntpc.edu.tw | J168: 市立三多國小
A169: =IF(ISERROR(AND(SEARCH(填表!$C$3,C169),SEARCH(填表!$C$2,B169))),"",MAX($A$1:A168)+1) -> 168 | B169: 新北市 | C169: 市立實踐國小 | D169: 新北市-市立實踐國小 | E169: 014768 | F169: 公立 | G169: [220]新北市板橋區實踐路93巷51號 | H169: (02)29531233 | I169: http://www.sjps.ntpc.edu.tw | J169: 市立實踐國小
A170: =IF(ISERROR(AND(SEARCH(填表!$C$3,C170),SEARCH(填表!$C$2,B170))),"",MAX($A$1:A169)+1) -> 169 | B170: 新北市 | C170: 市立大觀國小 | D170: 新北市-市立大觀國小 | E170: 014769 | F170: 公立 | G170: [220]新北市板橋區大觀路一段30號 | H170: (02)29603373 | I170: http://www.tgps.ntpc.edu.tw | J170: 市立大觀國小
A171: =IF(ISERROR(AND(SEARCH(填表!$C$3,C171),SEARCH(填表!$C$2,B171))),"",MAX($A$1:A170)+1) -> 170 | B171: 新北市 | C171: 市立溪洲國小 | D171: 新北市-市立溪洲國小 | E171: 014770 | F171: 公立 | G171: [220]新北市板橋區金門街289號 | H171: (02)26867705 | I171: http://www.sips.ntpc.edu.tw | J171: 市立溪洲國小
A172: =IF(ISERROR(AND(SEARCH(填表!$C$3,C172),SEARCH(填表!$C$2,B172))),"",MAX($A$1:A171)+1) -> 171 | B172: 新北市 | C172: 市立信義國小 | D172: 新北市-市立信義國小 | E172: 014771 | F172: 公立 | G172: [220]新北市板橋區四川路二段245巷60號 | H172: (02)89667817 | I172: http://www.thyes.ntpc.edu.tw | J172: 市立信義國小
A173: =IF(ISERROR(AND(SEARCH(填表!$C$3,C173),SEARCH(填表!$C$2,B173))),"",MAX($A$1:A172)+1) -> 172 | B173: 新北市 | C173: 市立重慶國小 | D173: 新北市-市立重慶國小 | E173: 014772 | F173: 公立 | G173: [220]新北市板橋區廣和街31號 | H173: (02)29565592 | I173: http://www.cges.ntpc.edu.tw | J173: 市立重慶國小
A174: =IF(ISERROR(AND(SEARCH(填表!$C$3,C174),SEARCH(填表!$C$2,B174))),"",MAX($A$1:A173)+1) -> 173 | B174: 新北市 | C174: 市立樂利國小 | D174: 新北市-市立樂利國小 | E174: 014773 | F174: 公立 | G174: [236]新北市土城區裕生路65號 | H174: (02)22662568 | I174: http://www.llps.ntpc.edu.tw | J174: 市立樂利國小
A175: =IF(ISERROR(AND(SEARCH(填表!$C$3,C175),SEARCH(填表!$C$2,B175))),"",MAX($A$1:A174)+1) -> 174 | B175: 新北市 | C175: 市立安和國小 | D175: 新北市-市立安和國小 | E175: 014774 | F175: 公立 | G175: [236]新北市土城區延和路23號 | H175: (02)22603451 | I175: http://www.anhoes.ntpc.edu.tw | J175: 市立安和國小
A176: =IF(ISERROR(AND(SEARCH(填表!$C$3,C176),SEARCH(填表!$C$2,B176))),"",MAX($A$1:A175)+1) -> 175 | B176: 新北市 | C176: 市立彭福國小 | D176: 新北市-市立彭福國小 | E176: 014775 | F176: 公立 | G176: [238]新北市樹林區忠孝街30號 | H176: (02)86866589 | I176: http://www.pfps.ntpc.edu.tw | J176: 市立彭福國小
A177: =IF(ISERROR(AND(SEARCH(填表!$C$3,C177),SEARCH(填表!$C$2,B177))),"",MAX($A$1:A176)+1) -> 176 | B177: 新北市 | C177: 市立育林國小 | D177: 新北市-市立育林國小 | E177: 014776 | F177: 公立 | G177: [238]新北市樹林區復興路395號 | H177: (02)26832112 | I177: http://www.yles.ntpc.edu.tw | J177: 市立育林國小
A178: =IF(ISERROR(AND(SEARCH(填表!$C$3,C178),SEARCH(填表!$C$2,B178))),"",MAX($A$1:A177)+1) -> 177 | B178: 新北市 | C178: 市立建國國小 | D178: 新北市-市立建國國小 | E178: 014777 | F178: 公立 | G178: [239]新北市鶯歌區育英街2號 | H178: (02)26709228 | I178: http://www.ckps.ntpc.edu.tw | J178: 市立建國國小
A179: =IF(ISERROR(AND(SEARCH(填表!$C$3,C179),SEARCH(填表!$C$2,B179))),"",MAX($A$1:A178)+1) -> 178 | B179: 新北市 | C179: 市立安溪國小 | D179: 新北市-市立安溪國小 | E179: 014778 | F179: 公立 | G179: [237]新北市三峽區中華路42號 | H179: (02)26731488 | I179: http://www.ases.ntpc.edu.tw | J179: 市立安溪國小
A180: =IF(ISERROR(AND(SEARCH(填表!$C$3,C180),SEARCH(填表!$C$2,B180))),"",MAX($A$1:A179)+1) -> 179 | B180: 新北市 | C180: 市立樟樹國小 | D180: 新北市-市立樟樹國小 | E180: 014779 | F180: 公立 | G180: [221]新北市汐止區樟樹一路141巷2號 | H180: (02)26421407 | I180: http://www.tctes.ntpc.edu.tw | J180: 市立樟樹國小
A181: =IF(ISERROR(AND(SEARCH(填表!$C$3,C181),SEARCH(填表!$C$2,B181))),"",MAX($A$1:A180)+1) -> 180 | B181: 新北市 | C181: 市立金美國小 | D181: 新北市-市立金美國小 | E181: 014780 | F181: 公立 | G181: [208]新北市金山區忠孝一路111號 | H181: (02)24986503 | I181: http://www.gmes.ntpc.edu.tw | J181: 市立金美國小
A182: =IF(ISERROR(AND(SEARCH(填表!$C$3,C182),SEARCH(填表!$C$2,B182))),"",MAX($A$1:A181)+1) -> 181 | B182: 新北市 | C182: 市立新和國小 | D182: 新北市-市立新和國小 | E182: 014781 | F182: 公立 | G182: [231]新北市新店區安和路三段100號 | H182: (02)29400170 | I182: http://www.hhps.ntpc.edu.tw | J182: 市立新和國小
A183: =IF(ISERROR(AND(SEARCH(填表!$C$3,C183),SEARCH(填表!$C$2,B183))),"",MAX($A$1:A182)+1) -> 182 | B183: 新北市 | C183: 市立鄧公國小 | D183: 新北市-市立鄧公國小 | E183: 014782 | F183: 公立 | G183: [251]新北市淡水區學府里學府路99號 | H183: (02)26297121 | I183: http://www.dkes.ntpc.edu.tw | J183: 市立鄧公國小
A184: =IF(ISERROR(AND(SEARCH(填表!$C$3,C184),SEARCH(填表!$C$2,B184))),"",MAX($A$1:A183)+1) -> 183 | B184: 新北市 | C184: 市立新興國小 | D184: 新北市-市立新興國小 | E184: 014783 | F184: 公立 | G184: [251]新北市淡水區新興街123號 | H184: (02)26203645 | I184: http://www.shes.ntpc.edu.tw | J184: 市立新興國小
A185: =IF(ISERROR(AND(SEARCH(填表!$C$3,C185),SEARCH(填表!$C$2,B185))),"",MAX($A$1:A184)+1) -> 184 | B185: 新北市 | C185: 市立重陽國小 | D185: 新北市-市立重陽國小 | E185: 014784 | F185: 公立 | G185: [241]新北市三重區中正北路113號 | H185: (02)29826272 | I185: http://www.cyps.ntpc.edu.tw | J185: 市立重陽國小
A186: =IF(ISERROR(AND(SEARCH(填表!$C$3,C186),SEARCH(填表!$C$2,B186))),"",MAX($A$1:A185)+1) -> 185 | B186: 新北市 | C186: 市立五華國小 | D186: 新北市-市立五華國小 | E186: 014785 | F186: 公立 | G186: [241]新北市三重區集賢路89號 | H186: (02)28578087 | I186: http://www.whes.ntpc.edu.tw | J186: 市立五華國小
A187: =IF(ISERROR(AND(SEARCH(填表!$C$3,C187),SEARCH(填表!$C$2,B187))),"",MAX($A$1:A186)+1) -> 186 | B187: 新北市 | C187: 市立成功國小 | D187: 新北市-市立成功國小 | E187: 014786 | F187: 公立 | G187: [247]新北市蘆洲區長安街311號 | H187: (02)22858998 | I187: http://www.tces.ntpc.edu.tw | J187: 市立成功國小
A188: =IF(ISERROR(AND(SEARCH(填表!$C$3,C188),SEARCH(填表!$C$2,B188))),"",MAX($A$1:A187)+1) -> 187 | B188: 新北市 | C188: 市立仁愛國小 | D188: 新北市-市立仁愛國小 | E188: 014787 | F188: 公立 | G188: [247]新北市蘆洲區民族路488號 | H188: (02)22838815 | I188: http://www.jaes.ntpc.edu.tw | J188: 市立仁愛國小
A189: =IF(ISERROR(AND(SEARCH(填表!$C$3,C189),SEARCH(填表!$C$2,B189))),"",MAX($A$1:A188)+1) -> 188 | B189: 新北市 | C189: 市立榮富國小 | D189: 新北市-市立榮富國小 | E189: 014788 | F189: 公立 | G189: [242]新北市新莊區中和街193號 | H189: (02)22769020 | I189: http://www.lfes.ntpc.edu.tw | J189: 市立榮富國小
A190: =IF(ISERROR(AND(SEARCH(填表!$C$3,C190),SEARCH(填表!$C$2,B190))),"",MAX($A$1:A189)+1) -> 189 | B190: 新北市 | C190: 市立裕民國小 | D190: 新北市-市立裕民國小 | E190: 014789 | F190: 公立 | G190: [242]新北市新莊區裕民街123號 | H190: (02)29062407 | I190: http://www.ymes.ntpc.edu.tw | J190: 市立裕民國小
A191: =IF(ISERROR(AND(SEARCH(填表!$C$3,C191),SEARCH(填表!$C$2,B191))),"",MAX($A$1:A190)+1) -> 190 | B191: 新北市 | C191: 市立新泰國小 | D191: 新北市-市立新泰國小 | E191: 014790 | F191: 公立 | G191: [242]新北市新莊區公園一路91號 | H191: (02)29971005 | I191: http://www.stps.ntpc.edu.tw | J191: 市立新泰國小
A192: =IF(ISERROR(AND(SEARCH(填表!$C$3,C192),SEARCH(填表!$C$2,B192))),"",MAX($A$1:A191)+1) -> 191 | B192: 新北市 | C192: 市立中信國小 | D192: 新北市-市立中信國小 | E192: 014791 | F192: 公立 | G192: [242]新北市新莊區中信街168號 | H192: (02)85211131 | I192: http://www.ches.ntpc.edu.tw | J192: 市立中信國小
A193: =IF(ISERROR(AND(SEARCH(填表!$C$3,C193),SEARCH(填表!$C$2,B193))),"",MAX($A$1:A192)+1) -> 192 | B193: 新北市 | C193: 市立德音國小 | D193: 新北市-市立德音國小 | E193: 014792 | F193: 公立 | G193: [248]新北市五股區明德路2號 | H193: (02)22924152 | I193: http://www.tyes.ntpc.edu.tw | J193: 市立德音國小
A194: =IF(ISERROR(AND(SEARCH(填表!$C$3,C194),SEARCH(填表!$C$2,B194))),"",MAX($A$1:A193)+1) -> 193 | B194: 新北市 | C194: 市立麗園國小 | D194: 新北市-市立麗園國小 | E194: 014793 | F194: 公立 | G194: [244]新北市林口區忠孝路591號 | H194: (02)26091061 | I194: http://www.lyaes.ntpc.edu.tw | J194: 市立麗園國小
A195: =IF(ISERROR(AND(SEARCH(填表!$C$3,C195),SEARCH(填表!$C$2,B195))),"",MAX($A$1:A194)+1) -> 194 | B195: 新北市 | C195: 市立北新國小 | D195: 新北市-市立北新國小 | E195: 014794 | F195: 公立 | G195: [231]新北市新店區寶橋路8號 | H195: (02)29189300 | I195: http://www.tspes.ntpc.edu.tw | J195: =IFERROR(VLOOKUP(ROW(A194),A:C,3,0),"") -> 市立北新國小
A196: =IF(ISERROR(AND(SEARCH(填表!$C$3,C196),SEARCH(填表!$C$2,B196))),"",MAX($A$1:A195)+1) -> 195 | B196: 新北市 | C196: 市立同榮國小 | D196: 新北市-市立同榮國小 | E196: 014795 | F196: 公立 | G196: [243]新北市泰山區公園路33號 | H196: (02)22968551 | I196: http://www.tres.ntpc.edu.tw | J196: 市立同榮國小
A197: =IF(ISERROR(AND(SEARCH(填表!$C$3,C197),SEARCH(填表!$C$2,B197))),"",MAX($A$1:A196)+1) -> 196 | B197: 新北市 | C197: 市立光復國小 | D197: 新北市-市立光復國小 | E197: 014796 | F197: 公立 | G197: [235]新北市中和區光環路二段1號 | H197: (02)32348654 | I197: http://www.kfes.ntpc.edu.tw | J197: 市立光復國小
A198: =IF(ISERROR(AND(SEARCH(填表!$C$3,C198),SEARCH(填表!$C$2,B198))),"",MAX($A$1:A197)+1) -> 197 | B198: 新北市 | C198: 市立秀峰國小 | D198: 新北市-市立秀峰國小 | E198: 014797 | F198: 公立 | G198: [221]新北市汐止區仁愛路90號 | H198: (02)26480611 | I198: http://www.sfps.ntpc.edu.tw | J198: 市立秀峰國小
A199: =IF(ISERROR(AND(SEARCH(填表!$C$3,C199),SEARCH(填表!$C$2,B199))),"",MAX($A$1:A198)+1) -> 198 | B199: 新北市 | C199: 市立金龍國小 | D199: 新北市-市立金龍國小 | E199: 014798 | F199: 公立 | G199: [221]新北市汐止區明峰街201號 | H199: (02)26959941 | I199: http://www.gdps.ntpc.edu.tw | J199: 市立金龍國小
A200: =IF(ISERROR(AND(SEARCH(填表!$C$3,C200),SEARCH(填表!$C$2,B200))),"",MAX($A$1:A199)+1) -> 199 | B200: 新北市 | C200: 市立介壽國小 | D200: 新北市-市立介壽國小 | E200: 014799 | F200: 公立 | G200: [237]新北市三峽區大同路1號 | H200: (02)26712392 | I200: http://www.jses.ntpc.edu.tw | J200: 市立介壽國小
... 2458 more rows

Sheet 工作表2 (hidden)
A1: =INDEX(H1:H20,G1,0) -> Dryer | G1: 17 | H1: Roller Skates
H2: VCR
H3: Desk
H4: Mug
H5: Car
H6: Washing Machine
H7: Rocket Launcher
H8: Bike
H9: Phone
H10: Candle
H11: Candy
H12: Speakers | I12: OFFSET(Sheet1!$C$1,MATCH(Sheet1!A2&"*",Sheet1!C$1:C$65536,0)-1,,COUNTIF(Sheet1!C$1:C$65536,Sheet1!A2&"*"),1)
A13: OFFSET(設定!$A$1,MATCH(入班服務資料!A7&"*",設定!D$1:Y$249,0)-1,,COUNTIF(設定!A$1:C$65536,設定!A2&"*"),1) | H13: Dress | I13: =OFFSET(工作表2!$D$1,1,0,COUNTA(工作表2!$D:$D)-COUNTIF(工作表2!$D:$D,"-")-1) -> 0
H14: Blanket
H15: Dryer
H16: Guitar
H17: Dryer
H18: Tool Set
H19: VCR
H20: Hard Disk

Sheet 設定 (hidden)
A1: 縣市名稱 | B1: 縣市代碼 | D1: 新北市 | E1: 宜蘭縣 | F1: 桃園市 | G1: 新竹縣 | H1: 苗栗縣 | I1: 彰化縣 | J1: 南投縣 | K1: 雲林縣 | L1: 嘉義縣 | M1: 屏東縣 | N1: 臺東縣 | O1: 花蓮縣 | P1: 澎湖縣 | Q1: 基隆市 | R1: 新竹市 | S1: 嘉義市 | T1: 臺北市 | U1: 高雄市 | V1: 臺中市 | W1: 臺南市 | X1: 金門縣 | Y1: 連江縣 | AA1: 課程名稱 | AB1: RET | AC1: SC | AD1: PAC | AE1: PS | AF1: EQ學園 | AG1: 一上 | AH1: 一下 | AI1: 二上 | AJ1: 二下 | AK1: 三上 | AL1: 三下 | AM1: 四上 | AN1: 四下
A2: 請先下拉選取項目 ▼ | D2: 私立育才國小 | E2: 縣立中山國小 | F2: 私立福祿貝爾國小 | G2: 私立上智國小 | H2: 縣立建功國小 | I2: 縣立中山國小 | J2: 私立普台國小 | K2: 私立維多利亞小學 | L2: 縣立朴子國小 | M2: 國立屏東大學實小 | N2: 臺東縣均一高中附設國小 | O2: 國立東華大學附設實小 | P2: 縣立馬公國小 | Q2: 私立聖心小學 | R2: 國立清華大學附小 | S2: 國立嘉義大學附小 | T2: 市立松山國小 | U2: 市立鳳山國小 | V2: 私立華盛頓國小 | W2: 市立仁德國小 | X2: 縣立金湖國小 | Y2: 縣立介壽國(中)小 | AA2: RET | AB2: 1 | AC2: 1 | AD2: 1 | AE2: 1 | AF2: 1 | AG2: 1 | AH2: 1 | AI2: 1 | AJ2: 1 | AK2: 1 | AL2: 1 | AM2: 1 | AN2: 1
A3: 基隆市 | B3: 17 | D3: 私立聖心國小 | E3: 縣立宜蘭國小 | F3: 私立諾瓦國小 | G3: 私立康乃薾國(中)小 | H3: 縣立大同國小 | I3: 縣立民生國小 | J3: 私立均頭國(中)小 | K3: 私立福智國小 | L3: 縣立大同國小 | M3: 私立崇華國小 | N3: 縣立興隆國小 | O3: 私立海星國小 | P3: 縣立中正國小 | Q3: 市立中正國小 | R3: 私立曙光國小 | S3: 市立崇文國小 | T3: 市立西松國小 | U3: 市立大東國小 | V3: 市立善水國(中)小 | W3: 市立文賢國小 | X3: 縣立金寧國(中)小 | Y3: 縣立中正國(中)小 | AA3: SC | AB3: 2 | AC3: 2 | AD3: 2 | AE3: 2 | AF3: 2 | AG3: 2 | AH3: 2 | AI3: 2 | AJ3: 2 | AK3: 2 | AL3: 2 | AM3: 2 | AN3: 2
A4: 臺北市 | B4: 30 | D4: 私立及人國小 | E4: 縣立力行國小 | F4: 私立有得國(中)小 | G4: 縣立關西國小 | H4: 縣立僑育國小 | I4: 縣立平和國小 | J4: 縣立南投國小 | K4: 縣立鎮西國小 | L4: 縣立雙溪國小 | M4: 縣立中正國小 | N4: 縣立霧鹿國小 | O4: 縣立明禮國小 | P4: 縣立中興國小 | Q4: 市立正濱國小 | R4: 私立新竹市康橋國(中)小 | S4: 市立博愛國小 | T4: 市立敦化國小 | U4: 市立文山國小 | V4: 市立豐原國小 | W4: 市立長興國小 | X4: 縣立中正國小 | Y4: 縣立仁愛國小 | AA4: PAC | AB4: 3 | AC4: 3 | AD4: 3 | AE4: 3 | AF4: 3 | AG4: 3 | AH4: 3 | AI4: 3 | AJ4: 3 | AK4: 3 | AL4: 3 | AM4: 3 | AN4: 3
A5: 新北市 | B5: 1 | D5: 私立竹林國小 | E5: 縣立新生國小 | F5: 私立康萊爾國(中)小 | G5: 縣立東安國小 | H5: 縣立文山國小 | I5: 縣立南郭國小 | J5: 縣立平和國小 | K5: 縣立鎮東國小 | L5: 縣立竹村國小 | M5: 縣立仁愛國小 | N5: 縣立東海國小 | O5: 縣立明義國小 | P5: 縣立中山國小 | Q5: 市立忠孝國小 | R5: 市立新竹國小 | S5: 市立垂楊國小 | T5: 市立民生國小 | U5: 市立鳳山區中正國小 | V5: 市立瑞穗國小 | W5: 市立依仁國小 | X5: 縣立賢庵國小 | Y5: 縣立塘岐國小 | AA5: PS | AB5: 4 | AC5: 4 | AD5: 4 | AE5: 4 | AF5: 4 | AG5: 4 | AH5: 4 | AI5: 4 | AJ5: 4 | AK5: 4 | AL5: 4 | AM5: 4 | AN5: 4
A6: 桃園市 | B6: 3 | D6: 私立信賢種籽親子實小 | E6: 縣立光復國小 | F6: 市立桃園國小 | G6: 縣立石光國小 | H6: 縣立啟文國小 | I6: 縣立南興國小 | J6: 縣立新豐國小 | K6: 縣立溝壩國小 | L6: 縣立松梅國小 | M6: 縣立海豐國小 | N6: 縣立加拿國小 | O6: 縣立明廉國小 | P6: 縣立石泉國小 | Q6: 市立和平國小 | R6: 市立北門國小 | S6: 市立民族國小 | T6: 市立民權國小 | U6: 市立五甲國小 | V6: 市立南陽國小 | W6: 市立大甲國小 | X6: 縣立古城國小 | Y6: 縣立坂里國小 | AA6: EQ學園 | AB6: X | AC6: X | AD6: X | AE6: X | AF6: 5 | AG6: 5 | AH6: 5 | AI6: 5 | AJ6: 5 | AK6: 5 | AL6: 5 | AM6: 5 | AN6: 5
A7: 新竹市 | B7: 18 | D7: 市立北大國小 | E7: 縣立育才國小 | F7: 市立東門國小 | G7: 縣立坪林國小 | H7: 縣立新英國小 | I7: 縣立東芳國小 | J7: 縣立營盤國小 | K7: 縣立梅林國小 | L7: 縣立大鄉國小 | M7: 縣立公館國小 | N7: 縣立錦屏國小 | O7: 縣立明恥國小 | P7: 縣立東衛國小 | Q7: 市立八斗國小 | R7: 市立民富國小 | S7: 市立宣信國小 | T7: 市立民族國小 | U7: 市立曹公國小 | V7: 市立富春國小 | W7: 市立仁和國小 | X7: 縣立開瑄國小 | Y7: 縣立敬恆國(中)小 | AF7: 6 | AG7: 6 | AH7: 6 | AI7: 6 | AJ7: 6 | AK7: 6 | AL7: 6 | AM7: 6 | AN7: 6
A8: 新竹縣 | B8: 4 | D8: 市立板橋國小 | E8: 縣立凱旋國小 | F8: 市立中埔國小 | G8: 縣立南和國小 | H8: 縣立頭屋國小 | I8: 縣立泰和國小 | J8: 縣立西嶺國小 | K8: 縣立石榴國小 | L8: 縣立布袋國小 | M8: 縣立大同國小 | N8: 縣立廣原國小 | O8: 縣立中正國小 | P8: 縣立興仁國小 | Q8: 市立東信國小 | R8: 市立東門國小 | S8: 市立大同國小 | T8: 市立三民國小 | U8: 市立誠正國小 | V8: 市立豐村國小 | W8: 市立德南國小 | X8: 縣立柏村國小 | Y8: 縣立東莒國小 | AF8: 7 | AG8: X | AH8: X | AI8: X | AJ8: X | AK8: X | AL8: X | AM8: X | AN8: X
A9: 苗栗縣 | B9: 5 | D9: 市立國光國小 | E9: 縣立黎明國小 | F9: 市立成功國小 | G9: 縣立太平國小 | H9: 縣立明德國小 | I9: 縣立三民國小 | J9: 縣立德興國小 | K9: 縣立溪洲國小 | L9: 縣立景山國小 | M9: 縣立鶴聲國小 | N9: 縣立崁頂國小 | O9: 縣立信義國小 | P9: 縣立山水國小 | Q9: 市立中興國小 | R9: 市立西門國小 | S9: 市立志航國小 | T9: 市立健康國小 | U9: 市立南成國小 | V9: 市立翁子國小 | W9: 市立虎山實驗小學 | X9: 縣立多年國小 | Y9: 縣立東引國(中)小 | AF9: 8
A10: 臺中市 | B10: 66 | D10: 市立新埔國小 | E10: 縣立南屏國小 | F10: 市立會稽國小 | G10: 縣立東光國小 | H10: 縣立公館國小 | I10: 縣立聯興國小 | J10: 縣立光華國小 | K10: 縣立林頭國小 | L10: 縣立永安國小 | M10: 縣立凌雲國小 | N10: 縣立初來國小 | O10: 縣立復興國小 | P10: 縣立五德國小 | Q10: 市立深澳國小 | R10: 市立竹蓮國小 | S10: 市立嘉北國小 | T10: 市立興雅國小 | U10: 市立五福國小 | V10: 市立豐田國小 | W10: 市立歸仁國小 | X10: 縣立金沙國小 | AF10: X
A11: 彰化縣 | B11: 7 | D11: 市立埔墘國小 | E11: 縣立羅東國小 | F11: 市立建國國小 | G11: 縣立錦山國小 | H11: 縣立五穀國小 | I11: 縣立大竹國小 | J11: 縣立光榮國小 | K11: 縣立保長國小 | L11: 縣立過溝國小 | M11: 縣立勝利國小 | N11: 縣立海端國小 | O11: 縣立中華國小 | P11: 縣立時裡國小 | Q11: 市立月眉國小 | R11: 市立東園國小 | S11: 市立僑平國小 | T11: 市立永春國小 | U11: 市立鳳山區中山國小 | V11: 市立合作國小 | W11: 市立歸南國小 | X11: 縣立何浦國小
A12: 南投縣 | B12: 8 | D12: 市立莒光國小 | E12: 縣立成功國小 | F12: 市立中山國小 | G12: 縣立玉山國小 | H12: 縣立福基國小 | I12: 縣立國聖國小 | J12: 縣立文山國小 | K12: 縣立鎮南國小 | L12: 縣立貴林國小 | M12: 縣立歸來國小 | N12: 縣立紅葉國小 | O12: 縣立忠孝國小 | P12: 縣立風櫃國小 | Q12: 市立東光國小 | R12: 市立三民國小 | S12: 市立林森國小 | T12: 市立光復國小 | U12: 市立新甲國小 | V12: 市立內埔國小 | W12: 市立保西國小 | X12: 縣立安瀾國小
A13: 雲林縣 | B13: 9 | D13: 市立後埔國小 | E13: 縣立公正國小 | F13: 市立文山國小 | G13: 縣立新埔國小 | H13: 縣立鶴岡國小 | I13: 縣立快官國小 | J13: 縣立僑建國小 | K13: 縣立公誠國小 | L13: 縣立新塭國小 | M13: 縣立前進國小 | N13: 縣立鸞山國小 | O13: 縣立北濱國小 | P13: 縣立虎井國小 | Q13: 市立仁愛國小 | R13: 市立龍山國小 | S13: 市立北園國小 | T13: 市立三興國小 | U13: 市立鳳山區忠孝國小 | V13: 市立后里國小 | W13: 市立大潭國小 | X13: 縣立述美國小
A14: 嘉義市 | B14: 20 | D14: 市立海山國小 | E14: 縣立北成國小 | F14: 市立南門國小 | G14: 縣立新星國小 | H14: 縣立開礦國小 | I14: 縣立石牌國小 | J14: 縣立漳和國小 | K14: 縣立久安國小 | L14: 縣立新岑國小 | M14: 縣立唐榮國小 | N14: 縣立武陵國小 | O14: 縣立鑄強國小 | P14: 縣立成功國小 | Q14: 市立信義國小 | R14: 市立關東國小 | S14: 市立精忠國小 | T14: 市立信義國小 | U14: 市立林園國小 | V14: 市立月眉國小 | W14: 市立關廟國小 | X14: 縣立古寧國小
A15: 嘉義縣 | B15: 10 | D15: 市立江翠國小 | E15: 縣立竹林國小 | F15: 市立西門國小 | G15: 縣立照門國小 | H15: 縣立南河國小 | I15: 縣立忠孝國小 | J15: 縣立嘉和國小 | K15: 縣立古坑國(中)小 | L15: 縣立好美國小 | M15: 縣立民和國小 | N15: 縣立桃源國小 | O15: 縣立國福國小 | P15: 縣立西溪國小 | Q15: 市立成功國小 | R15: 市立載熙國小 | S15: 市立育人國小 | T15: 市立吳興國小 | U15: 市立中芸國小 | V15: 市立七星國小 | W15: 市立五甲國小 | X15: 縣立金鼎國小
A16: 臺南市 | B16: 67 | D16: 市立文聖國小 | E16: 縣立蘇澳國小 | F16: 市立龍山國小 | G16: 縣立清水國小 | H16: 縣立銅鑼國小 | I16: 縣立芬園國小 | J16: 縣立光復國小 | K16: 縣立東和國小 | L16: 縣立大林國小 | M16: 縣立建國國小 | N16: 縣立朗島國小 | O16: 縣立新城國小 | P16: 縣立湖西國小 | Q16: 市立南榮國小 | R16: 市立南寮國小 | S16: 市立蘭潭國小 | T16: 市立福德國小 | U16: 市立港埔國小 | V16: 市立育英國小 | W16: 市立保東國小 | X16: 縣立卓環國小
A17: 高雄市 | B17: 64 | D17: 市立沙崙國小 | E17: 縣立馬賽國小 | F17: 市立北門國小 | G17: 縣立照東國小 | H17: 縣立中興國小 | I17: 縣立富山國小 | J17: 縣立千秋國小 | K17: 縣立永光國小 | L17: 縣立三和國小 | M17: 縣立復興國小 | N17: 縣立東清國小 | O17: 縣立北埔國小 | P17: 縣立龍門國小 | Q17: 市立尚智國小 | R17: 市立建功國小 | S17: 市立興安國小 | T17: 市立永吉國小 | U17: 市立金潭國小 | V17: 市立后里區泰安國小 | W17: 市立崇和國小 | X17: 縣立上岐國小
A18: 宜蘭縣 | B18: 2 | D18: 市立文德國小 | E18: 縣立蓬萊國小 | F18: 市立南崁國小 | G18: 縣立北平國小 | H18: 縣立九湖國小 | I18: 縣立寶山國小 | J18: 縣立埔里國小 | K18: 縣立華山國小 | L18: 縣立中林國小 | M18: 縣立忠孝國小 | N18: 縣立椰油國小 | O18: 縣立康樂國小 | P18: 縣立隘門國小 | Q18: 市立安樂國小 | R18: 市立水源國小 | S18: 市立世賢國小 | T18: 市立博愛國小 | U18: 市立汕尾國小 | V18: 市立神岡國小 | W18: 市立文和實驗小學 | X18: 縣立湖埔國小
A19: 屏東縣 | B19: 13 | D19: 市立樹林國小 | E19: 縣立士敏國小 | F19: 市立公埔國小 | G19: 縣立枋寮國小 | H19: 縣立新隆國小 | I19: 縣立同安國小 | J19: 縣立南光國小 | K19: 縣立棋山國小 | L19: 縣立排路國小 | M19: 縣立和平國小 | N19: 縣立蘭嶼國小 | O19: 縣立嘉里國小 | P19: 縣立沙港國小 | Q19: 市立西定國小 | R19: 市立香山國小 | S19: 市立興嘉國小 | T19: 國立臺北教大實小 | U19: 市立永芳國小 | V19: 市立豐洲國小 | W19: 市立深坑國小 | X19: 縣立正義國小
A20: 臺東縣 | B20: 14 | D20: 市立文林國小 | E20: 縣立永樂國小 | F20: 市立蘆竹國小 | G20: 縣立寶石國小 | H20: 縣立興隆國小 | I20: 縣立文德國小 | J20: 縣立育英國小 | K20: 縣立桂林國小 | L20: 縣立社團國小 | M20: 縣立萬丹國小 | N20: 縣立臺坂國小 | O20: 縣立吉安國小 | P20: 縣立中屯國小 | Q20: 市立武崙國小 | R20: 市立虎林國小 | S20: 市立港坪國小 | T20: 私立復興國小 | U20: 市立翁園國小 | V20: 市立社口國小 | W20: 市立新光國小 | X20: 縣立西口國小
A21: 花蓮縣 | B21: 15 | D21: 市立大同國小 | E21: 縣立南安國小 | F21: 市立大竹國小 | G21: 縣立文山國小 | H21: 縣立文峰國小 | I21: 縣立茄荖國小 | J21: 縣立史港國小 | K21: 縣立樟湖生態國(中)小 | L21: 縣立民雄國小 | M21: 縣立新庄國小 | N21: 縣立土坂國小 | O21: 縣立宜昌國小 | P21: 縣立講美國小 | Q21: 市立中和國小 | R21: 市立港南國小 | S21: 市立文雅國小 | T21: 私立立人國(中)小 | U21: 市立忠義國小 | V21: 市立圳堵國小 | W21: 市立龍崎國小
A22: 澎湖縣 | B22: 16 | D22: 市立武林國小 | E22: 縣立岳明國小 | F22: 市立新興國小 | G22: 縣立竹東國小 | H22: 縣立建中國小 | I22: 縣立花壇國小 | J22: 縣立愛蘭國小 | K22: 縣立草嶺生態地質國小 | L22: 縣立東榮國小 | M22: 縣立興華國小 | N22: 縣立安朔國小 | O22: 縣立北昌國小 | P22: 縣立赤崁國小 | Q22: 市立仙洞國小 | R22: 市立大庄國小 | T22: 私立新民小學 | U22: 市立昭明國小 | V22: 市立岸裡國小 | W22: 市立永康國小
A23: 金門縣 | B23: 71 | D23: 市立山佳國小 | E23: 縣立育英國小 | F23: 市立外社國小 | G23: 縣立中山國小 | H23: 縣立僑成國小 | I23: 縣立文祥國小 | J23: 縣立溪南國小 | K23: 縣立華南國小 | L23: 縣立三興國小 | M23: 縣立新興國小 | N23: 縣立賓茂國小 | O23: 縣立稻香國小 | P23: 縣立鳥嶼國小 | Q23: 市立中山國小 | R23: 市立茄苳國小 | T23: 市立龍安國小 | U23: 市立潮寮國小 | V23: 市立大雅國小 | W23: 市立大灣國小
A24: 連江縣 | B24: 72 | D24: 市立育德國小 | E24: 縣立頭城國小 | F24: 市立頂社國小 | G24: 縣立大同國小 | H24: 縣立育英國小 | I24: 縣立華南國小 | J24: 縣立水尾國小 | K24: 縣立興昌國小 | L24: 縣立菁埔國小 | M24: 縣立社皮國小 | N24: 縣立新興國小 | O24: 縣立光華國小 | P24: 縣立吉貝國小 | Q24: 市立港西國小 | R24: 市立朝山國小 | T24: 市立大安國小 | U24: 市立中庄國小 | V24: 市立三和國小 | W24: 市立三村國小
A25: 大陸地區 | B25: 80 | D25: 市立柑園國小 | E25: 縣立竹安國小 | F25: 市立海湖國小 | G25: 縣立二重國小 | H25: 縣立鯉魚國小 | I25: 縣立僑愛國小 | J25: 縣立桃源國小 | K25: 縣立山峰華德福實小 | L25: 縣立興中國小 | M25: 縣立廣安國小 | N25: 縣立介達國小 | O25: 縣立南華國小 | P25: 縣立後寮國小 | Q25: 市立中華國小 | R25: 市立大湖國小 | T25: 市立幸安國小 | U25: 市立溪寮國小 | V25: 市立大明國小 | W25: 市立西勢國小
A26: 海外地區 | B26: 90 | D26: 市立鶯歌國小 | E26: 縣立二城國小 | F26: 市立山腳國小 | G26: 縣立竹中國小 | H26: 縣立苑裡國小 | I26: 縣立三春國小 | J26: 縣立麒麟國小 | K26: 縣立水碓國小 | L26: 縣立秀林國小 | M26: 縣立興化國小 | N26: 縣立嘉蘭國小 | O26: 縣立化仁國小 | P26: 縣立合橫國小 | Q26: 市立德和國小 | R26: 市立內湖國小 | T26: 市立建安國小 | U26: 市立大寮國小 | V26: 市立上楓國小 | W26: 市立永康區復興國小
D27: 市立二橋國小 | E27: 縣立大溪國小 | F27: 市立大華國小 | G27: 縣立員崠國小 | H27: 縣立文苑國小 | I27: 縣立白沙國小 | J27: 縣立太平國小 | K27: 縣立新光國小 | L27: 縣立松山國小 | M27: 縣立麟洛國小 | N27: 縣立樟原國小 | O27: 縣立太昌國小 | P27: 縣立竹灣國小 | Q27: 市立七堵國小 | R27: 市立南隘國小 | T27: 市立仁愛國小 | U27: 市立大樹國小 | V27: 市立汝鎏國小 | W27: 市立龍潭國小
D28: 市立中湖國小 | E28: 縣立大里國小 | F28: 市立新莊國小 | G28: 縣立陸豐國小 | H28: 縣立山腳國小 | I28: 縣立和美國小 | J28: 縣立忠孝國小 | K28: 縣立林內國小 | L28: 縣立大崎國小 | M28: 縣立九如國小 | N28: 縣立三間國小 | O28: 縣立壽豐國小 | P28: 縣立大池國小 | Q28: 市立華興國小 | R28: 市立頂埔國小 | T28: 市立金華國小 | U28: 市立九曲國小 | V28: 市立陽明國小 | W28: 市立大橋國小
D29: 市立鳳鳴國小 | E29: 縣立梗枋國小 | F29: 市立大園國小 | G29: 縣立瑞峰國小 | H29: 縣立中正國小 | I29: 縣立和東國小 | J29: 縣立中峰國小 | K29: 縣立重興國小 | L29: 縣立溪口國小 | M29: 縣立後庄國小 | N29: 縣立竹湖國小 | O29: 縣立豐山國小 | P29: 縣立池東國小 | Q29: 市立五堵國小 | R29: 市立舊社國小 | T29: 市立古亭國小 | U29: 市立溪埔國小 | V29: 市立潭子國小 | W29: 市立新化國小
D30: 市立三峽國小 | E30: 縣立礁溪國小 | F30: 市立圳頭國小 | G30: 縣立竹北國小 | H30: 縣立藍田國小 | I30: 縣立大嘉國小 | J30: 縣立大成國小 | K30: 縣立九芎國小 | L30: 縣立美林國小 | M30: 縣立惠農國小 | N30: 縣立寧埔國小 | O30: 縣立豐裡國小 | P30: 縣立內垵國小 | Q30: 市立堵南國小 | R30: 市立陽光國小 | T30: 市立銘傳國小 | U30: 市立姑山國小 | V30: 市立僑忠國小 | W30: 市立那拔國小
D31: 市立大埔國小 | E31: 縣立四結國小 | F31: 市立內海國小 | G31: 縣立中正國小 | H31: 縣立中山國小 | I31: 縣立大榮國小 | J31: 縣立草屯國小 | K31: 縣立成功國小 | L31: 縣立柴林國小 | M31: 縣立長興國小 | N31: 縣立長濱國小 | O31: 縣立志學國小 | P31: 縣立外垵國小 | Q31: 市立瑪陵國小 | R31: 市立科園國小 | T31: 市立公館國小 | U31: 市立水寮國小 | V31: 市立東寶國小 | W31: 市立口埤實驗小學
D32: 市立民義國小 | E32: 縣立龍潭國小 | F32: 市立溪海國小 | G32: 縣立竹仁國小 | H32: 縣立林森國小 | I32: 縣立新庄國小 | J32: 縣立敦和國小 | K32: 縣立林中國小 | L32: 縣立柳溝國小 | M32: 縣立繁華國小 | N32: 縣立忠孝國小 | O32: 縣立平和國小 | P32: 縣立望安國小 | Q32: 市立復興國小 | R32: 市立高峰國小 | T32: 市立新生國小 | U32: 市立小坪國小 | V32: 市立潭子區新興國小 | W32: 市立大新國小
D33: 市立成福國小 | E33: 縣立玉田國小 | F33: 市立潮音國小 | G33: 縣立新社國小 | H33: 縣立蕉埔國小 | I33: 縣立培英國小 | J33: 縣立新庄國小 | K33: 縣立民生國小 | L33: 縣立新港國小 | M33: 縣立德協國小 | N33: 縣立三仙國小 | O33: 縣立溪口國小 | P33: 縣立將軍國小 | Q33: 市立尚仁國小 | R33: 市立青草湖國小 | T33: 市立和平實驗國小 | U33: 市立興田國小 | V33: 市立外埔國小 | W33: 市立山上國小
D34: 市立大成國小 | E34: 縣立三民國小 | F34: 市立竹圍國小 | G34: 縣立六家國小 | H34: 縣立通霄國小 | I34: 縣立線西國小 | J34: 縣立碧峰國小 | K34: 縣立斗南國小 | L34: 縣立文昌國小 | M34: 縣立鹽埔國小 | N34: 縣立信義國小 | O34: 縣立月眉國小 | P34: 縣立花嶼國小 | Q34: 市立建德國小 | R34: 市立華德福實驗國小 | T34: 市立中山國小 | U34: 市立龍目國小 | V34: 市立安定國小 | W34: 市立玉井國小
D35: 市立建安國小 | E35: 縣立員山國小 | F35: 市立果林國小 | G35: 縣立東海國小 | H35: 縣立五福國小 | I35: 縣立曉陽國小 | J35: 縣立土城國小 | K35: 縣立大東國小 | L35: 縣立月眉國小 | M35: 縣立仕絨國小 | N35: 縣立成功國小 | O35: 縣立水璉國小 | P35: 縣立七美國小 | Q35: 市立八堵國小 | R35: 國立科學工業園區實驗高中附設國小 | T35: 市立中正國小 | U35: 市立仁武國小 | V35: 市立鐵山國小 | W35: 市立層林國小
D36: 市立插角國小 | E36: 縣立深溝國小 | F36: 市立后厝國小 | G36: 縣立豐田國小 | H36: 縣立城中國小 | I36: 縣立新港國小 | J36: 縣立雙冬國小 | K36: 縣立石龜國小 | L36: 縣立古民國小 | M36: 縣立高朗國小 | N36: 縣立三民國小 | O36: 縣立鳳林國小 | P36: 縣立雙湖國小 | Q36: 市立暖暖國小 | T36: 市立長安國小 | U36: 市立烏林國小 | V36: 市立馬鳴國小 | W36: 市立楠西國小
D37: 市立有木國小 | E37: 縣立七賢國小 | F37: 市立沙崙國小 | G37: 縣立麻園國小 | H37: 縣立啟明國小 | I37: 縣立伸東國小 | J37: 縣立炎峰國小 | K37: 縣立重光國小 | L37: 縣立復興國小 | M37: 縣立新圍國小 | N37: 縣立北源國小 | O37: 縣立大榮國小 | P37: 縣立文澳國小 | Q37: 市立暖江國小 | T37: 市立長春國小 | U37: 市立八卦國小 | V37: 市立水美國小 | W37: 市立南化國小
D38: 市立五寮國小 | E38: 縣立同樂國小 | F38: 市立埔心國小 | G38: 縣立新港國小 | H38: 縣立新埔國小 | I38: 縣立伸仁國小 | J38: 縣立中原國小 | K38: 縣立文安國小 | L38: 縣立安和國小 | M38: 縣立彭厝國小 | N38: 縣立泰源國小 | O38: 縣立鳳仁國小 | P38: 縣立文光國小 | Q38: 市立碇內國小 | T38: 市立大直國小 | U38: 市立灣內國小 | V38: 市立東勢國小 | W38: 市立北寮國小
D39: 市立中和國小 | E39: 縣立湖山國小 | F39: 市立五權國小 | G39: 縣立鳳岡國小 | H39: 縣立烏眉國小 | I39: 縣立大同國小 | J39: 縣立平林國小 | K39: 縣立僑真國小 | L39: 縣立蒜頭國小 | M39: 縣立振興國小 | N39: 縣立都蘭國小 | O39: 縣立北林國小 | Q39: 市立隆聖國小 | T39: 市立大佳國小 | U39: 市立大社區大社國小 | V39: 市立中山國小 | W39: 市立西埔國小
D40: 市立復興國小 | E40: 縣立大湖國小 | F40: 市立陳康國小 | G40: 縣立新湖國小 | H40: 縣立南和國小 | I40: 縣立鹿港國小 | J40: 縣立坪頂國小 | K40: 縣立莿桐國小 | L40: 縣立六腳國小 | M40: 縣立高樹國小 | N40: 縣立東河國小 | O40: 縣立長橋國小 | Q40: 市立長興國小 | T40: 市立五常國小 | U40: 市立嘉誠國小 | V40: 市立石城國小 | W40: 市立玉山國小
D41: 市立興南國小 | E41: 縣立內城國(中)小 | F41: 市立龜山國小 | G41: 縣立和興國小 | H41: 縣立坪頂國小 | I41: 縣立文開國小 | J41: 縣立僑光國小 | K41: 縣立饒平國小 | L41: 縣立六美國小 | M41: 縣立舊寮國小 | N41: 縣立萬安國小 | O41: 縣立林榮國小 | Q41: 市立長樂國小 | T41: 市立吉林國小 | U41: 市立鳥松國小 | V41: 市立東勢區成功國小 | W41: 市立瑞峰國小
D42: 市立秀山國小 | E42: 縣立壯圍國小 | F42: 市立壽山國小 | G42: 縣立信勢國小 | H42: 縣立圳頭國小 | I42: 縣立洛津國小 | J42: 縣立北投國小 | K42: 縣立大美國小 | L42: 縣立灣內國小 | M42: 縣立新豐國小 | N42: 縣立大坡國小 | O42: 縣立光復國小 | Q42: 市立深美國小 | T42: 市立懷生國小 | U42: 市立仁美國小 | V42: 市立石角國小 | W42: 市立左鎮國小
D43: 市立積穗國小 | E43: 縣立古亭國小 | F43: 市立福源國小 | G43: 縣立湖口國小 | H43: 縣立福興武術國(中)小 | I43: 縣立海埔國小 | J43: 縣立富功國小 | K43: 縣立六合國小 | L43: 縣立更寮國小 | M43: 縣立田子國小 | N43: 縣立福原國小 | O43: 縣立太巴塱國小 | Q43: 市立暖西國小 | T43: 市立永安國小 | U43: 市立大華國小 | V43: 市立中科國小 | W43: 市立光榮國小
D44: 市立自強國小 | E44: 縣立公館國小 | F44: 市立大崗國小 | G44: 縣立山崎國小 | H44: 縣立西湖國小 | I44: 縣立新興國小 | J44: 縣立竹山國小 | K44: 縣立僑和國小 | L44: 縣立北美國小 | M44: 縣立新南國小 | N44: 縣立電光國小 | O44: 縣立大進國小 | Q44: 私立二信高中附設國小 | T44: 市立濱江國小 | U44: 市立岡山國小 | V44: 市立新成國小 | W44: 市立善化國小
D45: 市立錦和國小 | E45: 縣立過嶺國小 | F45: 市立大埔國小 | G45: 縣立長安國小 | H45: 縣立五湖國小 | I45: 縣立草港國小 | J45: 縣立延平國小 | K45: 縣立育仁國小 | L45: 縣立東石國小 | M45: 縣立泰山國小 | N45: 縣立德高國小 | O45: 縣立瑞穗國小 | T45: 市立螢橋國小 | U45: 市立前峰國小 | V45: 市立明正國小 | W45: 市立茄拔國小
D46: 市立景新國小 | E46: 縣立大福國小 | F46: 市立大坑國小 | G46: 縣立中興國小 | H46: 縣立僑文國小 | I46: 縣立頂番國小 | J46: 縣立社寮國小 | K46: 縣立大埤國小 | L46: 縣立塭港國小 | M46: 縣立大路關國(中)小 | N46: 縣立月眉國小 | O46: 縣立瑞北國小 | T46: 市立河堤國小 | U46: 市立嘉興國小 | V46: 市立石岡國小 | W46: 市立善化區大同國小
D47: 市立永和國小 | E47: 縣立新南國小 | F47: 市立山頂國小 | G47: 縣立華興國小 | H47: 縣立頭份國小 | I47: 縣立東興國小 | J47: 縣立過溪國小 | K47: 縣立舊庄國小 | L47: 縣立三江國小 | M47: 縣立南華國小 | N47: 縣立關山國小 | O47: 縣立瑞美國小 | T47: 市立忠義國小 | U47: 市立兆湘國小 | V47: 市立土牛國小 | W47: 市立大成國小
D48: 市立秀朗國小 | E48: 縣立五結國小 | F48: 市立龍壽國小 | G48: 縣立橫山國小 | H48: 縣立六合國小 | I48: 縣立管嶼國小 | J48: 縣立大鞍國小 | K48: 縣立仁和國小 | L48: 縣立龍港國小 | M48: 縣立里港國小 | N48: 縣立瑞源國小 | O48: 縣立鶴岡國小 | T48: 市立國語實小 | U48: 市立後紅國小 | V48: 市立新社國小 | W48: 市立陽明國小
D49: 市立頂溪國小 | E49: 縣立學進國小 | F49: 市立新路國小 | G49: 縣立田寮國小 | H49: 縣立永貞國小 | I49: 縣立文昌國小 | J49: 縣立瑞竹國小 | K49: 縣立嘉興國小 | L49: 縣立下楫國小 | M49: 縣立載興國小 | N49: 縣立瑞豐國小 | O49: 縣立舞鶴國小 | T49: 市立南門國小 | U49: 市立和平國小 | V49: 市立新社區東興國小 | W49: 市立善糖國小
D50: 市立網溪國小 | E50: 縣立中興國小 | F50: 市立樂善國小 | G50: 縣立大肚國小 | H50: 縣立尖山國小 | I50: 縣立西勢國小 | J50: 縣立秀林國小 | K50: 縣立聯美國小 | L50: 縣立港墘國小 | M50: 縣立土庫國小 | N50: 縣立永安國小 | O50: 縣立富源國小 | T50: 市立東門國小 | U50: 市立仕隆國小 | V50: 市立大南國小 | W50: 市立小新國小
D51: 市立永平國小 | E51: 縣立利澤國小 | F51: 市立大成國小 | G51: 縣立沙坑國小 | H51: 縣立僑善國小 | I51: 縣立大興國小 | J51: 縣立雲林國小 | K51: 縣立虎尾國小 | L51: 縣立龍崗國小 | M51: 縣立三和國小 | N51: 縣立龍田國小 | O51: 縣立豐濱國小 | T51: 市立忠孝國小 | U51: 市立五林國小 | V51: 市立協成國小 | W51: 市立新市國小
D52: 市立土城國小 | E52: 縣立孝威國小 | F52: 市立大勇國小 | G52: 縣立內灣國小 | H52: 縣立斗煥國小 | I52: 縣立永豐國小 | J52: 縣立鯉魚國小 | K52: 縣立立仁國小 | L52: 縣立網寮國小 | M52: 縣立潮州國小 | N52: 縣立鹿野國小 | O52: 縣立港口國小 | T52: 臺北市立大學附小 | U52: 市立甲圍國小 | V52: 市立大林國小 | W52: 市立大社國小
D53: 市立清水國小 | E53: 縣立冬山國小 | F53: 市立八德國小 | G53: 縣立福興國小 | H53: 縣立后庄國小 | I53: 縣立日新國小 | J53: 縣立桶頭國小 | K53: 縣立大屯國小 | L53: 縣立鹿草國小 | M53: 縣立光春國小 | N53: 縣立公館國小 | O53: 縣立靜浦國小 | T53: 市立蓬萊國小 | U53: 市立興糖國小 | V53: 市立崑山國小 | W53: 市立安定國小
D54: 市立頂埔國小 | E54: 縣立東興國小 | F54: 市立瑞豐國小 | G54: 縣立新豐國小 | H54: 縣立新興國小 | I54: 縣立育新國小 | J54: 縣立中州國小 | K54: 縣立中溪國小 | L54: 縣立重寮國小 | M54: 縣立光華國小 | N54: 縣立綠島國小 | O54: 縣立新社國小 | T54: 市立日新國小 | U54: 市立燕巢國小 | V54: 市立中和國小 | W54: 市立南安國小
D55: 市立廣福國小 | E55: 縣立順安國小 | F55: 市立霄裡國小 | G55: 縣立瑞興國小 | H55: 縣立信德國小 | I55: 縣立秀水國小 | J55: 縣立中和國小 | K55: 縣立光復國小 | L55: 縣立下潭國小 | M55: 縣立四林國小 | N55: 縣立大鳥國小 | O55: 縣立玉里國小 | T55: 市立太平國小 | U55: 市立橫山國小 | V55: 市立清水國小 | W55: 市立安定區南興國小
D56: 市立汐止國小 | E56: 縣立武淵國小 | F56: 市立大安國小 | G56: 縣立福龍國小 | H56: 縣立竹南國小 | I56: 縣立馬興國小 | J56: 縣立集集國小 | K56: 縣立中正國小 | L56: 縣立碧潭國小 | M56: 縣立潮南國小 | N56: 縣立大武國小 | O56: 縣立中城國小 | T56: 市立永樂國小 | U56: 市立深水國小 | V56: 市立西寧國小 | W56: 市立麻豆國小
D57: 市立長安國小 | E57: 縣立廣興國小 | F57: 市立茄苳國小 | G57: 縣立埔和國小 | H57: 縣立照南國小 | I57: 縣立華龍國小 | J57: 縣立隘寮國小 | K57: 縣立平和國小 | L57: 縣立竹園國小 | M57: 縣立潮東國小 | N57: 縣立尚武國小 | O57: 縣立源城國小 | T57: 市立雙蓮國小 | U57: 市立安招國小 | V57: 市立建國國小 | W57: 市立培文國小
D58: 市立保長國小 | E58: 縣立大進國小 | F58: 市立廣興國小 | G58: 縣立芎林國小 | H58: 縣立大埔國小 | I58: 縣立明正國小 | J58: 縣立永昌國小 | K58: 縣立廉使國小 | L58: 縣立後塘國小 | M58: 縣立萬巒國小 | N58: 縣立大溪國小 | O58: 縣立樂合國小 | T58: 市立大同國小 | U58: 市立鳳雄國小 | V58: 市立大秀國小 | W58: 市立文正國小
D59: 市立崇德國小 | E59: 縣立柯林國小 | F59: 市立大溪國小 | G59: 縣立碧潭國小 | H59: 縣立頂埔國小 | I59: 縣立陝西國小 | J59: 縣立和平國小 | K59: 縣立惠來國小 | L59: 縣立義竹國小 | M59: 縣立五溝國小 | N59: 縣立美和國小 | O59: 縣立觀音國小 | T59: 市立大龍國小 | U59: 市立金山國小 | V59: 市立三田國小 | W59: 市立大山國小
D60: 市立北港國小 | E60: 縣立三星國小 | F60: 市立美華國小 | G60: 縣立五龍國小 | H60: 縣立海口國小 | I60: 縣立育民國小 | J60: 縣立名間國小 | K60: 縣立拯民國小 | L60: 縣立光榮國小 | M60: 縣立佳佐國小 | N60: 縣立三和國小 | O60: 縣立高寮國小 | T60: 市立延平國小 | U60: 市立田寮區新興國小 | V60: 市立甲南國小 | W60: 市立安業國小
D61: 市立北峰國小 | E61: 縣立大洲國小 | F61: 市立內柵國小 | G61: 縣立寶山國小 | H61: 縣立三灣國小 | I61: 縣立溪湖國小 | J61: 縣立新街國小 | K61: 縣立安慶國小 | L61: 縣立過路國小 | M61: 縣立赤山國小 | N61: 縣立香蘭國小 | O61: 縣立松浦國小 | T61: 市立大橋國小 | U61: 市立崇德國小 | V61: 市立高美國小 | W61: 市立北勢國小
D62: 市立東山國小 | E62: 縣立憲明國小 | F62: 市立福安國小 | G62: 縣立新城國小 | H62: 縣立南庄國小 | I62: 縣立東溪國小 | J62: 縣立名崗國小 | K62: 縣立土庫國小 | L62: 縣立和順國小 | M62: 縣立內埔國小 | N62: 縣立大王國小 | O62: 縣立春日國小 | T62: 私立光仁小學 | U62: 市立阿蓮國小 | V62: 市立大楊國小 | W62: 市立港尾國小
D63: 市立白雲國小 | E63: 縣立萬富國小 | F63: 市立百吉國小 | G63: 縣立雙溪國小 | H63: 縣立田美國小 | I63: 縣立湖西國小 | J63: 縣立中山國小 | K63: 縣立馬光國小 | L63: 縣立南興國小 | M63: 縣立育英國小 | N63: 縣立太平國小 | O63: 縣立德武國小 | T63: 市立新和國小 | U63: 市立中路國小 | V63: 市立東山國小 | W63: 市立紀安國小
D64: 市立萬里國小 | E64: 縣立大隱國小 | F64: 市立瑞祥國小 | G64: 縣立北埔國小 | H64: 縣立南埔國小 | I64: 縣立湖東國小 | J64: 縣立弓鞋國小 | K64: 縣立埤腳國小 | L64: 縣立太保國小 | M64: 縣立僑智國小 | N64: 縣立大南國小 | O64: 縣立三民國小 | T64: 市立雙園國小 | U64: 市立復安國小 | V64: 市立梧棲國小 | W64: 市立佳里國小
D65: 市立野柳國小 | E65: 縣立四季國小 | F65: 市立中興國小 | G65: 縣立大坪國小 | H65: 縣立東河國小 | I65: 縣立湖南國小 | J65: 縣立田豐國小 | K65: 縣立後埔國小 | L65: 縣立安東國小 | M65: 縣立崇文國小 | N65: 縣立富山國小 | O65: 縣立大禹國小 | T65: 市立東園國小 | U65: 市立路竹國小 | V65: 市立梧南國小 | W65: 市立佳興國小
D66: 市立大鵬國小 | E66: 縣立南山國小 | F66: 市立員樹林國小 | G66: 縣立峨眉國小 | H66: 縣立蓬萊國小 | I66: 縣立媽厝國小 | J66: 縣立僑興國小 | K66: 縣立秀潭國小 | L66: 縣立南新國小 | M66: 縣立新生國小 | N66: 縣立東成國小 | O66: 縣立長良國小 | T66: 市立大理國小 | U66: 市立路竹區大社國小 | V66: 市立梧棲區中正國小 | W66: 市立延平國小
D67: 市立大坪國小 | E67: 縣立大同國小 | F67: 市立仁善國小 | G67: 縣立富興國小 | H67: 縣立造橋國小 | I67: 縣立埔鹽國小 | J67: 縣立新民國小 | K67: 縣立新庄國小 | L67: 縣立新埤國小 | M67: 縣立榮華國小 | N67: 縣立初鹿國小 | O67: 縣立富里國小 | T67: 市立西園國小 | U67: 市立下坑國小 | V67: 市立永寧國小 | W67: 市立塭內國小
D68: 市立崁腳國小 | E68: 縣立寒溪國小 | F68: 市立僑愛國小 | G68: 縣立尖石國小 | H68: 縣立談文國小 | I68: 縣立大園國小 | J68: 縣立鹿谷國小 | K68: 縣立宏崙國小 | L68: 縣立水上國小 | M68: 縣立黎明國小 | N68: 縣立利嘉國小 | O68: 縣立東里國小 | T68: 市立萬大國小 | U68: 市立竹滬國小 | V68: 市立大甲國小 | W68: 市立子龍國小
D69: 市立金山國小 | E69: 縣立南澳國小 | F69: 市立南興國小 | G69: 縣立嘉興國小 | H69: 縣立錦水國小 | I69: 縣立南港國小 | J69: 縣立秀峰國小 | K69: 縣立褒忠國小 | L69: 縣立大崙國小 | M69: 縣立隘寮國小 | N69: 縣立溫泉國小 | O69: 縣立明里國小 | T69: 市立華江國小 | U69: 市立三埤國小 | V69: 市立德化國小 | W69: 市立仁愛國小
D70: 市立中角國小 | E70: 縣立碧候國小 | F70: 市立永福國小 | G70: 縣立新樂國小 | H70: 縣立龍昇國小 | I70: 縣立好修國小 | J70: 縣立文昌國小 | K70: 縣立龍巖國小 | L70: 縣立柳林國小 | M70: 縣立泰安國小 | N70: 縣立賓朗國小 | O70: 縣立吳江國小 | T70: 市立西門國小 | U70: 市立北嶺國小 | V70: 市立大甲區文昌國小 | W70: 市立通興國小
D71: 市立三和國小 | E71: 縣立武塔國小 | F71: 市立中壢國小 | G71: 縣立梅花國小 | H71: 縣立僑樂國小 | I71: 縣立永樂國小 | J71: 縣立鳳凰國小 | K71: 縣立復興國小 | L71: 縣立忠和國小 | M71: 縣立東勢國小 | N71: 縣立新園國小 | O71: 縣立學田國小 | T71: 市立老松國小 | U71: 市立一甲國小 | V71: 市立順天國小 | W71: 市立西港國小
D72: 市立新店國小 | E72: 縣立澳花國小 | F72: 市立中平國小 | G72: 縣立錦屏國小 | H72: 縣立後龍國小 | I72: 縣立新水國小 | J72: 縣立內湖國小 | K72: 縣立潮厝國小 | L72: 縣立義興國小 | M72: 縣立豐田國小 | N72: 縣立富岡國小 | O72: 縣立永豐國小 | T72: 市立龍山國小 | U72: 市立文賢國小 | V72: 市立文武國小 | W72: 市立港東國小
D73: 市立直潭國小 | E73: 縣立東澳國小 | F73: 市立新明國小 | G73: 縣立玉峰國小 | H73: 縣立新港國(中)小 | I73: 縣立天盛國小 | J73: 縣立初鄉國小 | K73: 縣立東勢國小 | L73: 縣立成功國小 | M73: 縣立富田國小 | N73: 縣立豐田國小 | O73: 縣立萬寧國小 | T73: 市立福星國小 | U73: 市立明宗國小 | V73: 市立日南國小 | W73: 市立西港區成功國小
D74: 市立青潭國小 | E74: 縣立金岳國小 | F74: 市立芭里國小 | G74: 縣立石磊國小 | H74: 縣立大山國小 | I74: 縣立埔心國小 | J74: 縣立瑞田國小 | K74: 縣立安南國小 | L74: 縣立北回國小 | M74: 縣立竹田國小 | N74: 縣立建和國小 | O74: 縣立東竹國小 | T74: 國立政大實小 | U74: 市立大湖國小 | V74: 市立東明國小 | W74: 市立後營國小
D75: 市立雙峰國小 | E75: 縣立金洋國小 | F75: 市立新街國小 | G75: 縣立秀巒國小 | H75: 縣立龍坑國小 | I75: 縣立太平國小 | J75: 縣立廣興國小 | K75: 縣立明倫國小 | L75: 縣立南靖國小 | M75: 縣立西勢國小 | N75: 縣立知本國小 | O75: 縣立秀林國小 | T75: 私立靜心小學 | U75: 市立海埔國小 | V75: 市立華龍國小 | W75: 市立松林國小
D76: 市立大豐國小 | E76: 縣立人文國(中)小 | F76: 市立信義國小 | G76: 縣立新光國小 | H76: 縣立溪洲國小 | I76: 縣立舊館國小 | J76: 縣立中寮國小 | K76: 縣立同安國小 | L76: 縣立中埔國小 | M76: 縣立大明國小 | N76: 縣立南王國小 | O76: 縣立富世國小 | T76: 私立中山小學 | U76: 市立三侯國小 | V76: 市立西岐國小 | W76: 市立七股國小
D77: 市立中正國小 | E77: 縣立清溝國小 | F77: 市立普仁國小 | G77: 縣立五峰國小 | H77: 縣立外埔國小 | I77: 縣立羅厝國小 | J77: 縣立爽文國小 | K77: 縣立龍潭國小 | L77: 縣立大有國小 | M77: 縣立新埤國小 | N77: 縣立岩灣國小 | O77: 縣立崇德國小 | T77: 私立再興小學 | U77: 市立茄萣國小 | V77: 市立東陽國小 | W77: 市立後港國小
D78: 市立安坑國小 | E78: 私立中道高中附設國小 | F78: 市立富台國小 | G78: 縣立桃山國小 | H78: 縣立成功國小 | I78: 縣立鳳霞國小 | J78: 縣立永樂國小 | K78: 縣立臺西國小 | L78: 縣立中山國小 | M78: 縣立大成國小 | N78: 縣立卑南國小 | O78: 縣立和平國小 | T78: 市立景美國小 | U78: 市立茄萣區成功國小 | V78: 市立沙鹿國小 | W78: 市立竹橋國小
D79: 市立雙城國小 | E79: 縣立慈心華德福實中附設國小 | F79: 市立青埔國小 | G79: 縣立花園國小 | H79: 縣立中和國小 | I79: 縣立梧鳳國小 | J79: 縣立永康國小 | K79: 縣立崙豐國小 | L79: 縣立頂六國小 | M79: 縣立萬隆國小 | N79: 縣立豐年國小 | O79: 縣立景美國小 | T79: 市立武功國小 | U79: 市立砂崙國小 | V79: 市立文光國小 | W79: 市立三股國小
D80: 市立屈尺國小 | F80: 市立內壢國小 | G80: 縣立博愛國小 | H80: 縣立同光國小 | I80: 縣立明聖國小 | J80: 縣立清水國小 | K80: 縣立泉州國小 | L80: 縣立和睦國小 | M80: 縣立餉潭國小 | N80: 縣立康樂國小 | O80: 縣立三棧國小 | T80: 市立興德國小 | U80: 市立永安國小 | V80: 市立竹林國小 | W80: 市立光復生態實驗小學
D81: 市立龜山國小 | F81: 市立大崙國小 | G81: 縣立上館國小 | H81: 縣立海寶國小 | I81: 縣立員林國小 | J81: 縣立至誠國小 | K81: 縣立新興國小 | L81: 縣立同仁國小 | M81: 縣立枋寮國小 | N81: 縣立豐源國小 | O81: 縣立佳民國小 | T81: 市立溪口國小 | U81: 市立新港國小 | V81: 市立北勢國小 | W81: 市立篤加國小
D82: 市立深坑國小 | F82: 市立山東國小 | G82: 縣立光明國小 | H82: 縣立大湖國小 | I82: 縣立育英國小 | J82: 縣立永和國小 | K82: 縣立尚德國小 | L82: 縣立沄水國小 | M82: 縣立僑德國小 | N82: 縣立馬蘭國小 | O82: 縣立銅門國小 | T82: 市立興隆國小 | U82: 市立彌陀國小 | V82: 市立公明國小 | W82: 市立龍山國小
D83: 市立石碇國小 | F83: 市立中正國小 | G83: 縣立松林國小 | H83: 縣立南湖國小 | I83: 縣立靜修國小 | J83: 縣立廣福國小 | K83: 縣立文昌國小 | L83: 縣立社口國小 | M83: 縣立建興國小 | N83: 縣立豐榮國小 | O83: 縣立水源國小 | T83: 市立志清國小 | U83: 市立南安國小 | V83: 市立公館國小 | W83: 市立建功國小
D84: 市立和平國小 | F84: 市立自立國小 | G84: 縣立十興國小 | H84: 縣立華興國小 | I84: 縣立僑信國小 | J84: 縣立魚池國小 | K84: 縣立中山國小 | L84: 縣立灣潭國小 | M84: 縣立東海國小 | N84: 縣立豐里國小 | O84: 縣立銅蘭國小 | T84: 市立景興國小 | U84: 市立壽齡國小 | V84: 市立鹿峰國小 | W84: 市立大文國小
D85: 市立永定國小 | F85: 市立龍岡國小 | G85: 縣立興隆國小 | H85: 縣立大南國小 | I85: 縣立員東國小 | J85: 縣立頭社國小 | K85: 縣立廣興國小 | L85: 縣立民和國小 | M85: 縣立東港國小 | N85: 縣立新生國小 | O85: 縣立文蘭國小 | T85: 市立木柵國小 | U85: 市立梓官國小 | V85: 市立大安國小 | W85: 市立樹林國小
D86: 市立雲海國小 | F86: 市立內定國小 | G86: 縣立東興國小 | H86: 縣立東興國小 | I86: 縣立饒明國小 | J86: 縣立東光國小 | K86: 縣立安定國小 | L86: 縣立內甕國小 | M86: 縣立東隆國小 | N86: 縣立寶桑國小 | O86: 縣立萬榮國小 | T86: 市立永建國小 | U86: 市立蚵寮國小 | V86: 市立三光國小 | W86: 市立將軍國小
D87: 市立坪林國小 | F87: 市立南勢國小 | G87: 縣立安興國小 | H87: 縣立武榮國小 | I87: 縣立東山國小 | J87: 縣立五城國小 | K87: 縣立吳厝國小 | L87: 縣立黎明國小 | M87: 縣立海濱國小 | N87: 縣立光明國小 | O87: 縣立明利國小 | T87: 市立實踐國小 | U87: 市立旗山國小 | V87: 市立海墘國小 | W87: 市立漚汪國小
D88: 市立烏來國(中)小 | F88: 市立宋屋國小 | H88: 縣立新開國小 | I88: 縣立青山國小 | J88: 縣立明潭國小 | K88: 縣立大新國小 | L88: 縣立大湖國小 | M88: 縣立以栗國小 | N88: 縣立復興國小 | O88: 縣立見晴國小 | T88: 市立博嘉國小 | U88: 市立溪洲國小 | V88: 市立大安區永安國小 | W88: 市立苓和國小
D89: 市立福山國小 | F89: 市立新勢國小 | H89: 縣立栗林國小 | I89: 縣立明湖國小 | J89: 縣立新城國小 | K89: 縣立文賢國小 | L89: 縣立隙頂國小 | M89: 縣立大潭國小 | N89: 縣立仁愛國小 | O89: 縣立馬遠國小 | T89: 市立指南國小 | U89: 市立旗山區鼓山國小 | V89: 市立龍山國小 | W89: 市立鯤鯓國小
D90: 市立瑞芳國小 | F90: 市立忠貞國小 | H90: 縣立獅潭國小 | I90: 縣立大村國小 | J90: 縣立德化國小 | K90: 縣立文興國小 | L90: 縣立竹崎國小 | M90: 縣立新園國小 | N90: 國立臺東大學附小 | O90: 縣立西林國小 | T90: 市立明道國小 | U90: 市立圓潭國小 | V90: 市立龍井國小 | W90: 市立長平國小
D91: 市立義方國小 | F91: 市立東勢國小 | H91: 縣立豐林國小 | I91: 縣立大西國小 | J91: 縣立共和國小 | K91: 縣立二崙國小 | L91: 縣立龍山國小 | M91: 縣立仙吉國小 | O91: 縣立紅葉國小 | T91: 市立萬芳國小 | U91: 市立旗尾國小 | V91: 市立龍津國小 | W91: 市立北門國小
D92: 市立瑞柑國小 | F92: 市立山豐國小 | H92: 縣立永興國小 | I92: 縣立村上國小 | J92: 縣立國姓國小 | K92: 縣立三和國小 | L92: 縣立鹿滿國小 | M92: 縣立烏龍國小 | O92: 縣立卓溪國小 | T92: 市立力行國小 | U92: 市立嶺口國小 | V92: 市立龍海國小 | W92: 市立蚵寮國小
D93: 市立瑞濱國小 | F93: 市立復旦國小 | H93: 縣立卓蘭國小 | I93: 縣立村東國小 | J93: 縣立北山國小 | K93: 縣立油車國小 | L93: 縣立圓崇國小 | M93: 縣立港西國小 | O93: 縣立崙山國小 | T93: 市立萬興國小 | U93: 市立美濃國小 | V93: 市立龍港國小 | W93: 市立文山國小
D94: 市立九份國小 | F94: 市立北勢國小 | H94: 縣立內灣國小 | I94: 縣立永靖國小 | J94: 縣立北港國小 | K94: 縣立大同國小 | L94: 縣立內埔國小 | M94: 縣立鹽洲國小 | O94: 縣立立山國小 | T94: 市立萬福國小 | U94: 市立東門國小 | V94: 市立龍泉國小 | W94: 市立錦湖國小
D95: 市立瓜山國小 | F95: 市立楊梅國小 | H95: 縣立豐田國小 | I95: 縣立福德國小 | J95: 縣立福龜國小 | K95: 縣立永定國小 | L95: 縣立桃源國小 | M95: 縣立琉球國小 | O95: 縣立太平國小 | T95: 市立興華國小 | U95: 市立吉洋國小 | V95: 市立龍峰國小 | W95: 市立雙春國小
D96: 市立濂洞國小 | F96: 市立上田國小 | H96: 縣立坪林國小 | I96: 縣立永興國小 | J96: 縣立長流國小 | K96: 縣立義賢國小 | L96: 縣立中和國小 | M96: 縣立天南國小 | O96: 縣立卓清國小 | T96: 市立辛亥國小 | U96: 市立龍肚國小 | V96: 市立烏日國小 | W96: 市立三慈國小
D97: 市立猴硐國小 | F97: 市立大同國小 | H97: 縣立雙連國小 | I97: 縣立福興國小 | J97: 縣立南港國小 | K97: 縣立旭光國小 | L97: 縣立中興國小 | M97: 縣立全德國小 | O97: 縣立卓樂國小 | T97: 市立南港國小 | U97: 市立中壇國小 | V97: 市立僑仁國小 | W97: 市立學甲國小
D98: 市立瑞亭國小 | F98: 市立富岡國小 | H98: 縣立景山國小 | I98: 縣立德興國小 | J98: 縣立育樂國小 | K98: 縣立來惠國小 | L98: 縣立光華國小 | M98: 縣立白沙國小 | O98: 縣立古風國小 | T98: 市立舊莊國小 | U98: 市立廣興國小 | V98: 市立喀哩國小 | W98: 市立中洲國小
D99: 市立吉慶國小 | F99: 市立瑞原國小 | H99: 縣立泰安國(中)小 | I99: 縣立田中國小 | J99: 縣立港源國小 | K99: 縣立崙背國小 | L99: 縣立義仁國小 | M99: 縣立崁頂國小 | O99: 縣立奇美國小 | T99: 市立玉成國小 | U99: 市立龍山國小 | V99: 市立東園國小 | W99: 市立宅港國小
D100: 市立鼻頭國小 | F100: 市立上湖國小 | H100: 縣立泰興國小 | I100: 縣立三潭國小 | J100: 縣立長福國小 | K100: 縣立豐榮國小 | L100: 縣立沙坑國小 | M100: 縣立港東國小 | O100: 縣立卓楓國小 | T100: 市立成德國小 | U100: 市立福安國小 | V100: 市立溪尾國小 | W100: 市立頂洲國小
D101: 市立雙溪國小 | F101: 市立水美國小 | H101: 縣立清安國小 | I101: 縣立大安國小 | J101: 縣立乾峰國小 | K101: 縣立大有國小 | L101: 縣立梅山國小 | M101: 縣立力社國小 | O101: 縣立西富國小 | T101: 市立胡適國小 | U101: 市立吉東國小 | V101: 市立旭光國小 | W101: 市立東陽國小
D102: 市立柑林國小 | F102: 市立瑞埔國小 | H102: 縣立汶水國小 | I102: 縣立內安國小 | J102: 縣立水里國小 | K102: 縣立中和國小 | L102: 縣立梅圳國小 | M102: 縣立林邊國小 | O102: 縣立大興國小 | T102: 市立東新國小 | U102: 市立六龜國小 | V102: 市立五光國小 | W102: 市立下營國小
D103: 市立上林國小 | F103: 市立高榮國小 | H103: 縣立象鼻國小 | I103: 縣立東和國小 | J103: 縣立郡坑國小 | K103: 縣立陽明國小 | L103: 縣立太平國小 | M103: 縣立仁和國小 | O103: 縣立西寶國小 | T103: 市立修德國小 | U103: 市立荖濃國小 | V103: 市立大肚國小 | W103: 市立中營國小
D104: 市立牡丹國小 | F104: 市立四維國小 | H104: 縣立梅園國小 | I104: 縣立明禮國小 | J104: 縣立民和國小 | K104: 縣立東興國小 | L104: 縣立太興國小 | M104: 縣立竹林國小 | O104: 縣立中原國小 | T104: 市立內湖國小 | U104: 市立新發國小 | V104: 市立瑞峰國小 | W104: 市立賀建國小
D105: 市立貢寮國小 | F105: 市立瑞梅國小 | H105: 縣立建國國小 | I105: 縣立社頭國小 | J105: 縣立新興國小 | K105: 縣立麥寮國小 | L105: 縣立瑞里國小 | M105: 縣立崎峰國小 | O105: 財團法人慈濟大學附中附設國小 | T105: 市立碧湖國小 | U105: 市立龍興國小 | V105: 市立永順國小 | W105: 市立甲中國小
D106: 市立福隆國小 | F106: 市立新屋國小 | H106: 縣立竹興國小 | I106: 縣立橋頭國小 | J106: 縣立永興國小 | K106: 縣立橋頭國小 | L106: 縣立大南國小 | M106: 縣立水利國小 | T106: 市立潭美國小 | U106: 市立新威國小 | V106: 市立追分國小 | W106: 市立東興國小
D107: 市立澳底國小 | F107: 市立啟文國小 | H107: 縣立文華國小 | I107: 縣立朝興國小 | J107: 縣立成城國小 | K107: 縣立明禮國小 | L107: 縣立瑞峰國小 | M107: 縣立南州國小 | T107: 市立東湖國小 | U107: 市立寶來國小 | V107: 市立大忠國小 | W107: 市立六甲國小
D108: 市立和美國小 | F108: 市立東明國小 | H108: 縣立福星國小 | I108: 縣立清水國小 | J108: 縣立信義國小 | K108: 縣立興華國小 | L108: 縣立太和國小 | M108: 縣立同安國小 | T108: 市立西湖國小 | U108: 市立月美國小 | V108: 市立大里國小 | W108: 市立林鳳國小
D109: 市立福連國小 | F109: 市立頭洲國小 | H109: 縣立新南國小 | I109: 縣立湳雅國小 | J109: 縣立羅娜國小 | K109: 縣立豐安國小 | L109: 縣立仁和國小 | M109: 縣立溪北國小 | T109: 市立康寧國小 | U109: 市立上平國小 | V109: 市立內新國小 | W109: 市立官田國小
D110: 市立平溪國小 | F110: 市立永安國小 | H110: 縣立蟠桃國小 | I110: 縣立二水國小 | J110: 縣立同富國小 | K110: 縣立南陽國小 | L110: 縣立大埔國(中)小 | M110: 縣立佳冬國小 | T110: 市立明湖國小 | U110: 市立新庄國小 | V110: 市立崇光國小 | W110: 市立隆田國小
D111: 市立菁桐國小 | F111: 市立笨港國小 | H111: 縣立仁愛國小 | I111: 縣立復興國小 | J111: 縣立愛國國小 | K111: 縣立北辰國小 | L111: 縣立達邦國小 | M111: 縣立塭子國小 | T111: 市立麗山國小 | U111: 市立集來國小 | V111: 市立塗城國小 | W111: 市立嘉南國小
D112: 市立十分國小 | F112: 市立北湖國小 | H112: 縣立客庄國小 | I112: 縣立源泉國小 | J112: 縣立人和國小 | K112: 縣立好收國小 | L112: 縣立十字國小 | M112: 縣立羌園國小 | T112: 市立新湖國小 | U112: 市立杉林國小 | V112: 市立瑞城國小 | W112: 市立渡拔國小
D113: 市立淡水國小 | F113: 市立大坡國小 | H113: 縣立山佳國小 | I113: 縣立北斗國小 | J113: 縣立地利國小 | K113: 縣立育英國小 | L113: 縣立來吉國小 | M113: 縣立昌隆國小 | T113: 市立文湖國小 | U113: 市立內門國小 | V113: 市立健民國小 | W113: 市立大內國小
D114: 市立育英國小 | F114: 市立蚵間國小 | H114: 縣立信義國小 | I114: 縣立萬來國小 | J114: 縣立東埔國小 | K114: 縣立東榮國小 | L114: 縣立豐山實驗國(中)小 | M114: 縣立大新國小 | T114: 市立大湖國小 | U114: 市立觀亭國小 | V114: 市立草湖國小 | W114: 市立二溪國小
D115: 市立文化國小 | F115: 市立社子國小 | H115: 縣立士林國小 | I115: 縣立螺青國小 | J115: 縣立潭南國小 | K115: 縣立朝陽國小 | L115: 縣立山美國小 | M115: 縣立玉光國小 | T115: 市立南湖國小 | U115: 市立溝坪國小 | V115: 市立霧峰國小 | W115: 市立新營國小
D116: 市立天生國小 | F116: 市立埔頂國小 | I116: 縣立大新國小 | J116: 縣立桐林國小 | K116: 縣立辰光國小 | L116: 縣立新美國小 | M116: 縣立恆春國小 | T116: 市立麗湖國小 | U116: 市立金竹國小 | V116: 市立僑榮國小 | W116: 市立新民國小
D117: 市立水源國小 | F117: 市立觀音國小 | I117: 縣立螺陽國小 | J117: 縣立隆華國小 | K117: 縣立僑美國小 | L117: 縣立阿里山國(中)小 | M117: 縣立僑勇國小 | T117: 私立華興小學 | U117: 市立木柵國小 | V117: 市立四德國小 | W117: 市立新橋國小
D118: 市立興仁國小 | F118: 市立大潭國小 | I118: 縣立田尾國小 | J118: 縣立新鄉國小 | K118: 縣立元長國小 | L118: 縣立香林國小 | M118: 縣立山海國小 | T118: 市立士林國小 | U118: 市立西門國小 | V118: 市立五福國小 | W118: 市立新營區新興國小
D119: 市立忠山國小 | F119: 市立保生國小 | I119: 縣立南鎮國小 | J119: 縣立久美國小 | K119: 縣立新生國小 | L119: 縣立布新國小 | M119: 縣立大光國小 | T119: 市立士東國小 | U119: 市立景義國小 | V119: 市立萬豐國小 | W119: 市立新進國小
D120: 市立屯山國小 | F120: 市立新坡國小 | I120: 縣立陸豐國小 | J120: 縣立雙龍國小 | K120: 縣立客厝國小 | L120: 縣立茶山國小 | M120: 縣立水泉國小 | T120: 市立福林國小 | U120: 市立甲仙國小 | V120: 市立峰谷國小 | W120: 市立南梓實驗小學
D121: 市立中泰國小 | F121: 市立崙坪國小 | I121: 縣立仁豐國小 | J121: 縣立豐丘國小 | K121: 縣立山內國小 | L121: 縣立和興國小 | M121: 縣立大平國小 | T121: 市立陽明山國小 | U121: 市立小林國小 | V121: 市立桐林國小 | W121: 市立新生國小
D122: 市立坪頂國小 | F122: 市立上大國小 | I122: 縣立埤頭國小 | J122: 縣立仁愛國小 | K122: 縣立仁德國小 | L122: 縣立平林國小 | M122: 縣立墾丁國小 | T122: 市立社子國小 | U122: 市立寶隆國小 | V122: 市立復興國小 | W122: 市立土庫國小
D123: 市立竹圍國小 | F123: 市立育仁國小 | I123: 縣立合興國小 | J123: 縣立親愛國小 | K123: 縣立忠孝國小 | L123: 縣立梅北國小 | M123: 縣立車城國小 | T123: 市立雨聲國小 | U123: 市立巴楠花部落小學 | V123: 市立霧峰區光正國小 | W123: 市立公誠國小
D124: 市立石門國小 | F124: 市立草漯國小 | I124: 縣立豐崙國小 | J124: 縣立法治國小 | K124: 縣立仁愛國小 | L124: 縣立祥和國小 | M124: 縣立滿州國小 | T124: 市立富安國小 | U124: 市立民生國小 | V124: 市立太平區太平國小 | W124: 市立鹽水國小
D125: 市立乾華國小 | F125: 市立富林國小 | I125: 縣立芙朝國小 | J125: 縣立合作國小 | K125: 縣立信義國小 | L125: 縣立福樂國小 | M125: 縣立長樂國小 | T125: 市立劍潭國小 | U125: 市立茂林國小 | V125: 市立宜欣國小 | W125: 市立歡雅國小
D126: 市立老梅國小 | F126: 市立樹林國小 | I126: 縣立中和國小 | J126: 縣立互助國小 | K126: 縣立和平國小 | M126: 縣立永港國小 | T126: 市立溪山國小 | U126: 市立多納國小 | V126: 市立新光國小 | W126: 市立坔頭港國小
D127: 市立三芝國小 | F127: 市立龍潭國小 | I127: 縣立大湖國小 | J127: 縣立力行國小 | K127: 縣立四湖國小 | M127: 縣立楓港國小 | T127: 市立平等國小 | U127: 市立桃源國小 | V127: 市立坪林國小 | W127: 市立月津國小
D128: 市立橫山國小 | F128: 市立德龍國小 | I128: 縣立溪州國小 | J128: 縣立南豐國小 | K128: 縣立東光國小 | M128: 縣立加祿國小 | T128: 市立百齡國小 | U128: 市立建山國小 | V128: 市立光隆國小 | W128: 市立竹埔國小
D129: 市立興華國小 | F129: 市立潛龍國小 | I129: 縣立僑義國小 | J129: 縣立中正國小 | K129: 縣立飛沙國小 | M129: 縣立地磨兒國小 | T129: 市立雙溪國小 | U129: 市立興中國小 | V129: 市立黃竹國小 | W129: 市立仁光國小
D130: 市立新莊國小 | F130: 市立石門國小 | I130: 縣立三條國小 | J130: 縣立廬山國小 | K130: 縣立林厝國小 | M130: 縣立青山國小 | T130: 市立葫蘆國小 | U130: 市立寶山國小 | V130: 市立頭汴國小 | W130: 市立岸內國小
D131: 市立中港國小 | F131: 市立高原國小 | I131: 縣立水尾國小 | J131: 縣立發祥國小 | K131: 縣立三崙國小 | M131: 縣立青葉國小 | T131: 市立雨農國小 | U131: 市立樟山國小 | V131: 市立東汴國小 | W131: 市立文昌國小
D132: 市立思賢國小 | F132: 市立龍源國小 | I132: 縣立潮洋國小 | J132: 縣立萬豐國小 | K132: 縣立建陽國小 | M132: 縣立口社國小 | T132: 市立天母國小 | U132: 市立鎮北國小 | V132: 市立和平區和平國小 | W132: 市立白河國小
D133: 市立頭前國小 | F133: 市立三和國小 | I133: 縣立成功國小 | J133: 縣立都達國小 | K133: 縣立南光國小 | M133: 縣立佳義國小 | T133: 市立文昌國小 | U133: 市立鳳西國小 | V133: 市立福民國小 | W133: 市立玉豐國小
D134: 市立國泰國小 | F134: 市立武漢國小 | I134: 縣立圳寮國小 | J134: 縣立春陽國小 | K134: 縣立鹿場國小 | M134: 縣立北葉國小 | T134: 市立芝山國小 | U134: 市立維新國小 | V134: 市立白冷國小 | W134: 市立竹門國小
D135: 市立豐年國小 | F135: 市立介壽國小 | I135: 縣立大莊國小 | J135: 縣立紅葉國小 | K135: 縣立明德國小 | M135: 縣立霧臺國小 | T135: 市立蘭雅國小 | U135: 市立文德國小 | V135: 市立博屋瑪國小 | W135: 市立內角國小
D136: 市立丹鳳國小 | F136: 市立三民國小 | I136: 縣立南州國小 | J136: 縣立清境國小 | K136: 縣立建華國小 | M136: 縣立武潭國小 | T136: 市立三玉國小 | U136: 市立瑞興國小 | V136: 市立中坑國小 | W136: 市立仙草國小
D137: 市立光華國小 | F137: 市立義盛國小 | I137: 縣立二林國小 | J137: 縣立漳興國小 | K137: 縣立內湖國小 | M137: 縣立泰武國小 | T137: 私立薇閣小學 | U137: 市立登發國小 | V137: 市立平等國小 | W137: 市立河東國小
D138: 市立民安國小 | F138: 市立霞雲國小 | I138: 縣立興華國小 | J138: 縣立虎山國小 | K138: 縣立口湖國小 | M138: 縣立萬安國小 | T138: 市立北投國小 | U138: 市立竹圍國小 | V138: 市立博愛國小 | W138: 市立大竹國小
D139: 市立昌隆國小 | F139: 市立奎輝國小 | I139: 縣立中正國小 | J139: 縣立康壽國小 | K139: 縣立文光國小 | M139: 縣立來義國小 | T139: 市立逸仙國小 | U139: 市立觀音國小 | V139: 市立自由國小 | W139: 市立柳營國小
D140: 市立泰山國小 | F140: 市立光華國小 | I140: 縣立育德國小 | J140: 縣立前山國小 | K140: 縣立金湖國小 | M140: 縣立望嘉國小 | T140: 市立石牌國小 | U140: 市立竹後國小 | V140: 市立梨山國(中)小 | W140: 市立果毅國小
D141: 市立明志國小 | F141: 市立高義國小 | I141: 縣立香田國小 | J141: 私立弘明實驗高中附設國小 | K141: 縣立下崙國小 | M141: 縣立文樂國小 | T141: 市立關渡國小 | U141: 市立正義國小 | V141: 市立益民國小 | W141: 市立重溪國小
D142: 市立成州國小 | F142: 市立長興國小 | I142: 縣立廣興國小 | K142: 縣立興南國小 | M142: 縣立南和國小 | T142: 市立湖田國小 | U142: 市立福誠國小 | V142: 市立槺榔國小 | W142: 市立太康國小
D143: 市立更寮國小 | F143: 市立三光國小 | I143: 縣立萬興國小 | K143: 縣立崇文國小 | M143: 縣立古樓國小 | T143: 市立清江國小 | U143: 市立山頂國小 | V143: 市立建平國小 | W143: 市立新山國小
D144: 市立五股國小 | F144: 市立羅浮國小 | I144: 縣立新生國小 | K144: 縣立成龍國小 | M144: 縣立春日國小 | T144: 市立泉源國小 | U144: 市立過埤國小 | V144: 市立潭陽國小 | W144: 市立後壁國小
D145: 市立蘆洲國小 | F145: 市立巴崚國小 | I145: 縣立中興國小 | K145: 縣立臺興國小 | M145: 縣立力里國小 | T145: 市立大屯國小 | U145: 市立中崙國小 | V145: 市立太平區中華國小 | W145: 市立菁寮國小
D146: 市立鷺江國小 | F146: 市立東安國小 | I146: 縣立原斗國小 | K146: 縣立頂湖國小 | M146: 縣立古華國小 | T146: 市立湖山國小 | U146: 市立橋頭國小 | V146: 市立九德國小 | W146: 市立安溪國小
D147: 市立八里國小 | F147: 市立青溪國小 | I147: 縣立萬合國小 | K147: 縣立蔦松國小 | M147: 縣立楓林國小 | T147: 市立桃源國小 | U147: 市立興達國小 | V147: 市立中港國小 | W147: 市立新東國小
D148: 市立長坑國小 | F148: 市立錦興國小 | I148: 縣立大城國小 | K148: 縣立尖山國小 | M148: 縣立丹路國小 | T148: 市立文林國小 | U148: 市立那瑪夏區民權國小 | V148: 市立東平國小 | W148: 市立永安國小
D149: 市立米倉國小 | F149: 市立興國國小 | I149: 縣立永光國小 | K149: 縣立宏仁國小 | M149: 縣立內獅國小 | T149: 市立義方國小 | U149: 市立後庄國小 | V149: 市立文雅國小 | W149: 市立新嘉國小
D150: 市立林口國小 | F150: 市立華勛國小 | I150: 縣立西港國小 | K150: 縣立文正國小 | M150: 縣立草埔國小 | T150: 市立立農國小 | U150: 市立王公國小 | V150: 市立新盛國小 | W150: 市立樹人國小
D151: 市立南勢國小 | F151: 市立同安國小 | I151: 縣立美豐國小 | K151: 縣立誠正國小 | M151: 縣立石門國小 | T151: 市立明德國小 | U151: 市立壽天國小 | V151: 市立大元國小 | W151: 市立東山國小
D152: 市立嘉寶國小 | F152: 市立大忠國小 | I152: 縣立頂庄國小 | K152: 縣立中興國小 | M152: 縣立高士國小 | T152: 市立文化國小 | U152: 市立蔡文國小 | V152: 市立吉峰國小 | W152: 市立聖賢國小
D153: 市立瑞平國小 | F153: 市立楊明國小 | I153: 縣立潭墘國小 | K153: 縣立水燦林國小 | M153: 縣立牡丹國小 | T153: 國立臺灣戲曲學院附設國小 | U153: 市立文華國小 | V153: 市立新平國小 | W153: 市立東原國小
D154: 市立興福國小 | F154: 市立祥安國小 | I154: 縣立竹塘國小 | K154: 縣立大興國小 | M154: 縣立三多國小 | T154: 臺北市私立奎山實驗高級中學附設國小 | U154: 市立鳳翔國小 | V154: 市立葫蘆墩國小 | W154: 市立青山國小
D155: 市立三重國小 | F155: 市立迴龍國(中)小 | I155: 縣立田頭國小 | K155: 縣立雲林國小 | M155: 縣立信義國小 | U155: 市立鹽埕國小 | V155: 市立永隆國小 | W155: 市立吉貝耍國小
D156: 市立永福國小 | F156: 市立建德國小 | I156: 縣立民靖國小 | K156: 縣立斗六國小 | M156: 縣立瑞光國小 | U156: 市立鹽埕區忠孝國小 | V156: 市立美群國小 | W156: 市立崑山國小
D157: 市立光榮國小 | F157: 市立林森國小 | I157: 縣立長安國小 | M157: 縣立崇蘭國小 | U157: 市立光榮國小 | V157: 市立吳厝國小 | W157: 市立五王國小
D158: 市立厚德國小 | F158: 市立文化國小 | I158: 縣立土庫國小 | M158: 縣立四維國小 | U158: 市立鼓山區鼓山國小 | V158: 市立山陽國小 | W158: 市立文化國小
D159: 市立碧華國小 | F159: 市立龍星國小 | I159: 縣立芳苑國小 | M159: 縣立東寧國小 | U159: 市立鼓岩國小 | V159: 市立立新國小 | W159: 市立正新國小
D160: 市立三光國小 | F160: 市立大有國小 | I160: 縣立後寮國小 | M160: 縣立潮昇國小 | U160: 市立內惟國小 | V160: 市立大德國小 | W160: 市立信義國小
D161: 市立光興國小 | F161: 市立幸福國小 | I161: 縣立民權國小 | M161: 縣立潮和國小 | U161: 市立鼓山區中山國小 | V161: 市立車籠埔國小 | W161: 市立新泰國小
D162: 市立正義國小 | F162: 市立慈文國小 | I162: 縣立育華國小 | M162: 縣立東興國小 | U162: 市立壽山國小 | V162: 市立福陽國小 | W162: 市立永信國小
D163: 市立修德國小 | F163: 市立大業國小 | I163: 縣立草湖國小 | M163: 縣立塔樓國小 | U163: 市立龍華國小 | V163: 市立頭家國小 | W163: 市立永康區勝利國小
D164: 市立二重國小 | F164: 市立同德國小 | I164: 縣立建新國小 | M164: 縣立玉田國小 | U164: 市立九如國小 | V164: 市立瑞井國小 | W164: 市立紅瓦厝國小
D165: 市立興穀國小 | F165: 市立光明國小 | I165: 縣立漢寶國小 | M165: 縣立東光國小 | U165: 市立左營國小 | V165: 市立東新國小 | W165: 國立臺南大學附小
D166: 市立興化國小 | F166: 市立文華國小 | I166: 縣立王功國小 | M166: 縣立賽嘉國小 | U166: 市立舊城國小 | V166: 市立光復國(中)小 | W166: 私立寶仁小學
D167: 市立中山國小 | F167: 市立田心國小 | I167: 縣立新寶國小 | M167: 縣立瓦磘國小 | U167: 市立新莊國小 | V167: 市立長億國小 | W167: 市立東區勝利國小
D168: 市立三多國小 | F168: 市立忠福國小 | I168: 縣立路上國小 | M168: 縣立民生國小 | U168: 市立新民國小 | V168: 市立六寶國小 | W168: 市立博愛國小
D169: 市立實踐國小 | F169: 市立興仁國小 | I169: 縣立和仁國小 | M169: 縣立長榮百合國小 | U169: 市立明德國小 | V169: 國立臺中教大附小 | W169: 市立東區大同國小
D170: 市立大觀國小 | F170: 市立平興國小 | I170: 縣立鹿東國小 | U170: 市立勝利國小 | V170: 私立育仁國小 | W170: 市立東光國小
D171: 市立溪洲國小 | F171: 市立義興國小 | I171: 縣立舊社國小 | U171: 市立屏山國小 | V171: 私立慎齋小學 | W171: 市立德高國小
D172: 市立信義國小 | F172: 市立瑞塘國小 | I172: 縣立崙雅國小 | U172: 市立永清國小 | V172: 私立明道普霖斯頓小學 | W172: 市立崇學國小
D173: 市立重慶國小 | F173: 市立三坑國小 | I173: 縣立信義國(中)小 | U173: 市立新上國小 | V173: 私立麗喆國(中)小 | W173: 市立志開實驗小學
D174: 市立樂利國小 | F174: 市立楓樹國小 | I174: 縣立大成國小 | U174: 市立福山國小 | V174: 市立中區光復國小 | W174: 市立南區新興國小
D175: 市立安和國小 | F175: 市立楊心國小 | I175: 縣立新民國小 | U175: 市立文府國小 | V175: 市立臺中國小 | W175: 市立省躬國小
D176: 市立彭福國小 | F176: 市立南美國小 | I176: 縣立湖北國小 | U176: 市立新光國小 | V176: 市立大智國小 | W176: 市立喜樹國小
D177: 市立育林國小 | F177: 市立中原國小 | U177: 市立楠梓國小 | V177: 市立東區成功國小 | W177: 市立龍崗國小
D178: 市立建國國小 | F178: 市立元生國小 | U178: 市立後勁國小 | V178: 市立進德國小 | W178: 市立日新國小
D179: 市立安溪國小 | F179: 市立莊敬國小 | U179: 市立援中國小 | V179: 市立力行國小 | W179: 市立永華國小
D180: 市立樟樹國小 | F180: 市立自強國小 | U180: 市立右昌國小 | V180: 市立樂業國小 | W180: 市立協進國小
D181: 市立金美國小 | F181: 市立新榮國小 | U181: 市立莒光國小 | V181: 市立忠孝國小 | W181: 市立新南國小
D182: 市立新和國小 | F182: 市立楊光國(中)小 | U182: 市立加昌國小 | V182: 市立忠信國小 | W182: 市立立人國小
D183: 市立鄧公國小 | F183: 市立快樂國小 | U183: 市立楠陽國小 | V183: 市立大同國小 | W183: 市立公園國小
D184: 市立新興國小 | F184: 市立永順國小 | U184: 市立翠屏國(中)小 | V184: 市立忠明國小 | W184: 市立開元國小
D185: 市立重陽國小 | F185: 市立新埔國小 | U185: 市立油廠國小 | V185: 市立西區中正國小 | W185: 市立大光國小
D186: 市立五華國小 | F186: 市立文欣國小 | U186: 市立三民國小 | V186: 市立南區和平國小 | W186: 市立中西區成功國小
D187: 市立成功國小 | F187: 市立雙龍國小 | U187: 市立鼎金國小 | V187: 市立國光國小 | W187: 市立永福國小
D188: 市立仁愛國小 | F188: 市立龍安國小 | U188: 市立愛國國小 | V188: 市立信義國小 | W188: 市立忠義國小
D189: 市立榮富國小 | F189: 市立長庚國小 | U189: 市立十全國小 | V189: 市立北區太平國小 | W189: 市立進學國小
D190: 市立裕民國小 | F190: 市立仁和國小 | U190: 市立正興國小 | V190: 市立北區中華國小 | W190: 市立石門國小
D191: 市立新泰國小 | F191: 市立大湖國小 | U191: 市立博愛國小 | V191: 市立篤行國小 | W191: 市立西門實驗小學
D192: 市立中信國小 | F192: 桃園市新興高中附設國小 | U192: 市立獅湖國小 | V192: 市立健行國小 | W192: 市立安順國小
D193: 市立德音國小 | F193: 私立大華高中附設國小 | U193: 市立三民區民族國小 | V193: 市立省三國小 | W193: 市立和順國小
D194: 市立麗園國小 | F194: 市立仁美國中附設國小 | U194: 市立莊敬國小 | V194: 市立西屯國小 | W194: 市立海東國小
D195: 市立北新國小 | U195: 市立光武國小 | V195: 市立西屯區泰安國小 | W195: 市立安慶國小
D196: 市立同榮國小 | U196: 市立東光國小 | V196: 市立大鵬國小 | W196: 市立土城國小
D197: 市立光復國小 | U197: 市立河濱國小 | V197: 市立西屯區永安國小 | W197: 市立青草國小
D198: 市立秀峰國小 | U198: 市立陽明國小 | V198: 市立協和國小 | W198: 市立鎮海國小
D199: 市立金龍國小 | U199: 市立河堤國小 | V199: 市立大仁國小 | W199: 市立顯宮國小
D200: 市立介壽國小 | U200: 市立新興區新興國小 | V200: 市立南屯國小 | W200: 市立長安國小
... 49 more rows
